{"text_format":"1","workbook":"xlsx","n_sheets":6,"sheets":["SAPBEXqueriesDefunct","SAPBEXfiltersDefunct","BExRepositorySheet","Summary","Breakdown","Query"],"not_rendered":{"charts":0,"images":4,"macros":1,"external_links":2,"defined_names":151,"comments":0,"pivot_tables":0},"unopened":[],"bounds":{"document_bytes":16777216,"sheet_cells":100000,"rows_first":2000,"rows_last":500,"rows_between":2000,"halvings":0,"cell_chars":16384,"cell_head_chars":4096},"cells_cut":0,"cells_raw":0,"read":"whole","date_system":"1900"}

{"sheet":"SAPBEXqueriesDefunct","index":0,"n_rows":7059,"n_cols":252,"rows_kept":281,"cut":true,"hidden":true,"merged":[],"bounds":{"rows_first":125,"rows_last":31,"rows_between":125,"halvings":4}}
[9]
[8,null,null,null,null,null,null,null,null,null,null,null,null,null,null,null,null,null,null,null,null,null,null,null,null,null,null,null,null,null,73,null,null,null,null,null,null,null,null,null,null,null,null,null,null,null,null,null,null,null,null,null,null,null,null,null,null,null,null,null,null,null,null,null,null,null,null,null,null,null,null,null,null,null,null,null,null,null,null,null,null,null,null,null,null,null,null,null,null,null,476,null,null,null,null,null,null,null,null,null,null,null,null,null,null,null,null,null,null,null,208,null,null,null,null,null,null,null,null,null,null,null,null,null,null,null,null,null,null,null,7056,null,null,null,null,null,null,null,null,null,null,null,null,null,null,null,null,null,null,null,4,null,null,null,null,null,null,null,null,null,null,null,null,null,null,null,null,null,null,null,null,null,null,null,null,null,null,null,null,null,33,null,null,null,null,null,null,null,null,null,null,null,null,null,null,null,null,null,null,null,null,null,null,null,null,null,null,null,null,null,null,null,null,null,null,null,null,null,null,null,null,null,null,null,null,null,null,null,null,null,248]
[24,null,null,null,null,null,null,null,null,null,null,null,null,null,null,null,null,null,null,null,null,null,null,null,null,null,null,null,null,null,59,null,null,null,null,null,null,null,null,null,null,null,null,null,null,null,null,null,null,null,null,null,null,null,null,null,null,null,null,null,null,null,null,null,null,null,null,null,null,null,null,null,null,null,null,null,null,null,null,null,null,null,null,null,null,null,null,null,null,null,13,null,null,null,null,null,null,null,null,null,null,null,null,null,null,null,null,null,null,null,14,null,null,null,null,null,null,null,null,null,null,null,null,null,null,null,null,null,null,null,13,null,null,null,null,null,null,null,null,null,null,null,null,null,null,null,null,null,null,null,11,null,null,null,null,null,null,null,null,null,null,null,null,null,null,null,null,null,null,null,null,null,null,null,null,null,null,null,null,null,21,null,null,null,null,null,null,null,null,null,null,null,null,null,null,null,null,null,null,null,null,null,null,null,null,null,null,null,null,null,null,null,null,null,null,null,null,null,null,null,null,null,null,null,null,null,null,null,null,null,2]
[null,261,"DA4QZTAPZO7BC3TG1BEIUUFW9",true,true,"SAPBEXq0010",2,2,false,null,null,true,false,null,true,false,0,null,5,true,true,null,null,false,false,false,null,null,null,null,11,"0PAYRL_AREA","Payroll Area","X","","","0001","","","","","","","","0","03","","","","00000000","K","0PAYRL_AREA","A","","","H","","","","","","00000000","0000","","0","","","","","1","1","1","0","0","","","","","","DA4HO01I2JLLJYJEIRTJ2DMNT","","","","","","","0000","","","",11,"D4O21W1IBUB3HEML1KWP5YGOP","D4O21W1IBUDEJ9LV077JD8NI1","Grade 1 - 4 F/T","0001","","S","","L","","","","","",null,null,null,null,null,null,11,"0ORGUNIT","0BBPPURGRPX","Ind.Purchasing Group","0000","X","2","0","0","","","","","0000","",null,null,null,null,null,11,"D4O21W1IBUDEJ9LV077JD8NI1","DA4HOQG67K8TYQEWWA71P4RND","","","","","","00","X","0","0","","",null,null,null,null,null,null,16,"0ORGUNIT","253","Organizational Unit","","T","0","253","0ORGUNIT","0","","",null,null,null,null,null,null,null,null,null,null,null,null,null,null,null,null,null,null,11,"ZS_DT_1","1","P","I","EQ","20150930","30/09/2015","","","","0","","0","","0","Target date 1","60","","","ZEMP_STRT","20150930",null,null,null,null,null,null,null,null,null,null,null,null,null,null,null,null,null,null,null,null,null,null,null,null,null,null,null,null,11,"0000000107","DA4HO01I2JEOEDLKMWX0GJ27T"]
[null,257,"DA4HO01I2JQZCATPRJUTJDEK9",true,true,"SAPBEXq0008",2,2,false,null,null,true,false,null,true,false,0,null,5,true,true,null,null,false,false,false,null,null,null,null,11,"ZPERSAREA","ZPersonal Area","X","","","0002","","Social Work","","","","","","2","03","","","","00000000","K","ZPERSAREA","A","","","H","","","","","","00000000","0000","","0","","1","","","1","1","1","0","0","","","","","","DA4HO01I2JMD8KV5UB954T0XL","","","","","","","0000","","","",11,"DA4HOQG67K82A435KQRFMPDDL","DA4HOQG67K8TYQEWWA71P4RND","White Scottish","0001","","S","","L","X","","","","",null,null,null,null,null,null,11,"0ORGUNIT","0BBPPURORGX","Ind. Purchasing Org.","0000","X","2","0","0","","","","","0000","",null,null,null,null,null,11,"D4O21W1IBUDEJ9LV077JD8NI1","DA4HOQG67K9LNCQO7TMNRK5X5","","","","","","00","X","0","0","","",null,null,null,null,null,null,16,"0ORGUNIT","253","Hierarchy Node(s)","","T","0","37","0HIER_NODE","0","","",null,null,null,null,null,null,null,null,null,null,null,null,null,null,null,null,null,null,11,"ZP_ORGUN","2","M","","","","","","","","0","","0","","0","Org Unit Hierarchy (Selection option, optional)","60","","","0ORGUNIT","",null,null,null,null,null,null,null,null,null,null,null,null,null,null,null,null,null,null,null,null,null,null,null,null,null,null,null,null,11,"0000000100","X"]
[null,253,"DA4HO01I2JQZCATPRJUTJDEK9",true,true,"SAPBEXq0012",2,2,false,null,null,true,false,null,true,false,0,null,5,true,true,null,null,false,false,false,null,null,null,null,11,"0ORGUNIT","Organizational Unit","X","","","0003","","","","","","","","1","03","X","ORGEH","000","20150930","K","0ORGUNIT","A","","","H","0ORGUNIT","A","","","","00000000","0000","","0","","","","2","1","1","1","0","0","","","","","","DA4HO01I2JN4X76X5UOR78F7D","","","","","","","0000","","","",11,"DA4HOQG67K82A435KQRFMPDDL","DA4HOQG67KADBZ2FJD29TZK6X","Other British","0002","","S","","L","X","","","","",null,null,null,null,null,null,11,"0ORGUNIT","0BBP_BUYID","Buyer ID","0000","X","5","0","0","","","","","0000","",null,null,null,null,null,11,"D4O21W1IBUDEJ9LV077JD8NI1","DA4HOQG67KADBZ2FJD29TZK6X","","","","","","00","X","0","0","","",null,null,null,null,null,null,14,"0ORGUNIT","253","Organizational Unit","","T","0","253","0ORGUNIT","0","","",null,null,null,null,null,null,null,null,null,null,null,null,null,null,null,null,null,null,11,"ZBUDH","1","P","I","EQ","20150930","30/09/2015","","","","0","","0","","0","Master Data Key Date","60","","","0DATE","20150930",null,null,null,null,null,null,null,null,null,null,null,null,null,null,null,null,null,null,null,null,null,null,null,null,null,null,null,null,11,"0000000101",""]
[null,249,"DA4HO01I2JQZCATPRJUTJDEK9",true,true,"SAPBEXq0002",2,2,false,null,null,true,false,null,true,false,0,null,5,true,true,null,null,false,false,false,null,null,null,null,11,"0PERS_SAREA","Personnel Subarea","X","","","0004","","","","","","","U","1","03","","","","00000000","K","0PERS_SAREA","A","","","H","","","","","","00000000","0000","","0","","","","","1","1","1","0","0","","","","","","DA4HO01I2JNWLTIOHE4D9NTH5","","","","","","","0000","","","",11,"D4O21W1IBUB3HEML1KWP5YGOP","D4O21W1IBUKBOUJOW241Z37Y1","Grade 1 - 4 P/T","0002","","S","","L","","","","","",null,null,null,null,null,null,11,"0ORGUNIT","0BBP_ISCOMP","Organizational Unit is Company","0000","X","1","0","0","","","","","0000","",null,null,null,null,null,11,"D4O21W1IBUDEJ9LV077JD8NI1","DA4HOQG67KBWP7PY6FXHYUCQH","","","","","","00","X","0","0","","",null,null,null,null,null,null,14,"0ORGUNIT","253","Hierarchy Node(s)","","T","0","37","0HIER_NODE","0","","",null,null,null,null,null,null,null,null,null,null,null,null,null,null,null,null,null,null,11,"ZZPERAR","1","M","","","","","","","","0","","0","","0","ZPersonnel Area","60","","","ZPERSAREA","",null,null,null,null,null,null,null,null,null,null,null,null,null,null,null,null,null,null,null,null,null,null,null,null,null,null,null,null,11,"0000000104","1"]
[null,245,"DA4HO01I2JQZCATPRJUTJDEK9",true,true,"SAPBEXq0007",2,2,false,null,null,true,false,null,true,false,0,null,5,true,true,null,null,false,false,false,null,null,null,null,11,"ZTEILK","Checkbox for Part-Ti","X","","","0005","","","","","","","","1","03","","","","00000000","K","ZTEILK","A","","","H","","","","","","00000000","0000","","0","","","","","1","1","1","0","0","","","","","","DA4HO01I2JOOAFUFSXJZC37QX","","","","","","","0000","","","",11,"D4O21W1IBUB3HEML1KWP5YGOP","DEMAFDB5LZ4S252XBVM7GJP4P","Grade 1 - 4 Total","0003","","S","","L","","","","","",null,null,null,null,null,null,11,"0ORGUNIT","0BUS_AREA","Business area","0000","X","0","0","0","","","","","0000","",null,null,null,null,null,11,"D4O21W1IBUDEJ9LV077JD8NI1","DA4HOQG67KCODU1PHZD419R09","","","","","","00","X","0","0","","",null,null,null,null,null,null,null,null,null,null,null,null,null,null,null,null,null,null,null,null,null,null,null,null,null,null,null,null,null,null,null,null,null,null,null,null,10,"ZS_DT_1","1","P","I","EQ","20150930","30/09/2015","","","","0","","0","","0","Target date 1","60","","","ZEMP_STRT","20150930",null,null,null,null,null,null,null,null,null,null,null,null,null,null,null,null,null,null,null,null,null,null,null,null,null,null,null,null,11,"0000000103",""]
[null,241,"DA4HO01I2JQZCATPRJUTJDEK9",true,true,"SAPBEXq0003",2,2,false,null,null,true,false,null,true,false,0,null,5,true,true,null,null,false,false,false,null,null,null,null,11,"ZPRIM_ID","ZPrimary Employee ID","X","","","0006","","","","","","","","2","03","","","","00000000","K","ZPRIM_ID","A","","","H","","","","","","00000000","0000","","0","","","","","1","1","1","0","0","","","","","","DA4HO01I2JPFZ2674GZLEIM0P","","","","","","","0000","","","",11,"DA4HOQG67K82A435KQRFMPDDL","DA4HOQG67K9LNCQO7TMNRK5X5","Irish","0003","","S","","L","X","","","","",null,null,null,null,null,null,11,"0ORGUNIT","0COMP_CODE","Company code","0000","X","0","0","0","","","","","0000","",null,null,null,null,null,11,"D4O21W1IBUDEJ9LV077JD8NI1","DA4HOQG67KDG2GDGTISQ3P5A1","","","","","","00","X","0","0","","",null,null,null,null,null,null,null,null,null,null,null,null,null,null,null,null,null,null,null,null,null,null,null,null,null,null,null,null,null,null,null,null,null,null,null,null,10,"ZP_ORGUN","2","M","","","","","","","","0","","0","","0","Org Unit Hierarchy (Selection option, optional)","60","","","0ORGUNIT","",null,null,null,null,null,null,null,null,null,null,null,null,null,null,null,null,null,null,null,null,null,null,null,null,null,null,null,null,11,"0000000102","1"]
[null,237,"DA4HO01I2JQZCATPRJUTJDEK9",true,true,"SAPBEXq0006",2,2,false,null,null,true,false,null,true,false,0,null,5,true,true,null,null,false,false,false,null,null,null,null,11,"0CNTRCTTYPE","Contract Type","X","","","0007","","","","","","","","1","03","","","","00000000","K","0CNTRCTTYPE","A","","","H","","","","","","00000000","0000","","0","","","","","1","1","1","0","0","","","","","","DB0ZCI83WEWAMKG013IL0HDDL","","","","","","","0000","","","",11,"D4O21W1IBUB3HEML1KWP5YGOP","D4O21W1IBUE67VXMBQN5FO1RT","Grade 5 - 7 F/T","0004","","S","","L","","","","","",null,null,null,null,null,null,11,"0ORGUNIT","0CO_MST_AR","Controlling Area of Master Cost Center","0000","X","0","0","0","","","","","0000","",null,null,null,null,null,11,"D4O21W1IBUDEJ9LV077JD8NI1","DA4HOQG67KE7R2P8528C64JJT","","","","","","00","X","0","0","","",null,null,null,null,null,null,null,null,null,null,null,null,null,null,null,null,null,null,null,null,null,null,null,null,null,null,null,null,null,null,null,null,null,null,null,null,10,"ZBUDH","1","P","I","EQ","20150930","30/09/2015","","","","0","","0","","0","Master Data Key Date","60","","","0DATE","20150930",null,null,null,null,null,null,null,null,null,null,null,null,null,null,null,null,null,null,null,null,null,null,null,null,null,null,null,null,11,"0000000108",""]
[null,233,"DA4HO01I2JQZCATPRJUTJDEK9",true,true,"SAPBEXq0005",2,2,false,null,null,true,false,null,true,false,0,null,5,true,true,null,null,false,false,false,null,null,null,null,11,"DA4HOQG67K82A435KQRFMPDDL","Ethnicity Breakdown - Rev 2011","","X","X","0001","","","","","","","U","","00","","","","","K","DA4HOQG67K82A435KQRFMPDDL","A","","","","","","","","","00000000","0000","X","0","","","","","0","0","0","0","0","","","","","","DA4HOQG67K82A435KQRFMPDDL","","","","","","","0000","","","",11,"DA4HOQG67K82A435KQRFMPDDL","DA4HQT1FQ21CBCL0CVM3F7BP5","Gypsy / Traveller","0004","","S","","L","X","","","","",null,null,null,null,null,null,11,"0ORGUNIT","0CRMSALGRPX","Sls Group: Indicator","0000","X","2","0","0","","","","","0000","",null,null,null,null,null,11,"D4O21W1IBUDEJ9LV077JD8NI1","DA4HOQG67KEZFP0ZGLNY8JXTL","","","","","","00","X","0","0","","",null,null,null,null,null,null,null,null,null,null,null,null,null,null,null,null,null,null,null,null,null,null,null,null,null,null,null,null,null,null,null,null,null,null,null,null,10,"ZZPERAR","1","M","","","","","","","","0","","0","","0","ZPersonnel Area","60","","","ZPERSAREA","",null,null,null,null,null,null,null,null,null,null,null,null,null,null,null,null,null,null,null,null,null,null,null,null,null,null,null,null,11,"0000009002","D4O21W1IBUB3HEML1KWP5YGOP"]
[null,null,null,null,null,null,null,null,null,null,null,null,null,null,null,null,null,null,null,null,null,null,null,null,null,false,null,null,null,null,11,"D4O21W1IBUB3HEML1KWP5YGOP","WP Bandings","","X","Y","0001","","","","","","","U","","00","","","","","K","D4O21W1IBUB3HEML1KWP5YGOP","A","","","","","","","","","00000000","0000","","0","","","","","0","0","0","0","0","","","","","","D4O21W1IBUB3HEML1KWP5YGOP","","","","","","","0000","","","",11,"D4O21W1IBUB3HEML1KWP5YGOP","D4O21W1IBUL3DGVG7LJO1IM7T","Grade 5 - 7 P/T","0005","","S","","L","","","","","",null,null,null,null,null,null,11,"0ORGUNIT","0CRMSALOFFX","Sls Office:Indicator","0000","X","2","0","0","","","","","0000","",null,null,null,null,null,11,"D4O21W1IBUDEJ9LV077JD8NI1","DA4HOQG67KFR4BCQS53KAZC3D","","","","","","00","X","0","0","","",null,null,null,null,null,null,null,null,null,null,null,null,null,null,null,null,null,null,null,null,null,null,null,null,null,null,null,null,null,null,null,null,null,null,null,null,9,"ZS_DT_1","1","P","I","EQ","20150930","30/09/2015","","","","0","","0","","0","Target date 1","60","","","ZEMP_STRT","20150930",null,null,null,null,null,null,null,null,null,null,null,null,null,null,null,null,null,null,null,null,null,null,null,null,null,null,null,null,11,"0000009000",""]
[null,null,null,null,null,null,null,null,null,null,null,null,null,null,null,null,null,null,null,null,null,null,null,null,null,false,null,null,null,null,10,"0PAYRL_AREA","Payroll Area","X","","","0001","","","","","","","","0","03","","","","00000000","K","0PAYRL_AREA","A","","","H","","","","","","00000000","0000","","0","","","","","1","1","1","0","0","","","","","","DA4HO01I2JLLJYJEIRTJ2DMNT","","","","","","","0000","","","",11,"DA4HOQG67K82A435KQRFMPDDL","DA4HQT1FQ223ZYWROF1PHMPYX","Polish","0005","","S","","L","X","","","","",null,null,null,null,null,null,11,"0ORGUNIT","0CRMSALORGX","Sales Org. Indicator","0000","X","2","0","0","","","","","0000","",null,null,null,null,null,11,"D4O21W1IBUDEJ9LV077JD8NI1","DA4HOQG67KGISXOI3OJ6DEQD5","","","","","","00","X","0","0","","",null,null,null,null,null,null,null,null,null,null,null,null,null,null,null,null,null,null,null,null,null,null,null,null,null,null,null,null,null,null,null,null,null,null,null,null,9,"ZP_ORGUN","2","M","","","","","","","","0","","0","","0","Org Unit Hierarchy (Selection option, optional)","60","","","0ORGUNIT","",null,null,null,null,null,null,null,null,null,null,null,null,null,null,null,null,null,null,null,null,null,null,null,null,null,null,null,null,11,"0000000010",""]
[null,null,null,null,null,null,null,null,null,null,null,null,null,null,null,null,null,null,null,null,null,null,null,null,null,false,null,null,null,null,10,"ZPERSAREA","ZPersonal Area","X","","","0002","","Land and Environmental","","","","","","2","03","","","","00000000","K","ZPERSAREA","A","","","H","","","","","","00000000","0000","","0","","1","","","1","1","1","0","0","","","","","","DA4HO01I2JMD8KV5UB954T0XL","","","","","","","0000","","","",11,"D4O21W1IBUB3HEML1KWP5YGOP","DEMAGSP8VDTMCQ2Z9KSRG7UGP","Grade 5 - 7 Total","0006","","S","","L","","","","","",null,null,null,null,null,null,11,"0ORGUNIT","0CRMSRVTGRP","Ex. CRM Service Org.","0000","X","1","0","0","","","","","0000","",null,null,null,null,null,11,"D4O21W1IBUDEJ9LV077JD8NI1","DA4HOQG67KHAHK09F7YSFU4MX","","","","","","00","X","0","0","","",null,null,null,null,null,null,null,null,null,null,null,null,null,null,null,null,null,null,null,null,null,null,null,null,null,null,null,null,null,null,null,null,null,null,null,null,9,"ZBUDH","1","P","I","EQ","20150930","30/09/2015","","","","0","","0","","0","Master Data Key Date","60","","","0DATE","20150930",null,null,null,null,null,null,null,null,null,null,null,null,null,null,null,null,null,null,null,null,null,null,null,null,null,null,null,null,11,"0000000021",""]
[null,null,null,null,null,null,null,null,null,null,null,null,null,null,null,null,null,null,null,null,null,null,null,null,null,false,null,null,null,null,10,"0ORGUNIT","Organizational Unit","X","","","0003","","","","","","","","1","03","X","ORGEH","000","20150930","K","0ORGUNIT","A","","","H","0ORGUNIT","A","","","","00000000","0000","","0","","","","2","1","1","1","0","0","","","","","","DA4HO01I2JN4X76X5UOR78F7D","","","","","","","0000","","","",11,"DA4HOQG67K82A435KQRFMPDDL","DA4HQT1FQ22VOL8IZYHBK248P","Other White Ethnic","0006","","S","","L","X","","","","",null,null,null,null,null,null,11,"0ORGUNIT","0CRM_SALGRP","CRM Sales Group","0000","X","1","0","0","","","","","0000","",null,null,null,null,null,11,"D4O21W1IBUDEJ9LV077JD8NI1","DA4HOQG67KI266C0QREEI9IWP","","","","","","00","X","0","0","","",null,null,null,null,null,null,null,null,null,null,null,null,null,null,null,null,null,null,null,null,null,null,null,null,null,null,null,null,null,null,null,null,null,null,null,null,9,"ZZPERAR","1","M","","","","","","","","0","","0","","0","ZPersonnel Area","60","","","ZPERSAREA","",null,null,null,null,null,null,null,null,null,null,null,null,null,null,null,null,null,null,null,null,null,null,null,null,null,null,null,null,11,"0000000022",""]
[null,null,null,null,null,null,null,null,null,null,null,null,null,null,null,null,null,null,null,null,null,null,null,null,null,false,null,null,null,null,10,"0PERS_SAREA","Personnel Subarea","X","","","0004","","","","","","","U","1","03","","","","00000000","K","0PERS_SAREA","A","","","H","","","","","","00000000","0000","","0","","","","","1","1","1","0","0","","","","","","DA4HO01I2JNWLTIOHE4D9NTH5","","","","","","","0000","","","",11,"DA4HOQG67K82A435KQRFMPDDL","DA4HOQG67KBWP7PY6FXHYUCQH","White Total","0007","X","S","","L","X","","","","",null,null,null,null,null,null,11,"0ORGUNIT","0CRM_SALOFF","CRM Sales Office","0000","X","1","0","0","","","","","0000","",null,null,null,null,null,11,"D4O21W1IBUDEJ9LV077JD8NI1","DA4HOQG67KITUSNS2AU0KOX6H","","","","","","00","X","0","0","","",null,null,null,null,null,null,null,null,null,null,null,null,null,null,null,null,null,null,null,null,null,null,null,null,null,null,null,null,null,null,null,null,null,null,null,null,8,"ZS_DT_1","1","P","I","EQ","20150930","30/09/2015","","","","0","","0","","0","Target date 1","60","","","ZEMP_STRT","20150930",null,null,null,null,null,null,null,null,null,null,null,null,null,null,null,null,null,null,null,null,null,null,null,null,null,null,null,null,11,"0000000023",""]
[null,null,null,null,null,null,null,null,null,null,null,null,null,null,null,null,null,null,null,null,null,null,null,null,null,null,null,null,null,null,10,"ZTEILK","Checkbox for Part-Ti","X","","","0005","","","","","","","","1","03","","","","00000000","K","ZTEILK","A","","","H","","","","","","00000000","0000","","0","","","","","1","1","1","0","0","","","","","","DA4HO01I2JOOAFUFSXJZC37QX","","","","","","","0000","","","",11,"D4O21W1IBUB3HEML1KWP5YGOP","D4O21W1IBUEXWI9DNA2RI3G1L","Grade 8 F/T","0007","","S","","L","","","","","",null,null,null,null,null,null,11,"0ORGUNIT","0CRM_SALORG","CRM Sales Org.","0000","X","1","0","0","","","","","0000","",null,null,null,null,null,11,"D4O21W1IBUDEJ9LV077JD8NI1","DA4HOQG67KJLJEZJDU9MN4BG9","","","","","","00","X","0","0","","",null,null,null,null,null,null,null,null,null,null,null,null,null,null,null,null,null,null,null,null,null,null,null,null,null,null,null,null,null,null,null,null,null,null,null,null,8,"ZP_ORGUN","2","M","","","","","","","","0","","0","","0","Org Unit Hierarchy (Selection option, optional)","60","","","0ORGUNIT","",null,null,null,null,null,null,null,null,null,null,null,null,null,null,null,null,null,null,null,null,null,null,null,null,null,null,null,null,11,"0000000030",""]
[null,null,null,null,null,null,null,null,null,null,null,null,null,null,null,null,null,null,null,null,null,null,null,null,null,null,null,null,null,null,10,"ZPRIM_ID","ZPrimary Employee ID","X","","","0006","","","","","","","","2","03","","","","00000000","K","ZPRIM_ID","A","","","H","","","","","","00000000","0000","","0","","","","","1","1","1","0","0","","","","","","DA4HO01I2JPFZ2674GZLEIM0P","","","","","","","0000","","","",11,"DA4HOQG67K82A435KQRFMPDDL","DA4HOQG67KCODU1PHZD419R09","Mixed or Multiple Ethnic Groups","0008","","S","","L","X","","","","",null,null,null,null,null,null,11,"0ORGUNIT","0CRM_SRVORG","Service Org. CRM","0000","X","1","0","0","","","","","0000","",null,null,null,null,null,11,"D4O21W1IBUDEJ9LV077JD8NI1","DA4HOQG67KKD81BAPDP8PJPQ1","","","","","","00","X","0","0","","",null,null,null,null,null,null,null,null,null,null,null,null,null,null,null,null,null,null,null,null,null,null,null,null,null,null,null,null,null,null,null,null,null,null,null,null,8,"ZBUDH","1","P","I","EQ","20150930","30/09/2015","","","","0","","0","","0","Master Data Key Date","60","","","0DATE","20150930",null,null,null,null,null,null,null,null,null,null,null,null,null,null,null,null,null,null,null,null,null,null,null,null,null,null,null,null,11,"0000000040",""]
[null,null,null,null,null,null,null,null,null,null,null,null,null,null,null,null,null,null,null,null,null,null,null,null,null,null,null,null,null,null,10,"0CNTRCTTYPE","Contract Type","X","","","0007","","","","","","","","1","03","","","","00000000","K","0CNTRCTTYPE","A","","","H","","","","","","00000000","0000","","0","","","","","1","1","1","0","0","","","","","","DB0ZCI83WEWAMKG013IL0HDDL","","","","","","","0000","","","",11,"D4O21W1IBUB3HEML1KWP5YGOP","D4O21W1IBULV2377J4ZA3Y0HL","Grade 8 P/T","0008","","S","","L","","","","","",null,null,null,null,null,null,11,"0ORGUNIT","0LOGSYS","Source System","0000","X","1","0","0","","","","","0000","",null,null,null,null,null,11,"D4O21W1IBUDEJ9LV077JD8NI1","DA4HOQG67KL4WNN20X4URZ3ZT","","","","","","00","X","0","0","","",null,null,null,null,null,null,null,null,null,null,null,null,null,null,null,null,null,null,null,null,null,null,null,null,null,null,null,null,null,null,null,null,null,null,null,null,8,"ZZPERAR","1","M","","","","","","","","0","","0","","0","ZPersonnel Area","60","","","ZPERSAREA","",null,null,null,null,null,null,null,null,null,null,null,null,null,null,null,null,null,null,null,null,null,null,null,null,null,null,null,null,11,"0000000041",""]
[null,null,null,null,null,null,null,null,null,null,null,null,null,null,null,null,null,null,null,null,null,null,null,null,null,null,null,null,null,null,10,"DA4HOQG67K82A435KQRFMPDDL","Ethnicity Breakdown - Rev 2011","","X","X","0001","","","","","","","U","","00","","","","","K","DA4HOQG67K82A435KQRFMPDDL","A","","","","","","","","","00000000","0000","X","0","","","","","0","0","0","0","0","","","","","","DA4HOQG67K82A435KQRFMPDDL","","","","","","","0000","","","",11,"DA4HOQG67K82A435KQRFMPDDL","DA4HWYL5HGT0050M6CGMF31MH","Arab, Arab Scottish or Arab British","0009","","S","","L","X","","","","",null,null,null,null,null,null,11,"0ORGUNIT","0MAST_CCTR","Master Cost Center","0000","X","0","0","0","","","","","0000","",null,null,null,null,null,11,"D4O21W1IBUDEJ9LV077JD8NI1","DA4HOQG67KLWL9YTCGKGUEI9L","","","","","","00","X","0","0","","",null,null,null,null,null,null,null,null,null,null,null,null,null,null,null,null,null,null,null,null,null,null,null,null,null,null,null,null,null,null,null,null,null,null,null,null,7,"ZS_DT_1","1","P","I","EQ","20150930","30/09/2015","","","","0","","0","","0","Target date 1","60","","","ZEMP_STRT","20150930",null,null,null,null,null,null,null,null,null,null,null,null,null,null,null,null,null,null,null,null,null,null,null,null,null,null,null,null,11,"0000000042","0"]
[null,null,null,null,null,null,null,null,null,null,null,null,null,null,null,null,null,null,null,null,null,null,null,null,null,null,null,null,null,null,10,"D4O21W1IBUB3HEML1KWP5YGOP","WP Bandings","","X","Y","0001","","","","","","","U","","00","","","","","K","D4O21W1IBUB3HEML1KWP5YGOP","A","","","","","","","","","00000000","0000","","0","","","","","0","0","0","0","0","","","","","","D4O21W1IBUB3HEML1KWP5YGOP","","","","","","","0000","","","",11,"D4O21W1IBUB3HEML1KWP5YGOP","D4O21W1IBV18QHQDXXNJGHXX5","Grade 8 Total","0009","","S","","L","","","","","",null,null,null,null,null,null,11,"0ORGUNIT","0PERS_AREA","Personnel Area","0000","X","1","0","0","","","","","0000","",null,null,null,null,null,11,"D4O21W1IBUDEJ9LV077JD8NI1","DA4HOQG67KMO9WAKO002WTWJD","","","","","","00","X","0","0","","",null,null,null,null,null,null,null,null,null,null,null,null,null,null,null,null,null,null,null,null,null,null,null,null,null,null,null,null,null,null,null,null,null,null,null,null,7,"ZP_ORGUN","2","M","","","","","","","","0","","0","","0","Org Unit Hierarchy (Selection option, optional)","60","","","0ORGUNIT","",null,null,null,null,null,null,null,null,null,null,null,null,null,null,null,null,null,null,null,null,null,null,null,null,null,null,null,null,11,"0000000043","0"]
[null,null,null,null,null,null,null,null,null,null,null,null,null,null,null,null,null,null,null,null,null,null,null,null,null,null,null,null,null,null,9,"0PAYRL_AREA","Payroll Area","X","","","0001","","","","","","","","0","03","","","","00000000","K","0PAYRL_AREA","A","","","H","","","","","","00000000","0000","","0","","","","","1","1","1","0","0","","","","","","DA4HO01I2JLLJYJEIRTJ2DMNT","","","","","","","0000","","","",11,"DA4HOQG67K82A435KQRFMPDDL","DA4HOQG67KDG2GDGTISQ3P5A1","Total Other Ethnic Background","0010","","S","","L","X","","","","",null,null,null,null,null,null,11,"0ORGUNIT","0PERS_SAREA","Personnel Subarea","0000","X","1","0","0","","","","","0000","",null,null,null,null,null,11,"D4O21W1IBUDEJ9LV077JD8NI1","DA4HOQG67KNFYIMBZJFOZ9AT5","","2","","","","00","X","0","0","","",null,null,null,null,null,null,null,null,null,null,null,null,null,null,null,null,null,null,null,null,null,null,null,null,null,null,null,null,null,null,null,null,null,null,null,null,7,"ZBUDH","1","P","I","EQ","20150930","30/09/2015","","","","0","","0","","0","Master Data Key Date","60","","","0DATE","20150930",null,null,null,null,null,null,null,null,null,null,null,null,null,null,null,null,null,null,null,null,null,null,null,null,null,null,null,null,11,"0000000109","0"]
[null,null,null,null,null,null,null,null,null,null,null,null,null,null,null,null,null,null,null,null,null,null,null,null,null,null,null,null,null,null,9,"ZPERSAREA","ZPersonal Area","X","","","0002","","Financial","","","","","","2","03","","","","00000000","K","ZPERSAREA","A","","","H","","","","","","00000000","0000","","0","","1","","","1","1","1","0","0","","","","","","DA4HO01I2JMD8KV5UB954T0XL","","","","","","","0000","","","",11,"D4O21W1IBUB3HEML1KWP5YGOP","D4O21W1IBUFPL4L4YTIDKIUBD","ACZ Grade 8 F/T","0010","","S","","L","","","","","",null,null,null,null,null,null,11,"0ORGUNIT","0PLANT","Plant","0000","X","0","0","0","","","","","0000","",null,null,null,null,null,11,"D4O21W1IBUDEJ9LV077JD8NI1","DA4HOQG67KO7N4Y3B2VB1OP2X","","","","","","00","X","0","0","","",null,null,null,null,null,null,null,null,null,null,null,null,null,null,null,null,null,null,null,null,null,null,null,null,null,null,null,null,null,null,null,null,null,null,null,null,7,"ZZPERAR","1","M","","","","","","","","0","","0","","0","ZPersonnel Area","60","","","ZPERSAREA","",null,null,null,null,null,null,null,null,null,null,null,null,null,null,null,null,null,null,null,null,null,null,null,null,null,null,null,null,11,"0000000113",""]
[null,null,null,null,null,null,null,null,null,null,null,null,null,null,null,null,null,null,null,null,null,null,null,null,null,null,null,null,null,null,9,"0ORGUNIT","Organizational Unit","X","","","0003","","","","","","","","1","03","X","ORGEH","000","20150930","K","0ORGUNIT","A","","","H","0ORGUNIT","A","","","","00000000","0000","","0","","","","2","1","1","1","0","0","","","","","","DA4HO01I2JN4X76X5UOR78F7D","","","","","","","0000","","","",11,"D4O21W1IBUB3HEML1KWP5YGOP","D4O21W1IBUMMQPIYUOEW6DERD","ACZ Grade 8 P/T","0011","","S","","L","","","","","",null,null,null,null,null,null,11,"0ORGUNIT","0PURCH_ORG","Purchasing org.","0000","X","0","0","0","","","","","0000","",null,null,null,null,null,11,"D4O21W1IBUDEJ9LV077JD8NI1","DA4HOQG67KOZBR9UMMAX443CP","","2","","","","00","X","0","0","","",null,null,null,null,null,null,null,null,null,null,null,null,null,null,null,null,null,null,null,null,null,null,null,null,null,null,null,null,null,null,null,null,null,null,null,null,6,"ZS_DT_1","1","P","I","EQ","20150930","30/09/2015","","","","0","","0","","0","Target date 1","60","","","ZEMP_STRT","20150930",null,null,null,null,null,null,null,null,null,null,null,null,null,null,null,null,null,null,null,null,null,null,null,null,null,null,null,null,11,"0000000120",""]
[null,null,null,null,null,null,null,null,null,null,null,null,null,null,null,null,null,null,null,null,null,null,null,null,null,null,null,null,null,null,9,"0PERS_SAREA","Personnel Subarea","X","","","0004","","","","","","","U","1","03","","","","00000000","K","0PERS_SAREA","A","","","H","","","","","","00000000","0000","","0","","","","","1","1","1","0","0","","","","","","DA4HO01I2JNWLTIOHE4D9NTH5","","","","","","","0000","","","",11,"DA4HOQG67K82A435KQRFMPDDL","DA4HOQG67KGISXOI3OJ6DEQD5","Pakistani","0011","","S","","L","X","","","","",null,null,null,null,null,null,11,"0ORGUNIT","0PUR_GROUP","Purchasing group","0000","X","0","0","0","","","","","0000","",null,null,null,null,null,11,"D4O21W1IBUDEJ9LV077JD8NI1","DA4HOQG67KPR0DLLY5QJ6JHMH","","2","","","","00","X","0","0","","",null,null,null,null,null,null,null,null,null,null,null,null,null,null,null,null,null,null,null,null,null,null,null,null,null,null,null,null,null,null,null,null,null,null,null,null,6,"ZP_ORGUN","2","M","","","","","","","","0","","0","","0","Org Unit Hierarchy (Selection option, optional)","60","","","0ORGUNIT","",null,null,null,null,null,null,null,null,null,null,null,null,null,null,null,null,null,null,null,null,null,null,null,null,null,null,null,null,11,"0000000121",""]
[null,null,null,null,null,null,null,null,null,null,null,null,null,null,null,null,null,null,null,null,null,null,null,null,null,null,null,null,null,null,9,"ZTEILK","Checkbox for Part-Ti","X","","","0005","","","","","","","","1","03","","","","00000000","K","ZTEILK","A","","","H","","","","","","00000000","0000","","0","","","","","1","1","1","0","0","","","","","","DA4HO01I2JOOAFUFSXJZC37QX","","","","","","","0000","","","",11,"DA4HOQG67K82A435KQRFMPDDL","DA4HOQG67KE7R2P8528C64JJT","Indian","0012","","S","","L","X","","","","",null,null,null,null,null,null,11,"0ORGUNIT","0SALESORG","Sales Organization","0000","X","0","0","0","","","","","0000","",null,null,null,null,null,11,"D4O21W1IBUDEJ9LV077JD8NI1","DA4HQT1FQ21CBCL0CVM3F7BP5","","","","","","00","X","0","0","","",null,null,null,null,null,null,null,null,null,null,null,null,null,null,null,null,null,null,null,null,null,null,null,null,null,null,null,null,null,null,null,null,null,null,null,null,6,"ZBUDH","1","P","I","EQ","20150930","30/09/2015","","","","0","","0","","0","Master Data Key Date","60","","","0DATE","20150930",null,null,null,null,null,null,null,null,null,null,null,null,null,null,null,null,null,null,null,null,null,null,null,null,null,null,null,null,11,"0000010001","DA4HO01I2JQZCATPRJUTJDEK9"]
[null,null,null,null,null,null,null,null,null,null,null,null,null,null,null,null,null,null,null,null,null,null,null,null,null,null,null,null,null,null,9,"ZPRIM_ID","ZPrimary Employee ID","X","","","0006","","","","","","","","2","03","","","","00000000","K","ZPRIM_ID","A","","","H","","","","","","00000000","0000","","0","","","","","1","1","1","0","0","","","","","","DA4HO01I2JPFZ2674GZLEIM0P","","","","","","","0000","","","",11,"D4O21W1IBUB3HEML1KWP5YGOP","D4O21W1IBV0H1VEMME7XE2JND","ACZ Grade 8 Total","0012","","S","","L","","","","","",null,null,null,null,null,null,11,"0ORGUNIT","0SALES_GRP","Sales group","0000","X","0","0","0","","","","","0000","",null,null,null,null,null,11,"D4O21W1IBUDEJ9LV077JD8NI1","DA4HQT1FQ223ZYWROF1PHMPYX","","","","","","00","X","0","0","","",null,null,null,null,null,null,null,null,null,null,null,null,null,null,null,null,null,null,null,null,null,null,null,null,null,null,null,null,null,null,null,null,null,null,null,null,6,"ZZPERAR","1","M","","","","","","","","0","","0","","0","ZPersonnel Area","60","","","ZPERSAREA","",null,null,null,null,null,null,null,null,null,null,null,null,null,null,null,null,null,null,null,null,null,null,null,null,null,null,null,null,11,"0000010002","DA4HO01I2JEOEDLKMWX0GJ27T"]
[null,null,null,null,null,null,null,null,null,null,null,null,null,null,null,null,null,null,null,null,null,null,null,null,null,null,null,null,null,null,9,"0CNTRCTTYPE","Contract Type","X","","","0007","","","","","","","","1","03","","","","00000000","K","0CNTRCTTYPE","A","","","H","","","","","","00000000","0000","","0","","","","","1","1","1","0","0","","","","","","DB0ZCI83WEWAMKG013IL0HDDL","","","","","","","0000","","","",11,"DA4HOQG67K82A435KQRFMPDDL","DA4HOQG67KEZFP0ZGLNY8JXTL","Bangladeshi","0013","","S","","L","X","","","","",null,null,null,null,null,null,11,"0ORGUNIT","0SALES_OFF","Sales Office","0000","X","0","0","0","","","","","0000","",null,null,null,null,null,11,"D4O21W1IBUDEJ9LV077JD8NI1","DA4HQT1FQ22VOL8IZYHBK248P","","","","","","00","X","0","0","","",null,null,null,null,null,null,null,null,null,null,null,null,null,null,null,null,null,null,null,null,null,null,null,null,null,null,null,null,null,null,null,null,null,null,null,null,5,"ZS_DT_1","1","P","I","EQ","20150930","30/09/2015","","","","0","","0","","0","Target date 1","60","","","ZEMP_STRT","20150930",null,null,null,null,null,null,null,null,null,null,null,null,null,null,null,null,null,null,null,null,null,null,null,null,null,null,null,null,11,"0000000105",""]
[null,null,null,null,null,null,null,null,null,null,null,null,null,null,null,null,null,null,null,null,null,null,null,null,null,null,null,null,null,null,9,"DA4HOQG67K82A435KQRFMPDDL","Ethnicity Breakdown - Rev 2011","","X","X","0001","","","","","","","U","","00","","","","","K","DA4HOQG67K82A435KQRFMPDDL","A","","","","","","","","","00000000","0000","X","0","","","","","0","0","0","0","0","","","","","","DA4HOQG67K82A435KQRFMPDDL","","","","","","","0000","","","",11,"D4O21W1IBUB3HEML1KWP5YGOP","D4O21W1IBUH8YD8NLWDLPDMUX","Grade 9 - 15 F/T","0013","","S","","L","","","","","",null,null,null,null,null,null,11,"0CNTRCTTYPE","0CNTRCTISFT","Fixed-Term Contract","0000","X","2","0","0","","","","","0000","",null,null,null,null,null,11,"D4O21W1IBUDEJ9LV077JD8NI1","DA4HWYL5HGT0050M6CGMF31MH","","","","","","00","X","0","0","","",null,null,null,null,null,null,null,null,null,null,null,null,null,null,null,null,null,null,null,null,null,null,null,null,null,null,null,null,null,null,null,null,null,null,null,null,5,"ZP_ORGUN","2","M","","","","","","","","0","","0","","0","Org Unit Hierarchy (Selection option, optional)","60","","","0ORGUNIT","",null,null,null,null,null,null,null,null,null,null,null,null,null,null,null,null,null,null,null,null,null,null,null,null,null,null,null,null,11,"0000000106",""]
[null,null,null,null,null,null,null,null,null,null,null,null,null,null,null,null,null,null,null,null,null,null,null,null,null,null,null,null,null,null,9,"D4O21W1IBUB3HEML1KWP5YGOP","WP Bandings","","X","Y","0001","","","","","","","U","","00","","","","","K","D4O21W1IBUB3HEML1KWP5YGOP","A","","","","","","","","","00000000","0000","","0","","","","","0","0","0","0","0","","","","","","D4O21W1IBUB3HEML1KWP5YGOP","","","","","","","0000","","","",11,"DA4HOQG67K82A435KQRFMPDDL","DA4HOQG67KFR4BCQS53KAZC3D","Chinese","0014","","S","","L","X","","","","",null,null,null,null,null,null,10,"0ORGUNIT","0BBPPURGRPX","Ind.Purchasing Group","0000","X","2","0","0","","","","","0000","",null,null,null,null,null,11,"D4O21W1IBUDEJ9LV077JD8NI1","DA4IKULODJ1MZ318V3RCW3FND","","","","","","00","X","0","0","","",null,null,null,null,null,null,null,null,null,null,null,null,null,null,null,null,null,null,null,null,null,null,null,null,null,null,null,null,null,null,null,null,null,null,null,null,5,"ZBUDH","1","P","I","EQ","20150930","30/09/2015","","","","0","","0","","0","Master Data Key Date","60","","","0DATE","20150930",null,null,null,null,null,null,null,null,null,null,null,null,null,null,null,null,null,null,null,null,null,null,null,null,null,null,null,null,11,"0000000112","0"]
[null,null,null,null,null,null,null,null,null,null,null,null,null,null,null,null,null,null,null,null,null,null,null,null,null,null,null,null,null,null,8,"0PAYRL_AREA","Payroll Area","X","","","0001","","","","","","","","0","03","","","","00000000","K","0PAYRL_AREA","A","","","H","","","","","","00000000","0000","","0","","","","","1","1","1","0","0","","","","","","DA4HO01I2JLLJYJEIRTJ2DMNT","","","","","","","0000","","","",11,"D4O21W1IBUB3HEML1KWP5YGOP","DEN03PYIT5FSSAA2U7ST53H15","Grade 9 - 15 P/T","0014","","S","","L","","","","","",null,null,null,null,null,null,10,"0ORGUNIT","0BBPPURORGX","Ind. Purchasing Org.","0000","X","2","0","0","","","","","0000","",null,null,null,null,null,11,"D4O21W1IBUDEJ9LV077JD8NI1","DA4IKULODJ2ENPD06N6YYITX5","","","","","","00","X","0","0","","",null,null,null,null,null,null,null,null,null,null,null,null,null,null,null,null,null,null,null,null,null,null,null,null,null,null,null,null,null,null,null,null,null,null,null,null,5,"ZZPERAR","1","M","","","","","","","","0","","0","","0","ZPersonnel Area","60","","","ZPERSAREA","",null,null,null,null,null,null,null,null,null,null,null,null,null,null,null,null,null,null,null,null,null,null,null,null,null,null,null,null,11,"0000000200","X"]
[null,null,null,null,null,null,null,null,null,null,null,null,null,null,null,null,null,null,null,null,null,null,null,null,null,null,null,null,null,null,8,"ZPERSAREA","ZPersonal Area","X","","","0002","","Education","","","","","","2","03","","","","00000000","K","ZPERSAREA","A","","","H","","","","","","00000000","0000","","0","","1","","","1","1","1","0","0","","","","","","DA4HO01I2JMD8KV5UB954T0XL","","","","","","","0000","","","",11,"DA4HOQG67K82A435KQRFMPDDL","DA4HOQG67KHAHK09F7YSFU4MX","Other Asian Background","0015","","S","","L","X","","","","",null,null,null,null,null,null,10,"0ORGUNIT","0BBP_BUYID","Buyer ID","0000","X","5","0","0","","","","","0000","",null,null,null,null,null,11,"D4O21W1IBUE67VXMBQN5FO1RT","DA4HOQG67K8TYQEWWA71P4RND","","","","","","00","X","0","0","","",null,null,null,null,null,null,null,null,null,null,null,null,null,null,null,null,null,null,null,null,null,null,null,null,null,null,null,null,null,null,null,null,null,null,null,null,4,"ZS_DT_1","1","P","I","EQ","20150930","30/09/2015","","","","0","","0","","0","Target date 1","60","","","ZEMP_STRT","20150930",null,null,null,null,null,null,null,null,null,null,null,null,null,null,null,null,null,null,null,null,null,null,null,null,null,null,null,null,11,"0000004000","X"]
[null,null,null,null,null,null,null,null,null,null,null,null,null,null,null,null,null,null,null,null,null,null,null,null,null,null,null,null,null,null,8,"0ORGUNIT","Organizational Unit","X","","","0003","","","","","","","","1","03","X","ORGEH","000","20150930","K","0ORGUNIT","A","","","H","0ORGUNIT","A","","","","00000000","0000","","0","","","","2","1","1","1","0","0","","","","","","DA4HO01I2JN4X76X5UOR78F7D","","","","","","","0000","","","",11,"D4O21W1IBUB3HEML1KWP5YGOP","D4O21W1IBUO63Y6HHRA4B87AX","Grade 9 - 15 Total","0015","","S","","L","","","","","",null,null,null,null,null,null,10,"0ORGUNIT","0BBP_ISCOMP","Organizational Unit is Company","0000","X","1","0","0","","","","","0000","",null,null,null,null,null,11,"D4O21W1IBUE67VXMBQN5FO1RT","DA4HOQG67K9LNCQO7TMNRK5X5","","","","","","00","X","0","0","","",null,null,null,null,null,null,null,null,null,null,null,null,null,null,null,null,null,null,null,null,null,null,null,null,null,null,null,null,null,null,null,null,null,null,null,null,4,"ZS_PSAR2","1","P","","","","","","","","0","","0","","0","Pers. Sub-Area - optional","60","","","0PERS_SAREA","",null,null,null,null,null,null,null,null,null,null,null,null,null,null,null,null,null,null,null,null,null,null,null,null,null,null,null,null,11,"0000009001","Workforce Profile Ethnicity Breakdown (2011) Revised"]
[null,null,null,null,null,null,null,null,null,null,null,null,null,null,null,null,null,null,null,null,null,null,null,null,null,null,null,null,null,null,8,"0PERS_SAREA","Personnel Subarea","X","","","0004","","","","","","","U","1","03","","","","00000000","K","0PERS_SAREA","A","","","H","","","","","","00000000","0000","","0","","","","","1","1","1","0","0","","","","","","DA4HO01I2JNWLTIOHE4D9NTH5","","","","","","","0000","","","",11,"DA4HOQG67K82A435KQRFMPDDL","DA4HOQG67KI266C0QREEI9IWP","Asian Total","0016","X","S","","L","X","","","","",null,null,null,null,null,null,10,"0ORGUNIT","0BUS_AREA","Business area","0000","X","0","0","0","","","","","0000","",null,null,null,null,null,11,"D4O21W1IBUE67VXMBQN5FO1RT","DA4HOQG67KADBZ2FJD29TZK6X","","","","","","00","X","0","0","","",null,null,null,null,null,null,null,null,null,null,null,null,null,null,null,null,null,null,null,null,null,null,null,null,null,null,null,null,null,null,null,null,null,null,null,null,4,"ZP_ORGUN","2","M","","","","","","","","0","","0","","0","Org Unit Hierarchy (Selection option, optional)","60","","","0ORGUNIT","",null,null,null,null,null,null,null,null,null,null,null,null,null,null,null,null,null,null,null,null,null,null,null,null,null,null,null,null,11,"0000000114","1"]
[null,null,null,null,null,null,null,null,null,null,null,null,null,null,null,null,null,null,null,null,null,null,null,null,null,null,null,null,null,null,8,"ZTEILK","Checkbox for Part-Ti","X","","","0005","","","","","","","","1","03","","","","00000000","K","ZTEILK","A","","","H","","","","","","00000000","0000","","0","","","","","1","1","1","0","0","","","","","","DA4HO01I2JOOAFUFSXJZC37QX","","","","","","","0000","","","",11,"D4O21W1IBUB3HEML1KWP5YGOP","D4O21W1IBUGH9QWWACXZMY8L5","ACZ Grade 9 - 15 F/T","0016","","S","","L","","","","","",null,null,null,null,null,null,10,"0ORGUNIT","0COMP_CODE","Company code","0000","X","0","0","0","","","","","0000","",null,null,null,null,null,11,"D4O21W1IBUE67VXMBQN5FO1RT","DA4HOQG67KBWP7PY6FXHYUCQH","","","","","","00","X","0","0","","",null,null,null,null,null,null,null,null,null,null,null,null,null,null,null,null,null,null,null,null,null,null,null,null,null,null,null,null,null,null,null,null,null,null,null,null,4,"ZBUDH","1","P","I","EQ","20150930","30/09/2015","","","","0","","0","","0","Master Data Key Date","60","","","0DATE","20150930",null,null,null,null,null,null,null,null,null,null,null,null,null,null,null,null,null,null,null,null,null,null,null,null,null,null,null,null,10,"0000000107","DA4HO01I2JEOEDLKMWX0GJ27T"]
[null,null,null,null,null,null,null,null,null,null,null,null,null,null,null,null,null,null,null,null,null,null,null,null,null,null,null,null,null,null,8,"ZPRIM_ID","ZPrimary Employee ID","X","","","0006","","","","","","","","2","03","","","","00000000","K","ZPRIM_ID","A","","","H","","","","","","00000000","0000","","0","","","","","1","1","1","0","0","","","","","","DA4HO01I2JPFZ2674GZLEIM0P","","","","","","","0000","","","",11,"DA4HOQG67K82A435KQRFMPDDL","DA4HOQG67KITUSNS2AU0KOX6H","African","0017","","S","","L","X","","","","",null,null,null,null,null,null,10,"0ORGUNIT","0CO_MST_AR","Controlling Area of Master Cost Center","0000","X","0","0","0","","","","","0000","",null,null,null,null,null,11,"D4O21W1IBUE67VXMBQN5FO1RT","DA4HOQG67KCODU1PHZD419R09","","","","","","00","X","0","0","","",null,null,null,null,null,null,null,null,null,null,null,null,null,null,null,null,null,null,null,null,null,null,null,null,null,null,null,null,null,null,null,null,null,null,null,null,4,"ZZPERAR","1","M","","","","","","","","0","","0","","0","ZPersonnel Area","60","","","ZPERSAREA","",null,null,null,null,null,null,null,null,null,null,null,null,null,null,null,null,null,null,null,null,null,null,null,null,null,null,null,null,10,"0000000100","X"]
[null,null,null,null,null,null,null,null,null,null,null,null,null,null,null,null,null,null,null,null,null,null,null,null,null,null,null,null,null,null,8,"0CNTRCTTYPE","Contract Type","X","","","0007","","","","","","","","1","03","","","","00000000","K","0CNTRCTTYPE","A","","","H","","","","","","00000000","0000","","0","","","","","1","1","1","0","0","","","","","","DB0ZCI83WEWAMKG013IL0HDDL","","","","","","","0000","","","",11,"D4O21W1IBUB3HEML1KWP5YGOP","D4O21W1IBUNEFBUQ67UI8ST15","ACZ Grade 9 - 15 P/T","0017","","S","","L","","","","","",null,null,null,null,null,null,10,"0ORGUNIT","0CRMSALGRPX","Sls Group: Indicator","0000","X","2","0","0","","","","","0000","",null,null,null,null,null,11,"D4O21W1IBUE67VXMBQN5FO1RT","DA4HOQG67KDG2GDGTISQ3P5A1","","","","","","00","X","0","0","","",null,null,null,null,null,null,null,null,null,null,null,null,null,null,null,null,null,null,null,null,null,null,null,null,null,null,null,null,null,null,null,null,null,null,null,null,null,null,null,null,null,null,null,null,null,null,null,null,null,null,null,null,null,null,null,null,null,null,null,null,null,null,null,null,null,null,null,null,null,null,null,null,null,null,null,null,null,null,null,null,null,null,null,null,null,null,10,"0000000101",""]
[null,null,null,null,null,null,null,null,null,null,null,null,null,null,null,null,null,null,null,null,null,null,null,null,null,null,null,null,null,null,8,"DA4HOQG67K82A435KQRFMPDDL","Ethnicity Breakdown - Rev 2011","","X","X","0001","","","","","","","U","","00","","","","","K","DA4HOQG67K82A435KQRFMPDDL","A","","","","","","","","","00000000","0000","X","0","","","","","0","0","0","0","0","","","","","","DA4HOQG67K82A435KQRFMPDDL","","","","","","","0000","","","",11,"D4O21W1IBUB3HEML1KWP5YGOP","DEN04FDC1K04NBJW47LA7T915","ACZ Grade 9 - 15 Total","0018","","S","","L","","","","","",null,null,null,null,null,null,10,"0ORGUNIT","0CRMSALOFFX","Sls Office:Indicator","0000","X","2","0","0","","","","","0000","",null,null,null,null,null,11,"D4O21W1IBUE67VXMBQN5FO1RT","DA4HOQG67KE7R2P8528C64JJT","","","","","","00","X","0","0","","",null,null,null,null,null,null,null,null,null,null,null,null,null,null,null,null,null,null,null,null,null,null,null,null,null,null,null,null,null,null,null,null,null,null,null,null,null,null,null,null,null,null,null,null,null,null,null,null,null,null,null,null,null,null,null,null,null,null,null,null,null,null,null,null,null,null,null,null,null,null,null,null,null,null,null,null,null,null,null,null,null,null,null,null,null,null,10,"0000000104","1"]
[null,null,null,null,null,null,null,null,null,null,null,null,null,null,null,null,null,null,null,null,null,null,null,null,null,null,null,null,null,null,8,"D4O21W1IBUB3HEML1KWP5YGOP","WP Bandings","","X","Y","0001","","","","","","","U","","00","","","","","K","D4O21W1IBUB3HEML1KWP5YGOP","A","","","","","","","","","00000000","0000","","0","","","","","0","0","0","0","0","","","","","","D4O21W1IBUB3HEML1KWP5YGOP","","","","","","","0000","","","",11,"DA4HOQG67K82A435KQRFMPDDL","DA4IKULODJ1MZ318V3RCW3FND","Other African Background","0018","","S","","L","X","","","","",null,null,null,null,null,null,10,"0ORGUNIT","0CRMSALORGX","Sales Org. Indicator","0000","X","2","0","0","","","","","0000","",null,null,null,null,null,11,"D4O21W1IBUE67VXMBQN5FO1RT","DA4HOQG67KEZFP0ZGLNY8JXTL","","","","","","00","X","0","0","","",null,null,null,null,null,null,null,null,null,null,null,null,null,null,null,null,null,null,null,null,null,null,null,null,null,null,null,null,null,null,null,null,null,null,null,null,null,null,null,null,null,null,null,null,null,null,null,null,null,null,null,null,null,null,null,null,null,null,null,null,null,null,null,null,null,null,null,null,null,null,null,null,null,null,null,null,null,null,null,null,null,null,null,null,null,null,10,"0000000103",""]
[null,null,null,null,null,null,null,null,null,null,null,null,null,null,null,null,null,null,null,null,null,null,null,null,null,null,null,null,null,null,7,"0PAYRL_AREA","Payroll Area","X","","","0001","","","","","","","","0","03","","","","00000000","K","0PAYRL_AREA","A","","","H","","","","","","00000000","0000","","0","","","","","1","1","1","0","0","","","","","","DA4HO01I2JLLJYJEIRTJ2DMNT","","","","","","","0000","","","",11,"D4O21W1IBUB3HEML1KWP5YGOP","D4O21W1IBUWMMRRU0P1V1XKAH","Other (Not Migrated) F/T","0019","","F","","L","","","","","",null,null,null,null,null,null,10,"0ORGUNIT","0CRMSRVTGRP","Ex. CRM Service Org.","0000","X","1","0","0","","","","","0000","",null,null,null,null,null,11,"D4O21W1IBUE67VXMBQN5FO1RT","DA4HOQG67KFR4BCQS53KAZC3D","","","","","","00","X","0","0","","",null,null,null,null,null,null,null,null,null,null,null,null,null,null,null,null,null,null,null,null,null,null,null,null,null,null,null,null,null,null,null,null,null,null,null,null,null,null,null,null,null,null,null,null,null,null,null,null,null,null,null,null,null,null,null,null,null,null,null,null,null,null,null,null,null,null,null,null,null,null,null,null,null,null,null,null,null,null,null,null,null,null,null,null,null,null,10,"0000000102","1"]
[null,null,null,null,null,null,null,null,null,null,null,null,null,null,null,null,null,null,null,null,null,null,null,null,null,null,null,null,null,null,7,"ZPERSAREA","ZPersonal Area","X","","","0002","","Development and Regeneration","","","","","","2","03","","","","00000000","K","ZPERSAREA","A","","","H","","","","","","00000000","0000","","0","","1","","","1","1","1","0","0","","","","","","DA4HO01I2JMD8KV5UB954T0XL","","","","","","","0000","","","",11,"DA4HOQG67K82A435KQRFMPDDL","DA4IKULODJ2ENPD06N6YYITX5","Caribbean","0019","","S","","L","X","","","","",null,null,null,null,null,null,10,"0ORGUNIT","0CRM_SALGRP","CRM Sales Group","0000","X","1","0","0","","","","","0000","",null,null,null,null,null,11,"D4O21W1IBUE67VXMBQN5FO1RT","DA4HOQG67KGISXOI3OJ6DEQD5","","","","","","00","X","0","0","","",null,null,null,null,null,null,null,null,null,null,null,null,null,null,null,null,null,null,null,null,null,null,null,null,null,null,null,null,null,null,null,null,null,null,null,null,null,null,null,null,null,null,null,null,null,null,null,null,null,null,null,null,null,null,null,null,null,null,null,null,null,null,null,null,null,null,null,null,null,null,null,null,null,null,null,null,null,null,null,null,null,null,null,null,null,null,10,"0000000108",""]
[null,null,null,null,null,null,null,null,null,null,null,null,null,null,null,null,null,null,null,null,null,null,null,null,null,null,null,null,null,null,7,"0ORGUNIT","Organizational Unit","X","","","0003","","","","","","","","1","03","X","ORGEH","000","20150930","K","0ORGUNIT","A","","","H","0ORGUNIT","A","","","","00000000","0000","","0","","","","2","1","1","1","0","0","","","","","","DA4HO01I2JN4X76X5UOR78F7D","","","","","","","0000","","","",11,"DA4HOQG67K82A435KQRFMPDDL","DA4HOQG67KJLJEZJDU9MN4BG9","Black","0020","","S","","L","X","","","","",null,null,null,null,null,null,10,"0ORGUNIT","0CRM_SALOFF","CRM Sales Office","0000","X","1","0","0","","","","","0000","",null,null,null,null,null,11,"D4O21W1IBUE67VXMBQN5FO1RT","DA4HOQG67KHAHK09F7YSFU4MX","","","","","","00","X","0","0","","",null,null,null,null,null,null,null,null,null,null,null,null,null,null,null,null,null,null,null,null,null,null,null,null,null,null,null,null,null,null,null,null,null,null,null,null,null,null,null,null,null,null,null,null,null,null,null,null,null,null,null,null,null,null,null,null,null,null,null,null,null,null,null,null,null,null,null,null,null,null,null,null,null,null,null,null,null,null,null,null,null,null,null,null,null,null,10,"0000009002","D4O21W1IBUB3HEML1KWP5YGOP"]
[null,null,null,null,null,null,null,null,null,null,null,null,null,null,null,null,null,null,null,null,null,null,null,null,null,null,null,null,null,null,7,"0PERS_SAREA","Personnel Subarea","X","","","0004","","","","","","","U","1","03","","","","00000000","K","0PERS_SAREA","A","","","H","","","","","","00000000","0000","","0","","","","","1","1","1","0","0","","","","","","DA4HO01I2JNWLTIOHE4D9NTH5","","","","","","","0000","","","",11,"D4O21W1IBUB3HEML1KWP5YGOP","DEN07Y1DTSNAWTLQYCBLILED5","Other (Not Migrated) P/T","0020","","F","","L","","","","","",null,null,null,null,null,null,10,"0ORGUNIT","0CRM_SALORG","CRM Sales Org.","0000","X","1","0","0","","","","","0000","",null,null,null,null,null,11,"D4O21W1IBUE67VXMBQN5FO1RT","DA4HOQG67KI266C0QREEI9IWP","","","","","","00","X","0","0","","",null,null,null,null,null,null,null,null,null,null,null,null,null,null,null,null,null,null,null,null,null,null,null,null,null,null,null,null,null,null,null,null,null,null,null,null,null,null,null,null,null,null,null,null,null,null,null,null,null,null,null,null,null,null,null,null,null,null,null,null,null,null,null,null,null,null,null,null,null,null,null,null,null,null,null,null,null,null,null,null,null,null,null,null,null,null,10,"0000009000",""]
[null,null,null,null,null,null,null,null,null,null,null,null,null,null,null,null,null,null,null,null,null,null,null,null,null,null,null,null,null,null,7,"ZTEILK","Checkbox for Part-Ti","X","","","0005","","","","","","","","1","03","","","","00000000","K","ZTEILK","A","","","H","","","","","","00000000","0000","","0","","","","","1","1","1","0","0","","","","","","DA4HO01I2JOOAFUFSXJZC37QX","","","","","","","0000","","","",11,"D4O21W1IBUB3HEML1KWP5YGOP","DEN07Y1DTSPLYOL0WYMFPVL6H","Other (Not Migrated) Total","0021","","F","","L","","","","","",null,null,null,null,null,null,10,"0ORGUNIT","0CRM_SRVORG","Service Org. CRM","0000","X","1","0","0","","","","","0000","",null,null,null,null,null,11,"D4O21W1IBUE67VXMBQN5FO1RT","DA4HOQG67KITUSNS2AU0KOX6H","","","","","","00","X","0","0","","",null,null,null,null,null,null,null,null,null,null,null,null,null,null,null,null,null,null,null,null,null,null,null,null,null,null,null,null,null,null,null,null,null,null,null,null,null,null,null,null,null,null,null,null,null,null,null,null,null,null,null,null,null,null,null,null,null,null,null,null,null,null,null,null,null,null,null,null,null,null,null,null,null,null,null,null,null,null,null,null,null,null,null,null,null,null,10,"0000000010",""]
[null,null,null,null,null,null,null,null,null,null,null,null,null,null,null,null,null,null,null,null,null,null,null,null,null,null,null,null,null,null,7,"ZPRIM_ID","ZPrimary Employee ID","X","","","0006","","","","","","","","2","03","","","","00000000","K","ZPRIM_ID","A","","","H","","","","","","00000000","0000","","0","","","","","1","1","1","0","0","","","","","","DA4HO01I2JPFZ2674GZLEIM0P","","","","","","","0000","","","",11,"DA4HOQG67K82A435KQRFMPDDL","DA4HOQG67KKD81BAPDP8PJPQ1","Other Caribbean / Black Background","0021","","S","","L","X","","","","",null,null,null,null,null,null,10,"0ORGUNIT","0LOGSYS","Source System","0000","X","1","0","0","","","","","0000","",null,null,null,null,null,11,"D4O21W1IBUE67VXMBQN5FO1RT","DA4HOQG67KJLJEZJDU9MN4BG9","","","","","","00","X","0","0","","",null,null,null,null,null,null,null,null,null,null,null,null,null,null,null,null,null,null,null,null,null,null,null,null,null,null,null,null,null,null,null,null,null,null,null,null,null,null,null,null,null,null,null,null,null,null,null,null,null,null,null,null,null,null,null,null,null,null,null,null,null,null,null,null,null,null,null,null,null,null,null,null,null,null,null,null,null,null,null,null,null,null,null,null,null,null,10,"0000000021",""]
[null,null,null,null,null,null,null,null,null,null,null,null,null,null,null,null,null,null,null,null,null,null,null,null,null,null,null,null,null,null,7,"0CNTRCTTYPE","Contract Type","X","","","0007","","","","","","","","1","03","","","","00000000","K","0CNTRCTTYPE","A","","","H","","","","","","00000000","0000","","0","","","","","1","1","1","0","0","","","","","","DB0ZCI83WEWAMKG013IL0HDDL","","","","","","","0000","","","",11,"DA4HOQG67K82A435KQRFMPDDL","DA4HOQG67KL4WNN20X4URZ3ZT","Black Total","0022","X","S","","L","X","","","","",null,null,null,null,null,null,10,"0ORGUNIT","0MAST_CCTR","Master Cost Center","0000","X","0","0","0","","","","","0000","",null,null,null,null,null,11,"D4O21W1IBUE67VXMBQN5FO1RT","DA4HOQG67KKD81BAPDP8PJPQ1","","","","","","00","X","0","0","","",null,null,null,null,null,null,null,null,null,null,null,null,null,null,null,null,null,null,null,null,null,null,null,null,null,null,null,null,null,null,null,null,null,null,null,null,null,null,null,null,null,null,null,null,null,null,null,null,null,null,null,null,null,null,null,null,null,null,null,null,null,null,null,null,null,null,null,null,null,null,null,null,null,null,null,null,null,null,null,null,null,null,null,null,null,null,10,"0000000022",""]
[null,null,null,null,null,null,null,null,null,null,null,null,null,null,null,null,null,null,null,null,null,null,null,null,null,null,null,null,null,null,7,"DA4HOQG67K82A435KQRFMPDDL","Ethnicity Breakdown - Rev 2011","","X","X","0001","","","","","","","U","","00","","","","","K","DA4HOQG67K82A435KQRFMPDDL","A","","","","","","","","","00000000","0000","X","0","","","","","0","0","0","0","0","","","","","","DA4HOQG67K82A435KQRFMPDDL","","","","","","","0000","","","",11,"D4O21W1IBUB3HEML1KWP5YGOP","D4O21W1IBUY600FCNRX36SCU1","Total Teaching Staff F/T","0022","","S","","L","","","","","",null,null,null,null,null,null,10,"0ORGUNIT","0PERS_AREA","Personnel Area","0000","X","1","0","0","","","","","0000","",null,null,null,null,null,11,"D4O21W1IBUE67VXMBQN5FO1RT","DA4HOQG67KL4WNN20X4URZ3ZT","","","","","","00","X","0","0","","",null,null,null,null,null,null,null,null,null,null,null,null,null,null,null,null,null,null,null,null,null,null,null,null,null,null,null,null,null,null,null,null,null,null,null,null,null,null,null,null,null,null,null,null,null,null,null,null,null,null,null,null,null,null,null,null,null,null,null,null,null,null,null,null,null,null,null,null,null,null,null,null,null,null,null,null,null,null,null,null,null,null,null,null,null,null,10,"0000000023",""]
[null,null,null,null,null,null,null,null,null,null,null,null,null,null,null,null,null,null,null,null,null,null,null,null,null,null,null,null,null,null,7,"D4O21W1IBUB3HEML1KWP5YGOP","WP Bandings","","X","Y","0001","","","","","","","U","","00","","","","","K","D4O21W1IBUB3HEML1KWP5YGOP","A","","","","","","","","","00000000","0000","","0","","","","","0","0","0","0","0","","","","","","D4O21W1IBUB3HEML1KWP5YGOP","","","","","","","0000","","","",11,"D4O21W1IBUB3HEML1KWP5YGOP","DEN0OSIFULCZTDTFE8U7RBQIH","Total Teaching Staff P/T","0023","","S","","L","","","","","",null,null,null,null,null,null,10,"0ORGUNIT","0PERS_SAREA","Personnel Subarea","0000","X","1","0","0","","","","","0000","",null,null,null,null,null,11,"D4O21W1IBUE67VXMBQN5FO1RT","DA4HOQG67KLWL9YTCGKGUEI9L","","","","","","00","X","0","0","","",null,null,null,null,null,null,null,null,null,null,null,null,null,null,null,null,null,null,null,null,null,null,null,null,null,null,null,null,null,null,null,null,null,null,null,null,null,null,null,null,null,null,null,null,null,null,null,null,null,null,null,null,null,null,null,null,null,null,null,null,null,null,null,null,null,null,null,null,null,null,null,null,null,null,null,null,null,null,null,null,null,null,null,null,null,null,10,"0000000030",""]
[null,null,null,null,null,null,null,null,null,null,null,null,null,null,null,null,null,null,null,null,null,null,null,null,null,null,null,null,null,null,6,"0PAYRL_AREA","Payroll Area","X","","","0001","","","","","","","","0","03","","","","00000000","K","0PAYRL_AREA","A","","","H","","","","","","00000000","0000","","0","","","","","1","1","1","0","0","","","","","","DA4HO01I2JLLJYJEIRTJ2DMNT","","","","","","","0000","","","",11,"DA4HOQG67K82A435KQRFMPDDL","DA4HOQG67KLWL9YTCGKGUEI9L","Total Black & Ethnic Employees","0023","X","S","","L","X","","","","",null,null,null,null,null,null,10,"0ORGUNIT","0PLANT","Plant","0000","X","0","0","0","","","","","0000","",null,null,null,null,null,11,"D4O21W1IBUE67VXMBQN5FO1RT","DA4HOQG67KMO9WAKO002WTWJD","","","","","","00","X","0","0","","",null,null,null,null,null,null,null,null,null,null,null,null,null,null,null,null,null,null,null,null,null,null,null,null,null,null,null,null,null,null,null,null,null,null,null,null,null,null,null,null,null,null,null,null,null,null,null,null,null,null,null,null,null,null,null,null,null,null,null,null,null,null,null,null,null,null,null,null,null,null,null,null,null,null,null,null,null,null,null,null,null,null,null,null,null,null,10,"0000000040",""]
[null,null,null,null,null,null,null,null,null,null,null,null,null,null,null,null,null,null,null,null,null,null,null,null,null,null,null,null,null,null,6,"ZPERSAREA","ZPersonal Area","X","","","0002","","","","","","","","2","03","","","","00000000","K","ZPERSAREA","A","","","H","","","","","","00000000","0000","","0","","","","","1","1","1","0","0","","","","","","DA4HO01I2JMD8KV5UB954T0XL","","","","","","","0000","","","",11,"D4O21W1IBUB3HEML1KWP5YGOP","DEN0OSIFULDRI056PS9TTR4S9","Total Teaching Staff","0024","","S","","L","","","","","",null,null,null,null,null,null,10,"0ORGUNIT","0PURCH_ORG","Purchasing org.","0000","X","0","0","0","","","","","0000","",null,null,null,null,null,11,"D4O21W1IBUE67VXMBQN5FO1RT","DA4HOQG67KNFYIMBZJFOZ9AT5","","2","","","","00","X","0","0","","",null,null,null,null,null,null,null,null,null,null,null,null,null,null,null,null,null,null,null,null,null,null,null,null,null,null,null,null,null,null,null,null,null,null,null,null,null,null,null,null,null,null,null,null,null,null,null,null,null,null,null,null,null,null,null,null,null,null,null,null,null,null,null,null,null,null,null,null,null,null,null,null,null,null,null,null,null,null,null,null,null,null,null,null,null,null,10,"0000000041",""]
[null,null,null,null,null,null,null,null,null,null,null,null,null,null,null,null,null,null,null,null,null,null,null,null,null,null,null,null,null,null,6,"0ORGUNIT","Organizational Unit","X","","","0003","","Corporate Services","","","","","","1","03","X","ORGEH","000","20150930","K","0ORGUNIT","A","","","H","0ORGUNIT","A","","","","00000000","0000","","0","","1","","2","1","1","1","0","0","","","","","","DA4HO01I2JN4X76X5UOR78F7D","","","","","","","0000","","","",11,"DA4HOQG67K82A435KQRFMPDDL","DA4HOQG67KMO9WAKO002WTWJD","Total Non Disclosed","0024","","S","","L","X","","","","",null,null,null,null,null,null,10,"0ORGUNIT","0PUR_GROUP","Purchasing group","0000","X","0","0","0","","","","","0000","",null,null,null,null,null,11,"D4O21W1IBUE67VXMBQN5FO1RT","DA4HOQG67KO7N4Y3B2VB1OP2X","","","","","","00","X","0","0","","",null,null,null,null,null,null,null,null,null,null,null,null,null,null,null,null,null,null,null,null,null,null,null,null,null,null,null,null,null,null,null,null,null,null,null,null,null,null,null,null,null,null,null,null,null,null,null,null,null,null,null,null,null,null,null,null,null,null,null,null,null,null,null,null,null,null,null,null,null,null,null,null,null,null,null,null,null,null,null,null,null,null,null,null,null,null,10,"0000000042","0"]
[null,null,null,null,null,null,null,null,null,null,null,null,null,null,null,null,null,null,null,null,null,null,null,null,null,null,null,null,null,null,6,"0PERS_SAREA","Personnel Subarea","X","","","0004","","","","","","","U","1","03","","","","00000000","K","0PERS_SAREA","A","","","H","","","","","","00000000","0000","","0","","","","","1","1","1","0","0","","","","","","DA4HO01I2JNWLTIOHE4D9NTH5","","","","","","","0000","","","",11,"DA4HOQG67K82A435KQRFMPDDL","DA4HOQG67KNFYIMBZJFOZ9AT5","Total White Employees %","0025","X","F","","L","","","","","",null,null,null,null,null,null,10,"0ORGUNIT","0SALESORG","Sales Organization","0000","X","0","0","0","","","","","0000","",null,null,null,null,null,11,"D4O21W1IBUE67VXMBQN5FO1RT","DA4HOQG67KOZBR9UMMAX443CP","","2","","","","00","X","0","0","","",null,null,null,null,null,null,null,null,null,null,null,null,null,null,null,null,null,null,null,null,null,null,null,null,null,null,null,null,null,null,null,null,null,null,null,null,null,null,null,null,null,null,null,null,null,null,null,null,null,null,null,null,null,null,null,null,null,null,null,null,null,null,null,null,null,null,null,null,null,null,null,null,null,null,null,null,null,null,null,null,null,null,null,null,null,null,10,"0000000043","0"]
[null,null,null,null,null,null,null,null,null,null,null,null,null,null,null,null,null,null,null,null,null,null,null,null,null,null,null,null,null,null,6,"ZTEILK","Checkbox for Part-Ti","X","","","0005","","","","","","","","1","03","","","","00000000","K","ZTEILK","A","","","H","","","","","","00000000","0000","","0","","","","","1","1","1","0","0","","","","","","DA4HO01I2JOOAFUFSXJZC37QX","","","","","","","0000","","","",11,"D4O21W1IBUB3HEML1KWP5YGOP","DEN0OSIFULEJ6MGY1BPFW6J21","Total Non-Teaching Staff F/T","0025","","S","","L","","","","","",null,null,null,null,null,null,10,"0ORGUNIT","0SALES_GRP","Sales group","0000","X","0","0","0","","","","","0000","",null,null,null,null,null,11,"D4O21W1IBUE67VXMBQN5FO1RT","DA4HOQG67KPR0DLLY5QJ6JHMH","","2","","","","00","X","0","0","","",null,null,null,null,null,null,null,null,null,null,null,null,null,null,null,null,null,null,null,null,null,null,null,null,null,null,null,null,null,null,null,null,null,null,null,null,null,null,null,null,null,null,null,null,null,null,null,null,null,null,null,null,null,null,null,null,null,null,null,null,null,null,null,null,null,null,null,null,null,null,null,null,null,null,null,null,null,null,null,null,null,null,null,null,null,null,10,"0000000109","0"]
[null,null,null,null,null,null,null,null,null,null,null,null,null,null,null,null,null,null,null,null,null,null,null,null,null,null,null,null,null,null,6,"ZPRIM_ID","ZPrimary Employee ID","X","","","0006","","","","","","","","2","03","","","","00000000","K","ZPRIM_ID","A","","","H","","","","","","00000000","0000","","0","","","","","1","1","1","0","0","","","","","","DA4HO01I2JPFZ2674GZLEIM0P","","","","","","","0000","","","",11,"D4O21W1IBUB3HEML1KWP5YGOP","DEN07Y1DTSOUA299LF6TNG6WP","Total Non-Teaching Staff P/T","0026","","S","","L","","","","","",null,null,null,null,null,null,10,"0ORGUNIT","0SALES_OFF","Sales Office","0000","X","0","0","0","","","","","0000","",null,null,null,null,null,11,"D4O21W1IBUE67VXMBQN5FO1RT","DA4HQT1FQ21CBCL0CVM3F7BP5","","","","","","00","X","0","0","","",null,null,null,null,null,null,null,null,null,null,null,null,null,null,null,null,null,null,null,null,null,null,null,null,null,null,null,null,null,null,null,null,null,null,null,null,null,null,null,null,null,null,null,null,null,null,null,null,null,null,null,null,null,null,null,null,null,null,null,null,null,null,null,null,null,null,null,null,null,null,null,null,null,null,null,null,null,null,null,null,null,null,null,null,null,null,10,"0000000113",""]
[null,null,null,null,null,null,null,null,null,null,null,null,null,null,null,null,null,null,null,null,null,null,null,null,null,null,null,null,null,null,6,"0CNTRCTTYPE","Contract Type","X","","","0007","","","","","","","","1","03","","","","00000000","K","0CNTRCTTYPE","A","","","H","","","","","","00000000","0000","","0","","","","","1","1","1","0","0","","","","","","DB0ZCI83WEWAMKG013IL0HDDL","","","","","","","0000","","","",11,"DA4HOQG67K82A435KQRFMPDDL","DA4HOQG67KOZBR9UMMAX443CP","Total Black & Ethnic Employees %","0026","X","F","","L","","","","","",null,null,null,null,null,null,10,"0CNTRCTTYPE","0CNTRCTISFT","Fixed-Term Contract","0000","X","2","0","0","","","","","0000","",null,null,null,null,null,11,"D4O21W1IBUE67VXMBQN5FO1RT","DA4HQT1FQ223ZYWROF1PHMPYX","","","","","","00","X","0","0","","",null,null,null,null,null,null,null,null,null,null,null,null,null,null,null,null,null,null,null,null,null,null,null,null,null,null,null,null,null,null,null,null,null,null,null,null,null,null,null,null,null,null,null,null,null,null,null,null,null,null,null,null,null,null,null,null,null,null,null,null,null,null,null,null,null,null,null,null,null,null,null,null,null,null,null,null,null,null,null,null,null,null,null,null,null,null,10,"0000000120",""]
[null,null,null,null,null,null,null,null,null,null,null,null,null,null,null,null,null,null,null,null,null,null,null,null,null,null,null,null,null,null,6,"DA4HOQG67K82A435KQRFMPDDL","Ethnicity Breakdown - Rev 2011","","X","X","0001","","","","","","","U","","00","","","","","K","DA4HOQG67K82A435KQRFMPDDL","A","","","","","","","","","00000000","0000","X","0","","","","","0","0","0","0","0","","","","","","DA4HOQG67K82A435KQRFMPDDL","","","","","","","0000","","","",11,"D4O21W1IBUB3HEML1KWP5YGOP","DEN07Y1DTSR5BX8JK1HNUQDQ1","Total Non-Teaching Staff","0027","","S","","L","","","","","",null,null,null,null,null,null,9,"0ORGUNIT","0BBPPURGRPX","Ind.Purchasing Group","0000","X","2","0","0","","","","","0000","",null,null,null,null,null,11,"D4O21W1IBUE67VXMBQN5FO1RT","DA4HQT1FQ22VOL8IZYHBK248P","","","","","","00","X","0","0","","",null,null,null,null,null,null,null,null,null,null,null,null,null,null,null,null,null,null,null,null,null,null,null,null,null,null,null,null,null,null,null,null,null,null,null,null,null,null,null,null,null,null,null,null,null,null,null,null,null,null,null,null,null,null,null,null,null,null,null,null,null,null,null,null,null,null,null,null,null,null,null,null,null,null,null,null,null,null,null,null,null,null,null,null,null,null,10,"0000000121",""]
[null,null,null,null,null,null,null,null,null,null,null,null,null,null,null,null,null,null,null,null,null,null,null,null,null,null,null,null,null,null,6,"D4O21W1IBUB3HEML1KWP5YGOP","WP Bandings","","X","Y","0001","","","","","","","U","","00","","","","","K","D4O21W1IBUB3HEML1KWP5YGOP","A","","","","","","","","","00000000","0000","","0","","","","","0","0","0","0","0","","","","","","D4O21W1IBUB3HEML1KWP5YGOP","","","","","","","0000","","","",11,"DA4HOQG67K82A435KQRFMPDDL","DA4HOQG67KPR0DLLY5QJ6JHMH","Total Non Declared %","0027","X","F","","L","","","","","",null,null,null,null,null,null,9,"0ORGUNIT","0BBPPURORGX","Ind. Purchasing Org.","0000","X","2","0","0","","","","","0000","",null,null,null,null,null,11,"D4O21W1IBUE67VXMBQN5FO1RT","DA4HWYL5HGT0050M6CGMF31MH","","","","","","00","X","0","0","","",null,null,null,null,null,null,null,null,null,null,null,null,null,null,null,null,null,null,null,null,null,null,null,null,null,null,null,null,null,null,null,null,null,null,null,null,null,null,null,null,null,null,null,null,null,null,null,null,null,null,null,null,null,null,null,null,null,null,null,null,null,null,null,null,null,null,null,null,null,null,null,null,null,null,null,null,null,null,null,null,null,null,null,null,null,null,10,"0000010001","DA4HO01I2JQZCATPRJUTJDEK9"]
[null,null,null,null,null,null,null,null,null,null,null,null,null,null,null,null,null,null,null,null,null,null,null,null,null,null,null,null,null,null,5,"0PAYRL_AREA","Payroll Area","X","","","0001","","","","","","","","0","03","","","","00000000","K","0PAYRL_AREA","A","","","H","","","","","","00000000","0000","","0","","","","","1","1","1","0","0","","","","","","DA4HO01I2JLLJYJEIRTJ2DMNT","","","","","","","0000","","","",11,"DA4HOQG67K82A435KQRFMPDDL","DA4HOQG67KO7N4Y3B2VB1OP2X","Total Workforce","0028","X","S","","L","X","","","","",null,null,null,null,null,null,9,"0ORGUNIT","0BBP_BUYID","Buyer ID","0000","X","5","0","0","","","","","0000","",null,null,null,null,null,11,"D4O21W1IBUE67VXMBQN5FO1RT","DA4IKULODJ1MZ318V3RCW3FND","","","","","","00","X","0","0","","",null,null,null,null,null,null,null,null,null,null,null,null,null,null,null,null,null,null,null,null,null,null,null,null,null,null,null,null,null,null,null,null,null,null,null,null,null,null,null,null,null,null,null,null,null,null,null,null,null,null,null,null,null,null,null,null,null,null,null,null,null,null,null,null,null,null,null,null,null,null,null,null,null,null,null,null,null,null,null,null,null,null,null,null,null,null,10,"0000010002","DA4HO01I2JEOEDLKMWX0GJ27T"]
[null,null,null,null,null,null,null,null,null,null,null,null,null,null,null,null,null,null,null,null,null,null,null,null,null,null,null,null,null,null,5,"ZPERSAREA","ZPersonal Area","X","","","0002","","","","","","","","2","03","","","","00000000","K","ZPERSAREA","A","","","H","","","","","","00000000","0000","","0","","","","","1","1","1","0","0","","","","","","DA4HO01I2JMD8KV5UB954T0XL","","","","","","","0000","","","",11,"D4O21W1IBUB3HEML1KWP5YGOP","D4O21W1IBUXEBE3LC8HH4CYK9","Total - All WPBR Grades F/T","0028","","F","","L","","","","","",null,null,null,null,null,null,9,"0ORGUNIT","0BBP_ISCOMP","Organizational Unit is Company","0000","X","1","0","0","","","","","0000","",null,null,null,null,null,11,"D4O21W1IBUE67VXMBQN5FO1RT","DA4IKULODJ2ENPD06N6YYITX5","","","","","","00","X","0","0","","",null,null,null,null,null,null,null,null,null,null,null,null,null,null,null,null,null,null,null,null,null,null,null,null,null,null,null,null,null,null,null,null,null,null,null,null,null,null,null,null,null,null,null,null,null,null,null,null,null,null,null,null,null,null,null,null,null,null,null,null,null,null,null,null,null,null,null,null,null,null,null,null,null,null,null,null,null,null,null,null,null,null,null,null,null,null,10,"0000000105",""]
[null,null,null,null,null,null,null,null,null,null,null,null,null,null,null,null,null,null,null,null,null,null,null,null,null,null,null,null,null,null,5,"0ORGUNIT","Organizational Unit","X","","","0003","","Chief Executive Srv, Chief Executive Organisation Structu...","","","","","","1","03","X","ORGEH","000","20150930","K","0ORGUNIT","A","","","H","0ORGUNIT","A","","","","00000000","0000","","0","","X","","2","1","1","1","0","0","","","","","","DA4HO01I2JN4X76X5UOR78F7D","","","","","","","0000","","","",11,"D4O21W1IBUB3HEML1KWP5YGOP","DEN07Y1DTSO2LFXI9VR7L0SMX","Total - All WPBR Grades P/T","0029","","F","","L","","","","","",null,null,null,null,null,null,9,"0ORGUNIT","0BUS_AREA","Business area","0000","X","0","0","0","","","","","0000","",null,null,null,null,null,11,"D4O21W1IBUEXWI9DNA2RI3G1L","DA4HOQG67K8TYQEWWA71P4RND","","","","","","00","X","0","0","","",null,null,null,null,null,null,null,null,null,null,null,null,null,null,null,null,null,null,null,null,null,null,null,null,null,null,null,null,null,null,null,null,null,null,null,null,null,null,null,null,null,null,null,null,null,null,null,null,null,null,null,null,null,null,null,null,null,null,null,null,null,null,null,null,null,null,null,null,null,null,null,null,null,null,null,null,null,null,null,null,null,null,null,null,null,null,10,"0000000106",""]
[null,null,null,null,null,null,null,null,null,null,null,null,null,null,null,null,null,null,null,null,null,null,null,null,null,null,null,null,null,null,5,"0PERS_SAREA","Personnel Subarea","X","","","0004","","","","","","","U","1","03","","","","00000000","K","0PERS_SAREA","A","","","H","","","","","","00000000","0000","","0","","","","","1","1","1","0","0","","","","","","DA4HO01I2JNWLTIOHE4D9NTH5","","","","","","","0000","","","",11,"D4O21W1IBUB3HEML1KWP5YGOP","DEN07Y1DTSQDNAWS8I21SAZG9","Total Workforce - All WPBR Grades","0030","","F","","L","","","","","",null,null,null,null,null,null,9,"0ORGUNIT","0COMP_CODE","Company code","0000","X","0","0","0","","","","","0000","",null,null,null,null,null,11,"D4O21W1IBUEXWI9DNA2RI3G1L","DA4HOQG67K9LNCQO7TMNRK5X5","","","","","","00","X","0","0","","",null,null,null,null,null,null,null,null,null,null,null,null,null,null,null,null,null,null,null,null,null,null,null,null,null,null,null,null,null,null,null,null,null,null,null,null,null,null,null,null,null,null,null,null,null,null,null,null,null,null,null,null,null,null,null,null,null,null,null,null,null,null,null,null,null,null,null,null,null,null,null,null,null,null,null,null,null,null,null,null,null,null,null,null,null,null,10,"0000000112","0"]
[null,null,null,null,null,null,null,null,null,null,null,null,null,null,null,null,null,null,null,null,null,null,null,null,null,null,null,null,null,null,5,"ZTEILK","Checkbox for Part-Ti","X","","","0005","","","","","","","","1","03","","","","00000000","K","ZTEILK","A","","","H","","","","","","00000000","0000","","0","","","","","1","1","1","0","0","","","","","","DA4HO01I2JOOAFUFSXJZC37QX","","","","","","","0000","","","",11,"D4O21W1IBUB3HEML1KWP5YGOP","D4O21W1IBV8XKOZZ5BZO4RWMX","Total Workforce (All) F/T","0031","","S","","L","","","","","",null,null,null,null,null,null,9,"0ORGUNIT","0CO_MST_AR","Controlling Area of Master Cost Center","0000","X","0","0","0","","","","","0000","",null,null,null,null,null,11,"D4O21W1IBUEXWI9DNA2RI3G1L","DA4HOQG67KADBZ2FJD29TZK6X","","","","","","00","X","0","0","","",null,null,null,null,null,null,null,null,null,null,null,null,null,null,null,null,null,null,null,null,null,null,null,null,null,null,null,null,null,null,null,null,null,null,null,null,null,null,null,null,null,null,null,null,null,null,null,null,null,null,null,null,null,null,null,null,null,null,null,null,null,null,null,null,null,null,null,null,null,null,null,null,null,null,null,null,null,null,null,null,null,null,null,null,null,null,10,"0000000200","X"]
[null,null,null,null,null,null,null,null,null,null,null,null,null,null,null,null,null,null,null,null,null,null,null,null,null,null,null,null,null,null,5,"ZPRIM_ID","ZPrimary Employee ID","X","","","0006","","","","","","","","2","03","","","","00000000","K","ZPRIM_ID","A","","","H","","","","","","00000000","0000","","0","","","","","1","1","1","0","0","","","","","","DA4HO01I2JPFZ2674GZLEIM0P","","","","","","","0000","","","",11,"D4O21W1IBUB3HEML1KWP5YGOP","DEN07Y1DTSRX0JKAVKX9X5RZT","Total Workforce (All) P/T","0032","","S","","L","","","","","",null,null,null,null,null,null,9,"0ORGUNIT","0CRMSALGRPX","Sls Group: Indicator","0000","X","2","0","0","","","","","0000","",null,null,null,null,null,11,"D4O21W1IBUEXWI9DNA2RI3G1L","DA4HOQG67KBWP7PY6FXHYUCQH","","","","","","00","X","0","0","","",null,null,null,null,null,null,null,null,null,null,null,null,null,null,null,null,null,null,null,null,null,null,null,null,null,null,null,null,null,null,null,null,null,null,null,null,null,null,null,null,null,null,null,null,null,null,null,null,null,null,null,null,null,null,null,null,null,null,null,null,null,null,null,null,null,null,null,null,null,null,null,null,null,null,null,null,null,null,null,null,null,null,null,null,null,null,10,"0000004000","X"]
[null,null,null,null,null,null,null,null,null,null,null,null,null,null,null,null,null,null,null,null,null,null,null,null,null,null,null,null,null,null,5,"0CNTRCTTYPE","Contract Type","X","","","0007","","","","","","","","1","03","","","","00000000","K","0CNTRCTTYPE","A","","","H","","","","","","00000000","0000","","0","","","","","1","1","1","0","0","","","","","","DB0ZCI83WEWAMKG013IL0HDDL","","","","","","","0000","","","",11,"D4O21W1IBUB3HEML1KWP5YGOP","DEN07Y1DTSSOP5W274CVZL69L","Total Workforce (All)","0033","","S","","L","","","","","",null,null,null,null,null,null,9,"0ORGUNIT","0CRMSALOFFX","Sls Office:Indicator","0000","X","2","0","0","","","","","0000","",null,null,null,null,null,11,"D4O21W1IBUEXWI9DNA2RI3G1L","DA4HOQG67KCODU1PHZD419R09","","","","","","00","X","0","0","","",null,null,null,null,null,null,null,null,null,null,null,null,null,null,null,null,null,null,null,null,null,null,null,null,null,null,null,null,null,null,null,null,null,null,null,null,null,null,null,null,null,null,null,null,null,null,null,null,null,null,null,null,null,null,null,null,null,null,null,null,null,null,null,null,null,null,null,null,null,null,null,null,null,null,null,null,null,null,null,null,null,null,null,null,null,null,10,"0000009001","Workforce Profile Ethnicity Breakdown (2011) Revised"]
[null,null,null,null,null,null,null,null,null,null,null,null,null,null,null,null,null,null,null,null,null,null,null,null,null,null,null,null,null,null,5,"DA4HOQG67K82A435KQRFMPDDL","Ethnicity Breakdown - Rev 2011","","X","X","0001","","","","","","","U","","00","","","","","K","DA4HOQG67K82A435KQRFMPDDL","A","","","","","","","","","00000000","0000","X","0","","","","","0","0","0","0","0","","","","","","DA4HOQG67K82A435KQRFMPDDL","","","","","","","0000","","","",10,"D4O21W1IBUB3HEML1KWP5YGOP","D4O21W1IBUDEJ9LV077JD8NI1","Grade 1 - 4 F/T","0001","","S","","L","","","","","",null,null,null,null,null,null,9,"0ORGUNIT","0CRMSALORGX","Sales Org. Indicator","0000","X","2","0","0","","","","","0000","",null,null,null,null,null,11,"D4O21W1IBUEXWI9DNA2RI3G1L","DA4HOQG67KDG2GDGTISQ3P5A1","","","","","","00","X","0","0","","",null,null,null,null,null,null,null,null,null,null,null,null,null,null,null,null,null,null,null,null,null,null,null,null,null,null,null,null,null,null,null,null,null,null,null,null,null,null,null,null,null,null,null,null,null,null,null,null,null,null,null,null,null,null,null,null,null,null,null,null,null,null,null,null,null,null,null,null,null,null,null,null,null,null,null,null,null,null,null,null,null,null,null,null,null,null,10,"0000000114","1"]
[null,null,null,null,null,null,null,null,null,null,null,null,null,null,null,null,null,null,null,null,null,null,null,null,null,null,null,null,null,null,5,"D4O21W1IBUB3HEML1KWP5YGOP","WP Bandings","","X","Y","0001","","","","","","","U","","00","","","","","K","D4O21W1IBUB3HEML1KWP5YGOP","A","","","","","","","","","00000000","0000","","0","","","","","0","0","0","0","0","","","","","","D4O21W1IBUB3HEML1KWP5YGOP","","","","","","","0000","","","",10,"DA4HOQG67K82A435KQRFMPDDL","DA4HOQG67K8TYQEWWA71P4RND","White Scottish","0001","","S","","L","X","","","","",null,null,null,null,null,null,9,"0ORGUNIT","0CRMSRVTGRP","Ex. CRM Service Org.","0000","X","1","0","0","","","","","0000","",null,null,null,null,null,11,"D4O21W1IBUEXWI9DNA2RI3G1L","DA4HOQG67KE7R2P8528C64JJT","","","","","","00","X","0","0","","",null,null,null,null,null,null,null,null,null,null,null,null,null,null,null,null,null,null,null,null,null,null,null,null,null,null,null,null,null,null,null,null,null,null,null,null,null,null,null,null,null,null,null,null,null,null,null,null,null,null,null,null,null,null,null,null,null,null,null,null,null,null,null,null,null,null,null,null,null,null,null,null,null,null,null,null,null,null,null,null,null,null,null,null,null,null,9,"0000000107","DA4HO01I2JEOEDLKMWX0GJ27T"]
[null,null,null,null,null,null,null,null,null,null,null,null,null,null,null,null,null,null,null,null,null,null,null,null,null,null,null,null,null,null,4,"0PAYRL_AREA","Payroll Area","X","","","0001","","","","","","","","0","03","","","","00000000","K","0PAYRL_AREA","A","","","H","","","","","","00000000","0000","","0","","","","","1","1","1","0","0","","","","","","DA4QZTAPZO1XJRJ4SJD8DUNZT","","","","","","","0000","","","",10,"DA4HOQG67K82A435KQRFMPDDL","DA4HOQG67KADBZ2FJD29TZK6X","Other British","0002","","S","","L","X","","","","",null,null,null,null,null,null,9,"0ORGUNIT","0CRM_SALGRP","CRM Sales Group","0000","X","1","0","0","","","","","0000","",null,null,null,null,null,11,"D4O21W1IBUEXWI9DNA2RI3G1L","DA4HOQG67KEZFP0ZGLNY8JXTL","","","","","","00","X","0","0","","",null,null,null,null,null,null,null,null,null,null,null,null,null,null,null,null,null,null,null,null,null,null,null,null,null,null,null,null,null,null,null,null,null,null,null,null,null,null,null,null,null,null,null,null,null,null,null,null,null,null,null,null,null,null,null,null,null,null,null,null,null,null,null,null,null,null,null,null,null,null,null,null,null,null,null,null,null,null,null,null,null,null,null,null,null,null,9,"0000000100","X"]
[null,null,null,null,null,null,null,null,null,null,null,null,null,null,null,null,null,null,null,null,null,null,null,null,null,null,null,null,null,null,4,"ZPERSAREA","ZPersonal Area","X","","","0002","","","","","","","","2","03","","","","00000000","K","ZPERSAREA","A","","","H","","","","","","00000000","0000","","0","","","","","1","1","1","0","0","","","","","","DA4QZTAPZO2P8DUW42SUGA29L","","","","","","","0000","","","",10,"D4O21W1IBUB3HEML1KWP5YGOP","D4O21W1IBUKBOUJOW241Z37Y1","Grade 1 - 4 P/T","0002","","S","","L","","","","","",null,null,null,null,null,null,9,"0ORGUNIT","0CRM_SALOFF","CRM Sales Office","0000","X","1","0","0","","","","","0000","",null,null,null,null,null,11,"D4O21W1IBUEXWI9DNA2RI3G1L","DA4HOQG67KFR4BCQS53KAZC3D","","","","","","00","X","0","0","","",null,null,null,null,null,null,null,null,null,null,null,null,null,null,null,null,null,null,null,null,null,null,null,null,null,null,null,null,null,null,null,null,null,null,null,null,null,null,null,null,null,null,null,null,null,null,null,null,null,null,null,null,null,null,null,null,null,null,null,null,null,null,null,null,null,null,null,null,null,null,null,null,null,null,null,null,null,null,null,null,null,null,null,null,null,null,9,"0000000101",""]
[null,null,null,null,null,null,null,null,null,null,null,null,null,null,null,null,null,null,null,null,null,null,null,null,null,null,null,null,null,null,4,"0ORGUNIT","Organizational Unit","X","","","0003","","","","","","","","1","03","X","ORGEH","000","20150930","K","0ORGUNIT","A","","","H","0ORGUNIT","A","","","","00000000","0000","","0","","","","2","1","1","1","0","0","","","","","","DA4QZTAPZO3GX06NFM8GIPGJD","","","","","","","0000","","","",10,"D4O21W1IBUB3HEML1KWP5YGOP","DEMAFDB5LZ4S252XBVM7GJP4P","Grade 1 - 4 Total","0003","","S","","L","","","","","",null,null,null,null,null,null,9,"0ORGUNIT","0CRM_SALORG","CRM Sales Org.","0000","X","1","0","0","","","","","0000","",null,null,null,null,null,11,"D4O21W1IBUEXWI9DNA2RI3G1L","DA4HOQG67KGISXOI3OJ6DEQD5","","","","","","00","X","0","0","","",null,null,null,null,null,null,null,null,null,null,null,null,null,null,null,null,null,null,null,null,null,null,null,null,null,null,null,null,null,null,null,null,null,null,null,null,null,null,null,null,null,null,null,null,null,null,null,null,null,null,null,null,null,null,null,null,null,null,null,null,null,null,null,null,null,null,null,null,null,null,null,null,null,null,null,null,null,null,null,null,null,null,null,null,null,null,9,"0000000104","1"]
[null,null,null,null,null,null,null,null,null,null,null,null,null,null,null,null,null,null,null,null,null,null,null,null,null,null,null,null,null,null,4,"0EMPLSGROUP","Employee Subgroup","X","","","0004","","","","","","","","1","03","","","","00000000","K","0EMPLSGROUP","A","","","H","","","","","","00000000","0000","","0","","","","","1","1","1","0","0","","","","","","DBCSSWY10IQ4I02GT1AMQN01L","","","","","","","0000","","","",10,"DA4HOQG67K82A435KQRFMPDDL","DA4HOQG67K9LNCQO7TMNRK5X5","Irish","0003","","S","","L","X","","","","",null,null,null,null,null,null,9,"0ORGUNIT","0CRM_SRVORG","Service Org. CRM","0000","X","1","0","0","","","","","0000","",null,null,null,null,null,11,"D4O21W1IBUEXWI9DNA2RI3G1L","DA4HOQG67KHAHK09F7YSFU4MX","","","","","","00","X","0","0","","",null,null,null,null,null,null,null,null,null,null,null,null,null,null,null,null,null,null,null,null,null,null,null,null,null,null,null,null,null,null,null,null,null,null,null,null,null,null,null,null,null,null,null,null,null,null,null,null,null,null,null,null,null,null,null,null,null,null,null,null,null,null,null,null,null,null,null,null,null,null,null,null,null,null,null,null,null,null,null,null,null,null,null,null,null,null,9,"0000000103",""]
[null,null,null,null,null,null,null,null,null,null,null,null,null,null,null,null,null,null,null,null,null,null,null,null,null,null,null,null,null,null,4,"0PERS_SAREA","Personnel Subarea","X","","","0005","","","","","","","U","1","03","","","","00000000","K","0PERS_SAREA","A","","","H","","","","","","00000000","0000","","0","","","","","1","1","1","0","0","","","","","","DA4QZTAPZO48LMIER5O2L4UT5","","","","","","","0000","","","",10,"D4O21W1IBUB3HEML1KWP5YGOP","D4O21W1IBUE67VXMBQN5FO1RT","Grade 5 - 7 F/T","0004","","S","","L","","","","","",null,null,null,null,null,null,9,"0ORGUNIT","0LOGSYS","Source System","0000","X","1","0","0","","","","","0000","",null,null,null,null,null,11,"D4O21W1IBUEXWI9DNA2RI3G1L","DA4HOQG67KI266C0QREEI9IWP","","","","","","00","X","0","0","","",null,null,null,null,null,null,null,null,null,null,null,null,null,null,null,null,null,null,null,null,null,null,null,null,null,null,null,null,null,null,null,null,null,null,null,null,null,null,null,null,null,null,null,null,null,null,null,null,null,null,null,null,null,null,null,null,null,null,null,null,null,null,null,null,null,null,null,null,null,null,null,null,null,null,null,null,null,null,null,null,null,null,null,null,null,null,9,"0000000102","1"]
[null,null,null,null,null,null,null,null,null,null,null,null,null,null,null,null,null,null,null,null,null,null,null,null,null,null,null,null,null,null,4,"ZTEILK","Checkbox for Part-Ti","X","","","0006","","","","","","","","1","03","","","","00000000","K","ZTEILK","A","","","H","","","","","","00000000","0000","","0","","","","","1","1","1","0","0","","","","","","DA4QZTAPZO50A8U62P3ONK92X","","","","","","","0000","","","",10,"DA4HOQG67K82A435KQRFMPDDL","DA4HQT1FQ21CBCL0CVM3F7BP5","Gypsy / Traveller","0004","","S","","L","X","","","","",null,null,null,null,null,null,9,"0ORGUNIT","0MAST_CCTR","Master Cost Center","0000","X","0","0","0","","","","","0000","",null,null,null,null,null,11,"D4O21W1IBUEXWI9DNA2RI3G1L","DA4HOQG67KITUSNS2AU0KOX6H","","","","","","00","X","0","0","","",null,null,null,null,null,null,null,null,null,null,null,null,null,null,null,null,null,null,null,null,null,null,null,null,null,null,null,null,null,null,null,null,null,null,null,null,null,null,null,null,null,null,null,null,null,null,null,null,null,null,null,null,null,null,null,null,null,null,null,null,null,null,null,null,null,null,null,null,null,null,null,null,null,null,null,null,null,null,null,null,null,null,null,null,null,null,9,"0000000108",""]
[null,null,null,null,null,null,null,null,null,null,null,null,null,null,null,null,null,null,null,null,null,null,null,null,null,null,null,null,null,null,4,"ZPRIM_ID","ZPrimary Employee ID","X","","","0007","","","","","","","","2","03","","","","00000000","K","ZPRIM_ID","A","","","H","","","","","","00000000","0000","","0","","","","","1","1","1","0","0","","","","","","DA4QZTAPZO5RYV5XE8JAPZNCP","","","","","","","0000","","","",10,"D4O21W1IBUB3HEML1KWP5YGOP","D4O21W1IBUL3DGVG7LJO1IM7T","Grade 5 - 7 P/T","0005","","S","","L","","","","","",null,null,null,null,null,null,9,"0ORGUNIT","0PERS_AREA","Personnel Area","0000","X","1","0","0","","","","","0000","",null,null,null,null,null,11,"D4O21W1IBUEXWI9DNA2RI3G1L","DA4HOQG67KJLJEZJDU9MN4BG9","","","","","","00","X","0","0","","",null,null,null,null,null,null,null,null,null,null,null,null,null,null,null,null,null,null,null,null,null,null,null,null,null,null,null,null,null,null,null,null,null,null,null,null,null,null,null,null,null,null,null,null,null,null,null,null,null,null,null,null,null,null,null,null,null,null,null,null,null,null,null,null,null,null,null,null,null,null,null,null,null,null,null,null,null,null,null,null,null,null,null,null,null,null,9,"0000009002","D4O21W1IBUB3HEML1KWP5YGOP"]
[null,null,null,null,null,null,null,null,null,null,null,null,null,null,null,null,null,null,null,null,null,null,null,null,null,null,null,null,null,null,4,"0CNTRCTTYPE","Contract Type","X","","","0008","","","","","","","","1","03","","","","00000000","K","0CNTRCTTYPE","A","","","H","","","","","","00000000","0000","","0","","","","","1","1","1","0","0","","","","","","DB0ZDV5QJCUPDSK6MVA2HLK3D","","","","","","","0000","","","",10,"DA4HOQG67K82A435KQRFMPDDL","DA4HQT1FQ223ZYWROF1PHMPYX","Polish","0005","","S","","L","X","","","","",null,null,null,null,null,null,9,"0ORGUNIT","0PERS_SAREA","Personnel Subarea","0000","X","1","0","0","","","","","0000","",null,null,null,null,null,11,"D4O21W1IBUEXWI9DNA2RI3G1L","DA4HOQG67KKD81BAPDP8PJPQ1","","","","","","00","X","0","0","","",null,null,null,null,null,null,null,null,null,null,null,null,null,null,null,null,null,null,null,null,null,null,null,null,null,null,null,null,null,null,null,null,null,null,null,null,null,null,null,null,null,null,null,null,null,null,null,null,null,null,null,null,null,null,null,null,null,null,null,null,null,null,null,null,null,null,null,null,null,null,null,null,null,null,null,null,null,null,null,null,null,null,null,null,null,null,9,"0000009000",""]
[null,null,null,null,null,null,null,null,null,null,null,null,null,null,null,null,null,null,null,null,null,null,null,null,null,null,null,null,null,null,4,"DA4HOQG67K82A435KQRFMPDDL","Ethnicity Breakdown - Rev 2011","","X","X","0001","","","","","","","U","","00","","","","","K","DA4HOQG67K82A435KQRFMPDDL","A","","","","","","","","","00000000","0000","X","0","","","","","0","0","0","0","0","","","","","","DA4HOQG67K82A435KQRFMPDDL","","","","","","","0000","","","",10,"D4O21W1IBUB3HEML1KWP5YGOP","DEMAGSP8VDTMCQ2Z9KSRG7UGP","Grade 5 - 7 Total","0006","","S","","L","","","","","",null,null,null,null,null,null,9,"0ORGUNIT","0PLANT","Plant","0000","X","0","0","0","","","","","0000","",null,null,null,null,null,11,"D4O21W1IBUEXWI9DNA2RI3G1L","DA4HOQG67KL4WNN20X4URZ3ZT","","","","","","00","X","0","0","","",null,null,null,null,null,null,null,null,null,null,null,null,null,null,null,null,null,null,null,null,null,null,null,null,null,null,null,null,null,null,null,null,null,null,null,null,null,null,null,null,null,null,null,null,null,null,null,null,null,null,null,null,null,null,null,null,null,null,null,null,null,null,null,null,null,null,null,null,null,null,null,null,null,null,null,null,null,null,null,null,null,null,null,null,null,null,9,"0000000010",""]
[null,null,null,null,null,null,null,null,null,null,null,null,null,null,null,null,null,null,null,null,null,null,null,null,null,null,null,null,null,null,4,"D4O2P4A3SH8H6WZIVSYIIRP4P","WP Teachers Bandings","","X","Y","0001","","","","","","","U","","00","","","","","K","D4O2P4A3SH8H6WZIVSYIIRP4P","A","","","","","","","","","00000000","0000","","0","","","","","0","0","0","0","0","","","","","","D4O2P4A3SH8H6WZIVSYIIRP4P","","","","","","","0000","","","",10,"DA4HOQG67K82A435KQRFMPDDL","DA4HQT1FQ22VOL8IZYHBK248P","Other White Ethnic","0006","","S","","L","X","","","","",null,null,null,null,null,null,9,"0ORGUNIT","0PURCH_ORG","Purchasing org.","0000","X","0","0","0","","","","","0000","",null,null,null,null,null,11,"D4O21W1IBUEXWI9DNA2RI3G1L","DA4HOQG67KLWL9YTCGKGUEI9L","","","","","","00","X","0","0","","",null,null,null,null,null,null,null,null,null,null,null,null,null,null,null,null,null,null,null,null,null,null,null,null,null,null,null,null,null,null,null,null,null,null,null,null,null,null,null,null,null,null,null,null,null,null,null,null,null,null,null,null,null,null,null,null,null,null,null,null,null,null,null,null,null,null,null,null,null,null,null,null,null,null,null,null,null,null,null,null,null,null,null,null,null,null,9,"0000000021",""]
[null,null,null,null,null,null,null,null,null,null,null,null,null,null,null,null,null,null,null,null,null,null,null,null,null,null,null,null,null,null,null,null,null,null,null,null,null,null,null,null,null,null,null,null,null,null,null,null,null,null,null,null,null,null,null,null,null,null,null,null,null,null,null,null,null,null,null,null,null,null,null,null,null,null,null,null,null,null,null,null,null,null,null,null,null,null,null,null,null,null,10,"DA4HOQG67K82A435KQRFMPDDL","DA4HOQG67KBWP7PY6FXHYUCQH","White Total","0007","X","S","","L","X","","","","",null,null,null,null,null,null,9,"0ORGUNIT","0PUR_GROUP","Purchasing group","0000","X","0","0","0","","","","","0000","",null,null,null,null,null,11,"D4O21W1IBUEXWI9DNA2RI3G1L","DA4HOQG67KMO9WAKO002WTWJD","","","","","","00","X","0","0","","",null,null,null,null,null,null,null,null,null,null,null,null,null,null,null,null,null,null,null,null,null,null,null,null,null,null,null,null,null,null,null,null,null,null,null,null,null,null,null,null,null,null,null,null,null,null,null,null,null,null,null,null,null,null,null,null,null,null,null,null,null,null,null,null,null,null,null,null,null,null,null,null,null,null,null,null,null,null,null,null,null,null,null,null,null,null,9,"0000000022",""]
[null,null,null,null,null,null,null,null,null,null,null,null,null,null,null,null,null,null,null,null,null,null,null,null,null,null,null,null,null,null,null,null,null,null,null,null,null,null,null,null,null,null,null,null,null,null,null,null,null,null,null,null,null,null,null,null,null,null,null,null,null,null,null,null,null,null,null,null,null,null,null,null,null,null,null,null,null,null,null,null,null,null,null,null,null,null,null,null,null,null,10,"D4O21W1IBUB3HEML1KWP5YGOP","D4O21W1IBUEXWI9DNA2RI3G1L","Grade 8 F/T","0007","","S","","L","","","","","",null,null,null,null,null,null,9,"0ORGUNIT","0SALESORG","Sales Organization","0000","X","0","0","0","","","","","0000","",null,null,null,null,null,11,"D4O21W1IBUEXWI9DNA2RI3G1L","DA4HOQG67KNFYIMBZJFOZ9AT5","","2","","","","00","X","0","0","","",null,null,null,null,null,null,null,null,null,null,null,null,null,null,null,null,null,null,null,null,null,null,null,null,null,null,null,null,null,null,null,null,null,null,null,null,null,null,null,null,null,null,null,null,null,null,null,null,null,null,null,null,null,null,null,null,null,null,null,null,null,null,null,null,null,null,null,null,null,null,null,null,null,null,null,null,null,null,null,null,null,null,null,null,null,null,9,"0000000023",""]
[null,null,null,null,null,null,null,null,null,null,null,null,null,null,null,null,null,null,null,null,null,null,null,null,null,null,null,null,null,null,null,null,null,null,null,null,null,null,null,null,null,null,null,null,null,null,null,null,null,null,null,null,null,null,null,null,null,null,null,null,null,null,null,null,null,null,null,null,null,null,null,null,null,null,null,null,null,null,null,null,null,null,null,null,null,null,null,null,null,null,10,"DA4HOQG67K82A435KQRFMPDDL","DA4HOQG67KCODU1PHZD419R09","Mixed or Multiple Ethnic Groups","0008","","S","","L","X","","","","",null,null,null,null,null,null,9,"0ORGUNIT","0SALES_GRP","Sales group","0000","X","0","0","0","","","","","0000","",null,null,null,null,null,11,"D4O21W1IBUEXWI9DNA2RI3G1L","DA4HOQG67KO7N4Y3B2VB1OP2X","","","","","","00","X","0","0","","",null,null,null,null,null,null,null,null,null,null,null,null,null,null,null,null,null,null,null,null,null,null,null,null,null,null,null,null,null,null,null,null,null,null,null,null,null,null,null,null,null,null,null,null,null,null,null,null,null,null,null,null,null,null,null,null,null,null,null,null,null,null,null,null,null,null,null,null,null,null,null,null,null,null,null,null,null,null,null,null,null,null,null,null,null,null,9,"0000000030",""]
[null,null,null,null,null,null,null,null,null,null,null,null,null,null,null,null,null,null,null,null,null,null,null,null,null,null,null,null,null,null,null,null,null,null,null,null,null,null,null,null,null,null,null,null,null,null,null,null,null,null,null,null,null,null,null,null,null,null,null,null,null,null,null,null,null,null,null,null,null,null,null,null,null,null,null,null,null,null,null,null,null,null,null,null,null,null,null,null,null,null,10,"D4O21W1IBUB3HEML1KWP5YGOP","D4O21W1IBULV2377J4ZA3Y0HL","Grade 8 P/T","0008","","S","","L","","","","","",null,null,null,null,null,null,9,"0ORGUNIT","0SALES_OFF","Sales Office","0000","X","0","0","0","","","","","0000","",null,null,null,null,null,11,"D4O21W1IBUEXWI9DNA2RI3G1L","DA4HOQG67KOZBR9UMMAX443CP","","2","","","","00","X","0","0","","",null,null,null,null,null,null,null,null,null,null,null,null,null,null,null,null,null,null,null,null,null,null,null,null,null,null,null,null,null,null,null,null,null,null,null,null,null,null,null,null,null,null,null,null,null,null,null,null,null,null,null,null,null,null,null,null,null,null,null,null,null,null,null,null,null,null,null,null,null,null,null,null,null,null,null,null,null,null,null,null,null,null,null,null,null,null,9,"0000000040",""]
[null,null,null,null,null,null,null,null,null,null,null,null,null,null,null,null,null,null,null,null,null,null,null,null,null,null,null,null,null,null,null,null,null,null,null,null,null,null,null,null,null,null,null,null,null,null,null,null,null,null,null,null,null,null,null,null,null,null,null,null,null,null,null,null,null,null,null,null,null,null,null,null,null,null,null,null,null,null,null,null,null,null,null,null,null,null,null,null,null,null,10,"DA4HOQG67K82A435KQRFMPDDL","DA4HWYL5HGT0050M6CGMF31MH","Arab, Arab Scottish or Arab British","0009","","S","","L","X","","","","",null,null,null,null,null,null,9,"0CNTRCTTYPE","0CNTRCTISFT","Fixed-Term Contract","0000","X","2","0","0","","","","","0000","",null,null,null,null,null,11,"D4O21W1IBUEXWI9DNA2RI3G1L","DA4HOQG67KPR0DLLY5QJ6JHMH","","2","","","","00","X","0","0","","",null,null,null,null,null,null,null,null,null,null,null,null,null,null,null,null,null,null,null,null,null,null,null,null,null,null,null,null,null,null,null,null,null,null,null,null,null,null,null,null,null,null,null,null,null,null,null,null,null,null,null,null,null,null,null,null,null,null,null,null,null,null,null,null,null,null,null,null,null,null,null,null,null,null,null,null,null,null,null,null,null,null,null,null,null,null,9,"0000000041",""]
[null,null,null,null,null,null,null,null,null,null,null,null,null,null,null,null,null,null,null,null,null,null,null,null,null,null,null,null,null,null,null,null,null,null,null,null,null,null,null,null,null,null,null,null,null,null,null,null,null,null,null,null,null,null,null,null,null,null,null,null,null,null,null,null,null,null,null,null,null,null,null,null,null,null,null,null,null,null,null,null,null,null,null,null,null,null,null,null,null,null,10,"D4O21W1IBUB3HEML1KWP5YGOP","D4O21W1IBV18QHQDXXNJGHXX5","Grade 8 Total","0009","","S","","L","","","","","",null,null,null,null,null,null,8,"0ORGUNIT","0BBPPURGRPX","Ind.Purchasing Group","0000","X","2","0","0","","","","","0000","",null,null,null,null,null,11,"D4O21W1IBUEXWI9DNA2RI3G1L","DA4HQT1FQ21CBCL0CVM3F7BP5","","","","","","00","X","0","0","","",null,null,null,null,null,null,null,null,null,null,null,null,null,null,null,null,null,null,null,null,null,null,null,null,null,null,null,null,null,null,null,null,null,null,null,null,null,null,null,null,null,null,null,null,null,null,null,null,null,null,null,null,null,null,null,null,null,null,null,null,null,null,null,null,null,null,null,null,null,null,null,null,null,null,null,null,null,null,null,null,null,null,null,null,null,null,9,"0000000042","0"]
[null,null,null,null,null,null,null,null,null,null,null,null,null,null,null,null,null,null,null,null,null,null,null,null,null,null,null,null,null,null,null,null,null,null,null,null,null,null,null,null,null,null,null,null,null,null,null,null,null,null,null,null,null,null,null,null,null,null,null,null,null,null,null,null,null,null,null,null,null,null,null,null,null,null,null,null,null,null,null,null,null,null,null,null,null,null,null,null,null,null,10,"DA4HOQG67K82A435KQRFMPDDL","DA4HOQG67KDG2GDGTISQ3P5A1","Total Other Ethnic Background","0010","","S","","L","X","","","","",null,null,null,null,null,null,8,"0ORGUNIT","0BBPPURORGX","Ind. Purchasing Org.","0000","X","2","0","0","","","","","0000","",null,null,null,null,null,11,"D4O21W1IBUEXWI9DNA2RI3G1L","DA4HQT1FQ223ZYWROF1PHMPYX","","","","","","00","X","0","0","","",null,null,null,null,null,null,null,null,null,null,null,null,null,null,null,null,null,null,null,null,null,null,null,null,null,null,null,null,null,null,null,null,null,null,null,null,null,null,null,null,null,null,null,null,null,null,null,null,null,null,null,null,null,null,null,null,null,null,null,null,null,null,null,null,null,null,null,null,null,null,null,null,null,null,null,null,null,null,null,null,null,null,null,null,null,null,9,"0000000043","0"]
[null,null,null,null,null,null,null,null,null,null,null,null,null,null,null,null,null,null,null,null,null,null,null,null,null,null,null,null,null,null,null,null,null,null,null,null,null,null,null,null,null,null,null,null,null,null,null,null,null,null,null,null,null,null,null,null,null,null,null,null,null,null,null,null,null,null,null,null,null,null,null,null,null,null,null,null,null,null,null,null,null,null,null,null,null,null,null,null,null,null,10,"D4O21W1IBUB3HEML1KWP5YGOP","D4O21W1IBUFPL4L4YTIDKIUBD","ACZ Grade 8 F/T","0010","","S","","L","","","","","",null,null,null,null,null,null,8,"0ORGUNIT","0BBP_BUYID","Buyer ID","0000","X","5","0","0","","","","","0000","",null,null,null,null,null,11,"D4O21W1IBUEXWI9DNA2RI3G1L","DA4HQT1FQ22VOL8IZYHBK248P","","","","","","00","X","0","0","","",null,null,null,null,null,null,null,null,null,null,null,null,null,null,null,null,null,null,null,null,null,null,null,null,null,null,null,null,null,null,null,null,null,null,null,null,null,null,null,null,null,null,null,null,null,null,null,null,null,null,null,null,null,null,null,null,null,null,null,null,null,null,null,null,null,null,null,null,null,null,null,null,null,null,null,null,null,null,null,null,null,null,null,null,null,null,9,"0000000109","0"]
[null,null,null,null,null,null,null,null,null,null,null,null,null,null,null,null,null,null,null,null,null,null,null,null,null,null,null,null,null,null,null,null,null,null,null,null,null,null,null,null,null,null,null,null,null,null,null,null,null,null,null,null,null,null,null,null,null,null,null,null,null,null,null,null,null,null,null,null,null,null,null,null,null,null,null,null,null,null,null,null,null,null,null,null,null,null,null,null,null,null,10,"D4O21W1IBUB3HEML1KWP5YGOP","D4O21W1IBUMMQPIYUOEW6DERD","ACZ Grade 8 P/T","0011","","S","","L","","","","","",null,null,null,null,null,null,8,"0ORGUNIT","0BBP_ISCOMP","Organizational Unit is Company","0000","X","1","0","0","","","","","0000","",null,null,null,null,null,11,"D4O21W1IBUEXWI9DNA2RI3G1L","DA4HWYL5HGT0050M6CGMF31MH","","","","","","00","X","0","0","","",null,null,null,null,null,null,null,null,null,null,null,null,null,null,null,null,null,null,null,null,null,null,null,null,null,null,null,null,null,null,null,null,null,null,null,null,null,null,null,null,null,null,null,null,null,null,null,null,null,null,null,null,null,null,null,null,null,null,null,null,null,null,null,null,null,null,null,null,null,null,null,null,null,null,null,null,null,null,null,null,null,null,null,null,null,null,9,"0000000113",""]
[null,null,null,null,null,null,null,null,null,null,null,null,null,null,null,null,null,null,null,null,null,null,null,null,null,null,null,null,null,null,null,null,null,null,null,null,null,null,null,null,null,null,null,null,null,null,null,null,null,null,null,null,null,null,null,null,null,null,null,null,null,null,null,null,null,null,null,null,null,null,null,null,null,null,null,null,null,null,null,null,null,null,null,null,null,null,null,null,null,null,10,"DA4HOQG67K82A435KQRFMPDDL","DA4HOQG67KGISXOI3OJ6DEQD5","Pakistani","0011","","S","","L","X","","","","",null,null,null,null,null,null,8,"0ORGUNIT","0BUS_AREA","Business area","0000","X","0","0","0","","","","","0000","",null,null,null,null,null,11,"D4O21W1IBUEXWI9DNA2RI3G1L","DA4IKULODJ1MZ318V3RCW3FND","","","","","","00","X","0","0","","",null,null,null,null,null,null,null,null,null,null,null,null,null,null,null,null,null,null,null,null,null,null,null,null,null,null,null,null,null,null,null,null,null,null,null,null,null,null,null,null,null,null,null,null,null,null,null,null,null,null,null,null,null,null,null,null,null,null,null,null,null,null,null,null,null,null,null,null,null,null,null,null,null,null,null,null,null,null,null,null,null,null,null,null,null,null,9,"0000000120",""]
[null,null,null,null,null,null,null,null,null,null,null,null,null,null,null,null,null,null,null,null,null,null,null,null,null,null,null,null,null,null,null,null,null,null,null,null,null,null,null,null,null,null,null,null,null,null,null,null,null,null,null,null,null,null,null,null,null,null,null,null,null,null,null,null,null,null,null,null,null,null,null,null,null,null,null,null,null,null,null,null,null,null,null,null,null,null,null,null,null,null,10,"DA4HOQG67K82A435KQRFMPDDL","DA4HOQG67KE7R2P8528C64JJT","Indian","0012","","S","","L","X","","","","",null,null,null,null,null,null,8,"0ORGUNIT","0COMP_CODE","Company code","0000","X","0","0","0","","","","","0000","",null,null,null,null,null,11,"D4O21W1IBUEXWI9DNA2RI3G1L","DA4IKULODJ2ENPD06N6YYITX5","","","","","","00","X","0","0","","",null,null,null,null,null,null,null,null,null,null,null,null,null,null,null,null,null,null,null,null,null,null,null,null,null,null,null,null,null,null,null,null,null,null,null,null,null,null,null,null,null,null,null,null,null,null,null,null,null,null,null,null,null,null,null,null,null,null,null,null,null,null,null,null,null,null,null,null,null,null,null,null,null,null,null,null,null,null,null,null,null,null,null,null,null,null,9,"0000000121",""]
[null,null,null,null,null,null,null,null,null,null,null,null,null,null,null,null,null,null,null,null,null,null,null,null,null,null,null,null,null,null,null,null,null,null,null,null,null,null,null,null,null,null,null,null,null,null,null,null,null,null,null,null,null,null,null,null,null,null,null,null,null,null,null,null,null,null,null,null,null,null,null,null,null,null,null,null,null,null,null,null,null,null,null,null,null,null,null,null,null,null,10,"D4O21W1IBUB3HEML1KWP5YGOP","D4O21W1IBV0H1VEMME7XE2JND","ACZ Grade 8 Total","0012","","S","","L","","","","","",null,null,null,null,null,null,8,"0ORGUNIT","0CO_MST_AR","Controlling Area of Master Cost Center","0000","X","0","0","0","","","","","0000","",null,null,null,null,null,11,"D4O21W1IBUFPL4L4YTIDKIUBD","DA4HOQG67K8TYQEWWA71P4RND","","","","","","00","X","0","0","","",null,null,null,null,null,null,null,null,null,null,null,null,null,null,null,null,null,null,null,null,null,null,null,null,null,null,null,null,null,null,null,null,null,null,null,null,null,null,null,null,null,null,null,null,null,null,null,null,null,null,null,null,null,null,null,null,null,null,null,null,null,null,null,null,null,null,null,null,null,null,null,null,null,null,null,null,null,null,null,null,null,null,null,null,null,null,9,"0000010001","DA4HO01I2JQZCATPRJUTJDEK9"]
[null,null,null,null,null,null,null,null,null,null,null,null,null,null,null,null,null,null,null,null,null,null,null,null,null,null,null,null,null,null,null,null,null,null,null,null,null,null,null,null,null,null,null,null,null,null,null,null,null,null,null,null,null,null,null,null,null,null,null,null,null,null,null,null,null,null,null,null,null,null,null,null,null,null,null,null,null,null,null,null,null,null,null,null,null,null,null,null,null,null,10,"DA4HOQG67K82A435KQRFMPDDL","DA4HOQG67KEZFP0ZGLNY8JXTL","Bangladeshi","0013","","S","","L","X","","","","",null,null,null,null,null,null,8,"0ORGUNIT","0CRMSALGRPX","Sls Group: Indicator","0000","X","2","0","0","","","","","0000","",null,null,null,null,null,11,"D4O21W1IBUFPL4L4YTIDKIUBD","DA4HOQG67K9LNCQO7TMNRK5X5","","","","","","00","X","0","0","","",null,null,null,null,null,null,null,null,null,null,null,null,null,null,null,null,null,null,null,null,null,null,null,null,null,null,null,null,null,null,null,null,null,null,null,null,null,null,null,null,null,null,null,null,null,null,null,null,null,null,null,null,null,null,null,null,null,null,null,null,null,null,null,null,null,null,null,null,null,null,null,null,null,null,null,null,null,null,null,null,null,null,null,null,null,null,9,"0000010002","DA4HO01I2JEOEDLKMWX0GJ27T"]
[null,null,null,null,null,null,null,null,null,null,null,null,null,null,null,null,null,null,null,null,null,null,null,null,null,null,null,null,null,null,null,null,null,null,null,null,null,null,null,null,null,null,null,null,null,null,null,null,null,null,null,null,null,null,null,null,null,null,null,null,null,null,null,null,null,null,null,null,null,null,null,null,null,null,null,null,null,null,null,null,null,null,null,null,null,null,null,null,null,null,10,"D4O21W1IBUB3HEML1KWP5YGOP","D4O21W1IBUH8YD8NLWDLPDMUX","Grade 9 - 15 F/T","0013","","S","","L","","","","","",null,null,null,null,null,null,8,"0ORGUNIT","0CRMSALOFFX","Sls Office:Indicator","0000","X","2","0","0","","","","","0000","",null,null,null,null,null,11,"D4O21W1IBUFPL4L4YTIDKIUBD","DA4HOQG67KADBZ2FJD29TZK6X","","","","","","00","X","0","0","","",null,null,null,null,null,null,null,null,null,null,null,null,null,null,null,null,null,null,null,null,null,null,null,null,null,null,null,null,null,null,null,null,null,null,null,null,null,null,null,null,null,null,null,null,null,null,null,null,null,null,null,null,null,null,null,null,null,null,null,null,null,null,null,null,null,null,null,null,null,null,null,null,null,null,null,null,null,null,null,null,null,null,null,null,null,null,9,"0000000105",""]
[null,null,null,null,null,null,null,null,null,null,null,null,null,null,null,null,null,null,null,null,null,null,null,null,null,null,null,null,null,null,null,null,null,null,null,null,null,null,null,null,null,null,null,null,null,null,null,null,null,null,null,null,null,null,null,null,null,null,null,null,null,null,null,null,null,null,null,null,null,null,null,null,null,null,null,null,null,null,null,null,null,null,null,null,null,null,null,null,null,null,10,"DA4HOQG67K82A435KQRFMPDDL","DA4HOQG67KFR4BCQS53KAZC3D","Chinese","0014","","S","","L","X","","","","",null,null,null,null,null,null,8,"0ORGUNIT","0CRMSALORGX","Sales Org. Indicator","0000","X","2","0","0","","","","","0000","",null,null,null,null,null,11,"D4O21W1IBUFPL4L4YTIDKIUBD","DA4HOQG67KBWP7PY6FXHYUCQH","","","","","","00","X","0","0","","",null,null,null,null,null,null,null,null,null,null,null,null,null,null,null,null,null,null,null,null,null,null,null,null,null,null,null,null,null,null,null,null,null,null,null,null,null,null,null,null,null,null,null,null,null,null,null,null,null,null,null,null,null,null,null,null,null,null,null,null,null,null,null,null,null,null,null,null,null,null,null,null,null,null,null,null,null,null,null,null,null,null,null,null,null,null,9,"0000000106",""]
[null,null,null,null,null,null,null,null,null,null,null,null,null,null,null,null,null,null,null,null,null,null,null,null,null,null,null,null,null,null,null,null,null,null,null,null,null,null,null,null,null,null,null,null,null,null,null,null,null,null,null,null,null,null,null,null,null,null,null,null,null,null,null,null,null,null,null,null,null,null,null,null,null,null,null,null,null,null,null,null,null,null,null,null,null,null,null,null,null,null,10,"D4O21W1IBUB3HEML1KWP5YGOP","DEN03PYIT5FSSAA2U7ST53H15","Grade 9 - 15 P/T","0014","","S","","L","","","","","",null,null,null,null,null,null,8,"0ORGUNIT","0CRMSRVTGRP","Ex. CRM Service Org.","0000","X","1","0","0","","","","","0000","",null,null,null,null,null,11,"D4O21W1IBUFPL4L4YTIDKIUBD","DA4HOQG67KCODU1PHZD419R09","","","","","","00","X","0","0","","",null,null,null,null,null,null,null,null,null,null,null,null,null,null,null,null,null,null,null,null,null,null,null,null,null,null,null,null,null,null,null,null,null,null,null,null,null,null,null,null,null,null,null,null,null,null,null,null,null,null,null,null,null,null,null,null,null,null,null,null,null,null,null,null,null,null,null,null,null,null,null,null,null,null,null,null,null,null,null,null,null,null,null,null,null,null,9,"0000000112","0"]
[null,null,null,null,null,null,null,null,null,null,null,null,null,null,null,null,null,null,null,null,null,null,null,null,null,null,null,null,null,null,null,null,null,null,null,null,null,null,null,null,null,null,null,null,null,null,null,null,null,null,null,null,null,null,null,null,null,null,null,null,null,null,null,null,null,null,null,null,null,null,null,null,null,null,null,null,null,null,null,null,null,null,null,null,null,null,null,null,null,null,10,"DA4HOQG67K82A435KQRFMPDDL","DA4HOQG67KHAHK09F7YSFU4MX","Other Asian Background","0015","","S","","L","X","","","","",null,null,null,null,null,null,8,"0ORGUNIT","0CRM_SALGRP","CRM Sales Group","0000","X","1","0","0","","","","","0000","",null,null,null,null,null,11,"D4O21W1IBUFPL4L4YTIDKIUBD","DA4HOQG67KDG2GDGTISQ3P5A1","","","","","","00","X","0","0","","",null,null,null,null,null,null,null,null,null,null,null,null,null,null,null,null,null,null,null,null,null,null,null,null,null,null,null,null,null,null,null,null,null,null,null,null,null,null,null,null,null,null,null,null,null,null,null,null,null,null,null,null,null,null,null,null,null,null,null,null,null,null,null,null,null,null,null,null,null,null,null,null,null,null,null,null,null,null,null,null,null,null,null,null,null,null,9,"0000000200","X"]
[null,null,null,null,null,null,null,null,null,null,null,null,null,null,null,null,null,null,null,null,null,null,null,null,null,null,null,null,null,null,null,null,null,null,null,null,null,null,null,null,null,null,null,null,null,null,null,null,null,null,null,null,null,null,null,null,null,null,null,null,null,null,null,null,null,null,null,null,null,null,null,null,null,null,null,null,null,null,null,null,null,null,null,null,null,null,null,null,null,null,10,"D4O21W1IBUB3HEML1KWP5YGOP","D4O21W1IBUO63Y6HHRA4B87AX","Grade 9 - 15 Total","0015","","S","","L","","","","","",null,null,null,null,null,null,8,"0ORGUNIT","0CRM_SALOFF","CRM Sales Office","0000","X","1","0","0","","","","","0000","",null,null,null,null,null,11,"D4O21W1IBUFPL4L4YTIDKIUBD","DA4HOQG67KE7R2P8528C64JJT","","","","","","00","X","0","0","","",null,null,null,null,null,null,null,null,null,null,null,null,null,null,null,null,null,null,null,null,null,null,null,null,null,null,null,null,null,null,null,null,null,null,null,null,null,null,null,null,null,null,null,null,null,null,null,null,null,null,null,null,null,null,null,null,null,null,null,null,null,null,null,null,null,null,null,null,null,null,null,null,null,null,null,null,null,null,null,null,null,null,null,null,null,null,9,"0000004000","X"]
[null,null,null,null,null,null,null,null,null,null,null,null,null,null,null,null,null,null,null,null,null,null,null,null,null,null,null,null,null,null,null,null,null,null,null,null,null,null,null,null,null,null,null,null,null,null,null,null,null,null,null,null,null,null,null,null,null,null,null,null,null,null,null,null,null,null,null,null,null,null,null,null,null,null,null,null,null,null,null,null,null,null,null,null,null,null,null,null,null,null,10,"DA4HOQG67K82A435KQRFMPDDL","DA4HOQG67KI266C0QREEI9IWP","Asian Total","0016","X","S","","L","X","","","","",null,null,null,null,null,null,8,"0ORGUNIT","0CRM_SALORG","CRM Sales Org.","0000","X","1","0","0","","","","","0000","",null,null,null,null,null,11,"D4O21W1IBUFPL4L4YTIDKIUBD","DA4HOQG67KEZFP0ZGLNY8JXTL","","","","","","00","X","0","0","","",null,null,null,null,null,null,null,null,null,null,null,null,null,null,null,null,null,null,null,null,null,null,null,null,null,null,null,null,null,null,null,null,null,null,null,null,null,null,null,null,null,null,null,null,null,null,null,null,null,null,null,null,null,null,null,null,null,null,null,null,null,null,null,null,null,null,null,null,null,null,null,null,null,null,null,null,null,null,null,null,null,null,null,null,null,null,9,"0000009001","Workforce Profile Ethnicity Breakdown (2011) Revised"]
[null,null,null,null,null,null,null,null,null,null,null,null,null,null,null,null,null,null,null,null,null,null,null,null,null,null,null,null,null,null,null,null,null,null,null,null,null,null,null,null,null,null,null,null,null,null,null,null,null,null,null,null,null,null,null,null,null,null,null,null,null,null,null,null,null,null,null,null,null,null,null,null,null,null,null,null,null,null,null,null,null,null,null,null,null,null,null,null,null,null,10,"D4O21W1IBUB3HEML1KWP5YGOP","D4O21W1IBUGH9QWWACXZMY8L5","ACZ Grade 9 - 15 F/T","0016","","S","","L","","","","","",null,null,null,null,null,null,8,"0ORGUNIT","0CRM_SRVORG","Service Org. CRM","0000","X","1","0","0","","","","","0000","",null,null,null,null,null,11,"D4O21W1IBUFPL4L4YTIDKIUBD","DA4HOQG67KFR4BCQS53KAZC3D","","","","","","00","X","0","0","","",null,null,null,null,null,null,null,null,null,null,null,null,null,null,null,null,null,null,null,null,null,null,null,null,null,null,null,null,null,null,null,null,null,null,null,null,null,null,null,null,null,null,null,null,null,null,null,null,null,null,null,null,null,null,null,null,null,null,null,null,null,null,null,null,null,null,null,null,null,null,null,null,null,null,null,null,null,null,null,null,null,null,null,null,null,null,9,"0000000114","1"]
[null,null,null,null,null,null,null,null,null,null,null,null,null,null,null,null,null,null,null,null,null,null,null,null,null,null,null,null,null,null,null,null,null,null,null,null,null,null,null,null,null,null,null,null,null,null,null,null,null,null,null,null,null,null,null,null,null,null,null,null,null,null,null,null,null,null,null,null,null,null,null,null,null,null,null,null,null,null,null,null,null,null,null,null,null,null,null,null,null,null,10,"DA4HOQG67K82A435KQRFMPDDL","DA4HOQG67KITUSNS2AU0KOX6H","African","0017","","S","","L","X","","","","",null,null,null,null,null,null,8,"0ORGUNIT","0LOGSYS","Source System","0000","X","1","0","0","","","","","0000","",null,null,null,null,null,11,"D4O21W1IBUFPL4L4YTIDKIUBD","DA4HOQG67KGISXOI3OJ6DEQD5","","","","","","00","X","0","0","","",null,null,null,null,null,null,null,null,null,null,null,null,null,null,null,null,null,null,null,null,null,null,null,null,null,null,null,null,null,null,null,null,null,null,null,null,null,null,null,null,null,null,null,null,null,null,null,null,null,null,null,null,null,null,null,null,null,null,null,null,null,null,null,null,null,null,null,null,null,null,null,null,null,null,null,null,null,null,null,null,null,null,null,null,null,null,8,"0000000107","DA4HO01I2JEOEDLKMWX0GJ27T"]
[null,null,null,null,null,null,null,null,null,null,null,null,null,null,null,null,null,null,null,null,null,null,null,null,null,null,null,null,null,null,null,null,null,null,null,null,null,null,null,null,null,null,null,null,null,null,null,null,null,null,null,null,null,null,null,null,null,null,null,null,null,null,null,null,null,null,null,null,null,null,null,null,null,null,null,null,null,null,null,null,null,null,null,null,null,null,null,null,null,null,10,"D4O21W1IBUB3HEML1KWP5YGOP","D4O21W1IBUNEFBUQ67UI8ST15","ACZ Grade 9 - 15 P/T","0017","","S","","L","","","","","",null,null,null,null,null,null,8,"0ORGUNIT","0MAST_CCTR","Master Cost Center","0000","X","0","0","0","","","","","0000","",null,null,null,null,null,11,"D4O21W1IBUFPL4L4YTIDKIUBD","DA4HOQG67KHAHK09F7YSFU4MX","","","","","","00","X","0","0","","",null,null,null,null,null,null,null,null,null,null,null,null,null,null,null,null,null,null,null,null,null,null,null,null,null,null,null,null,null,null,null,null,null,null,null,null,null,null,null,null,null,null,null,null,null,null,null,null,null,null,null,null,null,null,null,null,null,null,null,null,null,null,null,null,null,null,null,null,null,null,null,null,null,null,null,null,null,null,null,null,null,null,null,null,null,null,8,"0000000100","X"]
[null,null,null,null,null,null,null,null,null,null,null,null,null,null,null,null,null,null,null,null,null,null,null,null,null,null,null,null,null,null,null,null,null,null,null,null,null,null,null,null,null,null,null,null,null,null,null,null,null,null,null,null,null,null,null,null,null,null,null,null,null,null,null,null,null,null,null,null,null,null,null,null,null,null,null,null,null,null,null,null,null,null,null,null,null,null,null,null,null,null,10,"D4O21W1IBUB3HEML1KWP5YGOP","DEN04FDC1K04NBJW47LA7T915","ACZ Grade 9 - 15 Total","0018","","S","","L","","","","","",null,null,null,null,null,null,8,"0ORGUNIT","0PERS_AREA","Personnel Area","0000","X","1","0","0","","","","","0000","",null,null,null,null,null,11,"D4O21W1IBUFPL4L4YTIDKIUBD","DA4HOQG67KI266C0QREEI9IWP","","","","","","00","X","0","0","","",null,null,null,null,null,null,null,null,null,null,null,null,null,null,null,null,null,null,null,null,null,null,null,null,null,null,null,null,null,null,null,null,null,null,null,null,null,null,null,null,null,null,null,null,null,null,null,null,null,null,null,null,null,null,null,null,null,null,null,null,null,null,null,null,null,null,null,null,null,null,null,null,null,null,null,null,null,null,null,null,null,null,null,null,null,null,8,"0000000101",""]
[null,null,null,null,null,null,null,null,null,null,null,null,null,null,null,null,null,null,null,null,null,null,null,null,null,null,null,null,null,null,null,null,null,null,null,null,null,null,null,null,null,null,null,null,null,null,null,null,null,null,null,null,null,null,null,null,null,null,null,null,null,null,null,null,null,null,null,null,null,null,null,null,null,null,null,null,null,null,null,null,null,null,null,null,null,null,null,null,null,null,10,"DA4HOQG67K82A435KQRFMPDDL","DA4IKULODJ1MZ318V3RCW3FND","Other African Background","0018","","S","","L","X","","","","",null,null,null,null,null,null,8,"0ORGUNIT","0PERS_SAREA","Personnel Subarea","0000","X","1","0","0","","","","","0000","",null,null,null,null,null,11,"D4O21W1IBUFPL4L4YTIDKIUBD","DA4HOQG67KITUSNS2AU0KOX6H","","","","","","00","X","0","0","","",null,null,null,null,null,null,null,null,null,null,null,null,null,null,null,null,null,null,null,null,null,null,null,null,null,null,null,null,null,null,null,null,null,null,null,null,null,null,null,null,null,null,null,null,null,null,null,null,null,null,null,null,null,null,null,null,null,null,null,null,null,null,null,null,null,null,null,null,null,null,null,null,null,null,null,null,null,null,null,null,null,null,null,null,null,null,8,"0000000104","1"]
[null,null,null,null,null,null,null,null,null,null,null,null,null,null,null,null,null,null,null,null,null,null,null,null,null,null,null,null,null,null,null,null,null,null,null,null,null,null,null,null,null,null,null,null,null,null,null,null,null,null,null,null,null,null,null,null,null,null,null,null,null,null,null,null,null,null,null,null,null,null,null,null,null,null,null,null,null,null,null,null,null,null,null,null,null,null,null,null,null,null,10,"D4O21W1IBUB3HEML1KWP5YGOP","D4O21W1IBUWMMRRU0P1V1XKAH","Other (Not Migrated) F/T","0019","","F","","L","","","","","",null,null,null,null,null,null,8,"0ORGUNIT","0PLANT","Plant","0000","X","0","0","0","","","","","0000","",null,null,null,null,null,11,"D4O21W1IBUFPL4L4YTIDKIUBD","DA4HOQG67KJLJEZJDU9MN4BG9","","","","","","00","X","0","0","","",null,null,null,null,null,null,null,null,null,null,null,null,null,null,null,null,null,null,null,null,null,null,null,null,null,null,null,null,null,null,null,null,null,null,null,null,null,null,null,null,null,null,null,null,null,null,null,null,null,null,null,null,null,null,null,null,null,null,null,null,null,null,null,null,null,null,null,null,null,null,null,null,null,null,null,null,null,null,null,null,null,null,null,null,null,null,8,"0000000103",""]
[null,null,null,null,null,null,null,null,null,null,null,null,null,null,null,null,null,null,null,null,null,null,null,null,null,null,null,null,null,null,null,null,null,null,null,null,null,null,null,null,null,null,null,null,null,null,null,null,null,null,null,null,null,null,null,null,null,null,null,null,null,null,null,null,null,null,null,null,null,null,null,null,null,null,null,null,null,null,null,null,null,null,null,null,null,null,null,null,null,null,10,"DA4HOQG67K82A435KQRFMPDDL","DA4IKULODJ2ENPD06N6YYITX5","Caribbean","0019","","S","","L","X","","","","",null,null,null,null,null,null,8,"0ORGUNIT","0PURCH_ORG","Purchasing org.","0000","X","0","0","0","","","","","0000","",null,null,null,null,null,11,"D4O21W1IBUFPL4L4YTIDKIUBD","DA4HOQG67KKD81BAPDP8PJPQ1","","","","","","00","X","0","0","","",null,null,null,null,null,null,null,null,null,null,null,null,null,null,null,null,null,null,null,null,null,null,null,null,null,null,null,null,null,null,null,null,null,null,null,null,null,null,null,null,null,null,null,null,null,null,null,null,null,null,null,null,null,null,null,null,null,null,null,null,null,null,null,null,null,null,null,null,null,null,null,null,null,null,null,null,null,null,null,null,null,null,null,null,null,null,8,"0000000102","1"]
[null,null,null,null,null,null,null,null,null,null,null,null,null,null,null,null,null,null,null,null,null,null,null,null,null,null,null,null,null,null,null,null,null,null,null,null,null,null,null,null,null,null,null,null,null,null,null,null,null,null,null,null,null,null,null,null,null,null,null,null,null,null,null,null,null,null,null,null,null,null,null,null,null,null,null,null,null,null,null,null,null,null,null,null,null,null,null,null,null,null,10,"DA4HOQG67K82A435KQRFMPDDL","DA4HOQG67KJLJEZJDU9MN4BG9","Black","0020","","S","","L","X","","","","",null,null,null,null,null,null,8,"0ORGUNIT","0PUR_GROUP","Purchasing group","0000","X","0","0","0","","","","","0000","",null,null,null,null,null,11,"D4O21W1IBUFPL4L4YTIDKIUBD","DA4HOQG67KL4WNN20X4URZ3ZT","","","","","","00","X","0","0","","",null,null,null,null,null,null,null,null,null,null,null,null,null,null,null,null,null,null,null,null,null,null,null,null,null,null,null,null,null,null,null,null,null,null,null,null,null,null,null,null,null,null,null,null,null,null,null,null,null,null,null,null,null,null,null,null,null,null,null,null,null,null,null,null,null,null,null,null,null,null,null,null,null,null,null,null,null,null,null,null,null,null,null,null,null,null,8,"0000000108",""]
[null,null,null,null,null,null,null,null,null,null,null,null,null,null,null,null,null,null,null,null,null,null,null,null,null,null,null,null,null,null,null,null,null,null,null,null,null,null,null,null,null,null,null,null,null,null,null,null,null,null,null,null,null,null,null,null,null,null,null,null,null,null,null,null,null,null,null,null,null,null,null,null,null,null,null,null,null,null,null,null,null,null,null,null,null,null,null,null,null,null,10,"D4O21W1IBUB3HEML1KWP5YGOP","DEN07Y1DTSNAWTLQYCBLILED5","Other (Not Migrated) P/T","0020","","F","","L","","","","","",null,null,null,null,null,null,8,"0ORGUNIT","0SALESORG","Sales Organization","0000","X","0","0","0","","","","","0000","",null,null,null,null,null,11,"D4O21W1IBUFPL4L4YTIDKIUBD","DA4HOQG67KLWL9YTCGKGUEI9L","","","","","","00","X","0","0","","",null,null,null,null,null,null,null,null,null,null,null,null,null,null,null,null,null,null,null,null,null,null,null,null,null,null,null,null,null,null,null,null,null,null,null,null,null,null,null,null,null,null,null,null,null,null,null,null,null,null,null,null,null,null,null,null,null,null,null,null,null,null,null,null,null,null,null,null,null,null,null,null,null,null,null,null,null,null,null,null,null,null,null,null,null,null,8,"0000009002","D4O21W1IBUB3HEML1KWP5YGOP"]
[null,null,null,null,null,null,null,null,null,null,null,null,null,null,null,null,null,null,null,null,null,null,null,null,null,null,null,null,null,null,null,null,null,null,null,null,null,null,null,null,null,null,null,null,null,null,null,null,null,null,null,null,null,null,null,null,null,null,null,null,null,null,null,null,null,null,null,null,null,null,null,null,null,null,null,null,null,null,null,null,null,null,null,null,null,null,null,null,null,null,10,"D4O21W1IBUB3HEML1KWP5YGOP","DEN07Y1DTSPLYOL0WYMFPVL6H","Other (Not Migrated) Total","0021","","F","","L","","","","","",null,null,null,null,null,null,8,"0ORGUNIT","0SALES_GRP","Sales group","0000","X","0","0","0","","","","","0000","",null,null,null,null,null,11,"D4O21W1IBUFPL4L4YTIDKIUBD","DA4HOQG67KMO9WAKO002WTWJD","","","","","","00","X","0","0","","",null,null,null,null,null,null,null,null,null,null,null,null,null,null,null,null,null,null,null,null,null,null,null,null,null,null,null,null,null,null,null,null,null,null,null,null,null,null,null,null,null,null,null,null,null,null,null,null,null,null,null,null,null,null,null,null,null,null,null,null,null,null,null,null,null,null,null,null,null,null,null,null,null,null,null,null,null,null,null,null,null,null,null,null,null,null,8,"0000009000",""]
[null,null,null,null,null,null,null,null,null,null,null,null,null,null,null,null,null,null,null,null,null,null,null,null,null,null,null,null,null,null,null,null,null,null,null,null,null,null,null,null,null,null,null,null,null,null,null,null,null,null,null,null,null,null,null,null,null,null,null,null,null,null,null,null,null,null,null,null,null,null,null,null,null,null,null,null,null,null,null,null,null,null,null,null,null,null,null,null,null,null,10,"DA4HOQG67K82A435KQRFMPDDL","DA4HOQG67KKD81BAPDP8PJPQ1","Other Caribbean / Black Background","0021","","S","","L","X","","","","",null,null,null,null,null,null,8,"0ORGUNIT","0SALES_OFF","Sales Office","0000","X","0","0","0","","","","","0000","",null,null,null,null,null,11,"D4O21W1IBUFPL4L4YTIDKIUBD","DA4HOQG67KNFYIMBZJFOZ9AT5","","2","","","","00","X","0","0","","",null,null,null,null,null,null,null,null,null,null,null,null,null,null,null,null,null,null,null,null,null,null,null,null,null,null,null,null,null,null,null,null,null,null,null,null,null,null,null,null,null,null,null,null,null,null,null,null,null,null,null,null,null,null,null,null,null,null,null,null,null,null,null,null,null,null,null,null,null,null,null,null,null,null,null,null,null,null,null,null,null,null,null,null,null,null,8,"0000000010",""]
[null,null,null,null,null,null,null,null,null,null,null,null,null,null,null,null,null,null,null,null,null,null,null,null,null,null,null,null,null,null,null,null,null,null,null,null,null,null,null,null,null,null,null,null,null,null,null,null,null,null,null,null,null,null,null,null,null,null,null,null,null,null,null,null,null,null,null,null,null,null,null,null,null,null,null,null,null,null,null,null,null,null,null,null,null,null,null,null,null,null,10,"DA4HOQG67K82A435KQRFMPDDL","DA4HOQG67KL4WNN20X4URZ3ZT","Black Total","0022","X","S","","L","X","","","","",null,null,null,null,null,null,8,"0CNTRCTTYPE","0CNTRCTISFT","Fixed-Term Contract","0000","X","2","0","0","","","","","0000","",null,null,null,null,null,11,"D4O21W1IBUFPL4L4YTIDKIUBD","DA4HOQG67KO7N4Y3B2VB1OP2X","","","","","","00","X","0","0","","",null,null,null,null,null,null,null,null,null,null,null,null,null,null,null,null,null,null,null,null,null,null,null,null,null,null,null,null,null,null,null,null,null,null,null,null,null,null,null,null,null,null,null,null,null,null,null,null,null,null,null,null,null,null,null,null,null,null,null,null,null,null,null,null,null,null,null,null,null,null,null,null,null,null,null,null,null,null,null,null,null,null,null,null,null,null,8,"0000000021",""]
[null,null,null,null,null,null,null,null,null,null,null,null,null,null,null,null,null,null,null,null,null,null,null,null,null,null,null,null,null,null,null,null,null,null,null,null,null,null,null,null,null,null,null,null,null,null,null,null,null,null,null,null,null,null,null,null,null,null,null,null,null,null,null,null,null,null,null,null,null,null,null,null,null,null,null,null,null,null,null,null,null,null,null,null,null,null,null,null,null,null,10,"D4O21W1IBUB3HEML1KWP5YGOP","D4O21W1IBUY600FCNRX36SCU1","Total Teaching Staff F/T","0022","","S","","L","","","","","",null,null,null,null,null,null,7,"0ORGUNIT","0BBPPURGRPX","Ind.Purchasing Group","0000","X","2","0","0","","","","","0000","",null,null,null,null,null,11,"D4O21W1IBUFPL4L4YTIDKIUBD","DA4HOQG67KOZBR9UMMAX443CP","","2","","","","00","X","0","0","","",null,null,null,null,null,null,null,null,null,null,null,null,null,null,null,null,null,null,null,null,null,null,null,null,null,null,null,null,null,null,null,null,null,null,null,null,null,null,null,null,null,null,null,null,null,null,null,null,null,null,null,null,null,null,null,null,null,null,null,null,null,null,null,null,null,null,null,null,null,null,null,null,null,null,null,null,null,null,null,null,null,null,null,null,null,null,8,"0000000022",""]
[null,null,null,null,null,null,null,null,null,null,null,null,null,null,null,null,null,null,null,null,null,null,null,null,null,null,null,null,null,null,null,null,null,null,null,null,null,null,null,null,null,null,null,null,null,null,null,null,null,null,null,null,null,null,null,null,null,null,null,null,null,null,null,null,null,null,null,null,null,null,null,null,null,null,null,null,null,null,null,null,null,null,null,null,null,null,null,null,null,null,10,"D4O21W1IBUB3HEML1KWP5YGOP","DEN0OSIFULCZTDTFE8U7RBQIH","Total Teaching Staff P/T","0023","","S","","L","","","","","",null,null,null,null,null,null,7,"0ORGUNIT","0BBPPURORGX","Ind. Purchasing Org.","0000","X","2","0","0","","","","","0000","",null,null,null,null,null,11,"D4O21W1IBUFPL4L4YTIDKIUBD","DA4HOQG67KPR0DLLY5QJ6JHMH","","2","","","","00","X","0","0","","",null,null,null,null,null,null,null,null,null,null,null,null,null,null,null,null,null,null,null,null,null,null,null,null,null,null,null,null,null,null,null,null,null,null,null,null,null,null,null,null,null,null,null,null,null,null,null,null,null,null,null,null,null,null,null,null,null,null,null,null,null,null,null,null,null,null,null,null,null,null,null,null,null,null,null,null,null,null,null,null,null,null,null,null,null,null,8,"0000000023",""]
[null,null,null,null,null,null,null,null,null,null,null,null,null,null,null,null,null,null,null,null,null,null,null,null,null,null,null,null,null,null,null,null,null,null,null,null,null,null,null,null,null,null,null,null,null,null,null,null,null,null,null,null,null,null,null,null,null,null,null,null,null,null,null,null,null,null,null,null,null,null,null,null,null,null,null,null,null,null,null,null,null,null,null,null,null,null,null,null,null,null,10,"DA4HOQG67K82A435KQRFMPDDL","DA4HOQG67KLWL9YTCGKGUEI9L","Total Black & Ethnic Employees","0023","X","S","","L","X","","","","",null,null,null,null,null,null,7,"0ORGUNIT","0BBP_BUYID","Buyer ID","0000","X","5","0","0","","","","","0000","",null,null,null,null,null,11,"D4O21W1IBUFPL4L4YTIDKIUBD","DA4HQT1FQ21CBCL0CVM3F7BP5","","","","","","00","X","0","0","","",null,null,null,null,null,null,null,null,null,null,null,null,null,null,null,null,null,null,null,null,null,null,null,null,null,null,null,null,null,null,null,null,null,null,null,null,null,null,null,null,null,null,null,null,null,null,null,null,null,null,null,null,null,null,null,null,null,null,null,null,null,null,null,null,null,null,null,null,null,null,null,null,null,null,null,null,null,null,null,null,null,null,null,null,null,null,8,"0000000030",""]
[null,null,null,null,null,null,null,null,null,null,null,null,null,null,null,null,null,null,null,null,null,null,null,null,null,null,null,null,null,null,null,null,null,null,null,null,null,null,null,null,null,null,null,null,null,null,null,null,null,null,null,null,null,null,null,null,null,null,null,null,null,null,null,null,null,null,null,null,null,null,null,null,null,null,null,null,null,null,null,null,null,null,null,null,null,null,null,null,null,null,10,"D4O21W1IBUB3HEML1KWP5YGOP","DEN0OSIFULDRI056PS9TTR4S9","Total Teaching Staff","0024","","S","","L","","","","","",null,null,null,null,null,null,7,"0ORGUNIT","0BBP_ISCOMP","Organizational Unit is Company","0000","X","1","0","0","","","","","0000","",null,null,null,null,null,11,"D4O21W1IBUFPL4L4YTIDKIUBD","DA4HQT1FQ223ZYWROF1PHMPYX","","","","","","00","X","0","0","","",null,null,null,null,null,null,null,null,null,null,null,null,null,null,null,null,null,null,null,null,null,null,null,null,null,null,null,null,null,null,null,null,null,null,null,null,null,null,null,null,null,null,null,null,null,null,null,null,null,null,null,null,null,null,null,null,null,null,null,null,null,null,null,null,null,null,null,null,null,null,null,null,null,null,null,null,null,null,null,null,null,null,null,null,null,null,8,"0000000040",""]
[null,null,null,null,null,null,null,null,null,null,null,null,null,null,null,null,null,null,null,null,null,null,null,null,null,null,null,null,null,null,null,null,null,null,null,null,null,null,null,null,null,null,null,null,null,null,null,null,null,null,null,null,null,null,null,null,null,null,null,null,null,null,null,null,null,null,null,null,null,null,null,null,null,null,null,null,null,null,null,null,null,null,null,null,null,null,null,null,null,null,10,"DA4HOQG67K82A435KQRFMPDDL","DA4HOQG67KMO9WAKO002WTWJD","Total Non Disclosed","0024","","S","","L","X","","","","",null,null,null,null,null,null,7,"0ORGUNIT","0BUS_AREA","Business area","0000","X","0","0","0","","","","","0000","",null,null,null,null,null,11,"D4O21W1IBUFPL4L4YTIDKIUBD","DA4HQT1FQ22VOL8IZYHBK248P","","","","","","00","X","0","0","","",null,null,null,null,null,null,null,null,null,null,null,null,null,null,null,null,null,null,null,null,null,null,null,null,null,null,null,null,null,null,null,null,null,null,null,null,null,null,null,null,null,null,null,null,null,null,null,null,null,null,null,null,null,null,null,null,null,null,null,null,null,null,null,null,null,null,null,null,null,null,null,null,null,null,null,null,null,null,null,null,null,null,null,null,null,null,8,"0000000041",""]
[null,null,null,null,null,null,null,null,null,null,null,null,null,null,null,null,null,null,null,null,null,null,null,null,null,null,null,null,null,null,null,null,null,null,null,null,null,null,null,null,null,null,null,null,null,null,null,null,null,null,null,null,null,null,null,null,null,null,null,null,null,null,null,null,null,null,null,null,null,null,null,null,null,null,null,null,null,null,null,null,null,null,null,null,null,null,null,null,null,null,10,"DA4HOQG67K82A435KQRFMPDDL","DA4HOQG67KNFYIMBZJFOZ9AT5","Total White Employees %","0025","X","F","","L","","","","","",null,null,null,null,null,null,7,"0ORGUNIT","0COMP_CODE","Company code","0000","X","0","0","0","","","","","0000","",null,null,null,null,null,11,"D4O21W1IBUFPL4L4YTIDKIUBD","DA4HWYL5HGT0050M6CGMF31MH","","","","","","00","X","0","0","","",null,null,null,null,null,null,null,null,null,null,null,null,null,null,null,null,null,null,null,null,null,null,null,null,null,null,null,null,null,null,null,null,null,null,null,null,null,null,null,null,null,null,null,null,null,null,null,null,null,null,null,null,null,null,null,null,null,null,null,null,null,null,null,null,null,null,null,null,null,null,null,null,null,null,null,null,null,null,null,null,null,null,null,null,null,null,8,"0000000042","0"]
[null,null,null,null,null,null,null,null,null,null,null,null,null,null,null,null,null,null,null,null,null,null,null,null,null,null,null,null,null,null,null,null,null,null,null,null,null,null,null,null,null,null,null,null,null,null,null,null,null,null,null,null,null,null,null,null,null,null,null,null,null,null,null,null,null,null,null,null,null,null,null,null,null,null,null,null,null,null,null,null,null,null,null,null,null,null,null,null,null,null,10,"D4O21W1IBUB3HEML1KWP5YGOP","DEN0OSIFULEJ6MGY1BPFW6J21","Total Non-Teaching Staff F/T","0025","","S","","L","","","","","",null,null,null,null,null,null,7,"0ORGUNIT","0CO_MST_AR","Controlling Area of Master Cost Center","0000","X","0","0","0","","","","","0000","",null,null,null,null,null,11,"D4O21W1IBUFPL4L4YTIDKIUBD","DA4IKULODJ1MZ318V3RCW3FND","","","","","","00","X","0","0","","",null,null,null,null,null,null,null,null,null,null,null,null,null,null,null,null,null,null,null,null,null,null,null,null,null,null,null,null,null,null,null,null,null,null,null,null,null,null,null,null,null,null,null,null,null,null,null,null,null,null,null,null,null,null,null,null,null,null,null,null,null,null,null,null,null,null,null,null,null,null,null,null,null,null,null,null,null,null,null,null,null,null,null,null,null,null,8,"0000000043","0"]
[null,null,null,null,null,null,null,null,null,null,null,null,null,null,null,null,null,null,null,null,null,null,null,null,null,null,null,null,null,null,null,null,null,null,null,null,null,null,null,null,null,null,null,null,null,null,null,null,null,null,null,null,null,null,null,null,null,null,null,null,null,null,null,null,null,null,null,null,null,null,null,null,null,null,null,null,null,null,null,null,null,null,null,null,null,null,null,null,null,null,10,"D4O21W1IBUB3HEML1KWP5YGOP","DEN07Y1DTSOUA299LF6TNG6WP","Total Non-Teaching Staff P/T","0026","","S","","L","","","","","",null,null,null,null,null,null,7,"0ORGUNIT","0CRMSALGRPX","Sls Group: Indicator","0000","X","2","0","0","","","","","0000","",null,null,null,null,null,11,"D4O21W1IBUFPL4L4YTIDKIUBD","DA4IKULODJ2ENPD06N6YYITX5","","","","","","00","X","0","0","","",null,null,null,null,null,null,null,null,null,null,null,null,null,null,null,null,null,null,null,null,null,null,null,null,null,null,null,null,null,null,null,null,null,null,null,null,null,null,null,null,null,null,null,null,null,null,null,null,null,null,null,null,null,null,null,null,null,null,null,null,null,null,null,null,null,null,null,null,null,null,null,null,null,null,null,null,null,null,null,null,null,null,null,null,null,null,8,"0000000109","0"]
[null,null,null,null,null,null,null,null,null,null,null,null,null,null,null,null,null,null,null,null,null,null,null,null,null,null,null,null,null,null,null,null,null,null,null,null,null,null,null,null,null,null,null,null,null,null,null,null,null,null,null,null,null,null,null,null,null,null,null,null,null,null,null,null,null,null,null,null,null,null,null,null,null,null,null,null,null,null,null,null,null,null,null,null,null,null,null,null,null,null,10,"DA4HOQG67K82A435KQRFMPDDL","DA4HOQG67KOZBR9UMMAX443CP","Total Black & Ethnic Employees %","0026","X","F","","L","","","","","",null,null,null,null,null,null,7,"0ORGUNIT","0CRMSALOFFX","Sls Office:Indicator","0000","X","2","0","0","","","","","0000","",null,null,null,null,null,11,"D4O21W1IBUGH9QWWACXZMY8L5","DA4HOQG67K8TYQEWWA71P4RND","","","","","","00","X","0","0","","",null,null,null,null,null,null,null,null,null,null,null,null,null,null,null,null,null,null,null,null,null,null,null,null,null,null,null,null,null,null,null,null,null,null,null,null,null,null,null,null,null,null,null,null,null,null,null,null,null,null,null,null,null,null,null,null,null,null,null,null,null,null,null,null,null,null,null,null,null,null,null,null,null,null,null,null,null,null,null,null,null,null,null,null,null,null,8,"0000000113",""]
[null,null,null,null,null,null,null,null,null,null,null,null,null,null,null,null,null,null,null,null,null,null,null,null,null,null,null,null,null,null,null,null,null,null,null,null,null,null,null,null,null,null,null,null,null,null,null,null,null,null,null,null,null,null,null,null,null,null,null,null,null,null,null,null,null,null,null,null,null,null,null,null,null,null,null,null,null,null,null,null,null,null,null,null,null,null,null,null,null,null,10,"D4O21W1IBUB3HEML1KWP5YGOP","DEN07Y1DTSR5BX8JK1HNUQDQ1","Total Non-Teaching Staff","0027","","S","","L","","","","","",null,null,null,null,null,null,7,"0ORGUNIT","0CRMSALORGX","Sales Org. Indicator","0000","X","2","0","0","","","","","0000","",null,null,null,null,null,11,"D4O21W1IBUGH9QWWACXZMY8L5","DA4HOQG67K9LNCQO7TMNRK5X5","","","","","","00","X","0","0","","",null,null,null,null,null,null,null,null,null,null,null,null,null,null,null,null,null,null,null,null,null,null,null,null,null,null,null,null,null,null,null,null,null,null,null,null,null,null,null,null,null,null,null,null,null,null,null,null,null,null,null,null,null,null,null,null,null,null,null,null,null,null,null,null,null,null,null,null,null,null,null,null,null,null,null,null,null,null,null,null,null,null,null,null,null,null,8,"0000000120",""]
[null,null,null,null,null,null,null,null,null,null,null,null,null,null,null,null,null,null,null,null,null,null,null,null,null,null,null,null,null,null,null,null,null,null,null,null,null,null,null,null,null,null,null,null,null,null,null,null,null,null,null,null,null,null,null,null,null,null,null,null,null,null,null,null,null,null,null,null,null,null,null,null,null,null,null,null,null,null,null,null,null,null,null,null,null,null,null,null,null,null,10,"DA4HOQG67K82A435KQRFMPDDL","DA4HOQG67KPR0DLLY5QJ6JHMH","Total Non Declared %","0027","X","F","","L","","","","","",null,null,null,null,null,null,7,"0ORGUNIT","0CRMSRVTGRP","Ex. CRM Service Org.","0000","X","1","0","0","","","","","0000","",null,null,null,null,null,11,"D4O21W1IBUGH9QWWACXZMY8L5","DA4HOQG67KADBZ2FJD29TZK6X","","","","","","00","X","0","0","","",null,null,null,null,null,null,null,null,null,null,null,null,null,null,null,null,null,null,null,null,null,null,null,null,null,null,null,null,null,null,null,null,null,null,null,null,null,null,null,null,null,null,null,null,null,null,null,null,null,null,null,null,null,null,null,null,null,null,null,null,null,null,null,null,null,null,null,null,null,null,null,null,null,null,null,null,null,null,null,null,null,null,null,null,null,null,8,"0000000121",""]
[null,null,null,null,null,null,null,null,null,null,null,null,null,null,null,null,null,null,null,null,null,null,null,null,null,null,null,null,null,null,null,null,null,null,null,null,null,null,null,null,null,null,null,null,null,null,null,null,null,null,null,null,null,null,null,null,null,null,null,null,null,null,null,null,null,null,null,null,null,null,null,null,null,null,null,null,null,null,null,null,null,null,null,null,null,null,null,null,null,null,10,"DA4HOQG67K82A435KQRFMPDDL","DA4HOQG67KO7N4Y3B2VB1OP2X","Total Workforce","0028","X","S","","L","X","","","","",null,null,null,null,null,null,7,"0ORGUNIT","0CRM_SALGRP","CRM Sales Group","0000","X","1","0","0","","","","","0000","",null,null,null,null,null,11,"D4O21W1IBUGH9QWWACXZMY8L5","DA4HOQG67KBWP7PY6FXHYUCQH","","","","","","00","X","0","0","","",null,null,null,null,null,null,null,null,null,null,null,null,null,null,null,null,null,null,null,null,null,null,null,null,null,null,null,null,null,null,null,null,null,null,null,null,null,null,null,null,null,null,null,null,null,null,null,null,null,null,null,null,null,null,null,null,null,null,null,null,null,null,null,null,null,null,null,null,null,null,null,null,null,null,null,null,null,null,null,null,null,null,null,null,null,null,8,"0000010001","DA4HO01I2JQZCATPRJUTJDEK9"]
[null,null,null,null,null,null,null,null,null,null,null,null,null,null,null,null,null,null,null,null,null,null,null,null,null,null,null,null,null,null,null,null,null,null,null,null,null,null,null,null,null,null,null,null,null,null,null,null,null,null,null,null,null,null,null,null,null,null,null,null,null,null,null,null,null,null,null,null,null,null,null,null,null,null,null,null,null,null,null,null,null,null,null,null,null,null,null,null,null,null,10,"D4O21W1IBUB3HEML1KWP5YGOP","D4O21W1IBUXEBE3LC8HH4CYK9","Total - All WPBR Grades F/T","0028","","F","","L","","","","","",null,null,null,null,null,null,7,"0ORGUNIT","0CRM_SALOFF","CRM Sales Office","0000","X","1","0","0","","","","","0000","",null,null,null,null,null,11,"D4O21W1IBUGH9QWWACXZMY8L5","DA4HOQG67KCODU1PHZD419R09","","","","","","00","X","0","0","","",null,null,null,null,null,null,null,null,null,null,null,null,null,null,null,null,null,null,null,null,null,null,null,null,null,null,null,null,null,null,null,null,null,null,null,null,null,null,null,null,null,null,null,null,null,null,null,null,null,null,null,null,null,null,null,null,null,null,null,null,null,null,null,null,null,null,null,null,null,null,null,null,null,null,null,null,null,null,null,null,null,null,null,null,null,null,8,"0000010002","DA4HO01I2JEOEDLKMWX0GJ27T"]
[null,null,null,null,null,null,null,null,null,null,null,null,null,null,null,null,null,null,null,null,null,null,null,null,null,null,null,null,null,null,null,null,null,null,null,null,null,null,null,null,null,null,null,null,null,null,null,null,null,null,null,null,null,null,null,null,null,null,null,null,null,null,null,null,null,null,null,null,null,null,null,null,null,null,null,null,null,null,null,null,null,null,null,null,null,null,null,null,null,null,10,"D4O21W1IBUB3HEML1KWP5YGOP","DEN07Y1DTSO2LFXI9VR7L0SMX","Total - All WPBR Grades P/T","0029","","F","","L","","","","","",null,null,null,null,null,null,7,"0ORGUNIT","0CRM_SALORG","CRM Sales Org.","0000","X","1","0","0","","","","","0000","",null,null,null,null,null,11,"D4O21W1IBUGH9QWWACXZMY8L5","DA4HOQG67KDG2GDGTISQ3P5A1","","","","","","00","X","0","0","","",null,null,null,null,null,null,null,null,null,null,null,null,null,null,null,null,null,null,null,null,null,null,null,null,null,null,null,null,null,null,null,null,null,null,null,null,null,null,null,null,null,null,null,null,null,null,null,null,null,null,null,null,null,null,null,null,null,null,null,null,null,null,null,null,null,null,null,null,null,null,null,null,null,null,null,null,null,null,null,null,null,null,null,null,null,null,8,"0000000105",""]
[null,null,null,null,null,null,null,null,null,null,null,null,null,null,null,null,null,null,null,null,null,null,null,null,null,null,null,null,null,null,null,null,null,null,null,null,null,null,null,null,null,null,null,null,null,null,null,null,null,null,null,null,null,null,null,null,null,null,null,null,null,null,null,null,null,null,null,null,null,null,null,null,null,null,null,null,null,null,null,null,null,null,null,null,null,null,null,null,null,null,10,"D4O21W1IBUB3HEML1KWP5YGOP","DEN07Y1DTSQDNAWS8I21SAZG9","Total Workforce - All WPBR Grades","0030","","F","","L","","","","","",null,null,null,null,null,null,7,"0ORGUNIT","0CRM_SRVORG","Service Org. CRM","0000","X","1","0","0","","","","","0000","",null,null,null,null,null,11,"D4O21W1IBUGH9QWWACXZMY8L5","DA4HOQG67KE7R2P8528C64JJT","","","","","","00","X","0","0","","",null,null,null,null,null,null,null,null,null,null,null,null,null,null,null,null,null,null,null,null,null,null,null,null,null,null,null,null,null,null,null,null,null,null,null,null,null,null,null,null,null,null,null,null,null,null,null,null,null,null,null,null,null,null,null,null,null,null,null,null,null,null,null,null,null,null,null,null,null,null,null,null,null,null,null,null,null,null,null,null,null,null,null,null,null,null,8,"0000000106",""]
[null,null,null,null,null,null,null,null,null,null,null,null,null,null,null,null,null,null,null,null,null,null,null,null,null,null,null,null,null,null,null,null,null,null,null,null,null,null,null,null,null,null,null,null,null,null,null,null,null,null,null,null,null,null,null,null,null,null,null,null,null,null,null,null,null,null,null,null,null,null,null,null,null,null,null,null,null,null,null,null,null,null,null,null,null,null,null,null,null,null,10,"D4O21W1IBUB3HEML1KWP5YGOP","D4O21W1IBV8XKOZZ5BZO4RWMX","Total Workforce (All) F/T","0031","","S","","L","","","","","",null,null,null,null,null,null,7,"0ORGUNIT","0LOGSYS","Source System","0000","X","1","0","0","","","","","0000","",null,null,null,null,null,11,"D4O21W1IBUGH9QWWACXZMY8L5","DA4HOQG67KEZFP0ZGLNY8JXTL","","","","","","00","X","0","0","","",null,null,null,null,null,null,null,null,null,null,null,null,null,null,null,null,null,null,null,null,null,null,null,null,null,null,null,null,null,null,null,null,null,null,null,null,null,null,null,null,null,null,null,null,null,null,null,null,null,null,null,null,null,null,null,null,null,null,null,null,null,null,null,null,null,null,null,null,null,null,null,null,null,null,null,null,null,null,null,null,null,null,null,null,null,null,8,"0000000112","0"]
[null,null,null,null,null,null,null,null,null,null,null,null,null,null,null,null,null,null,null,null,null,null,null,null,null,null,null,null,null,null,null,null,null,null,null,null,null,null,null,null,null,null,null,null,null,null,null,null,null,null,null,null,null,null,null,null,null,null,null,null,null,null,null,null,null,null,null,null,null,null,null,null,null,null,null,null,null,null,null,null,null,null,null,null,null,null,null,null,null,null,10,"D4O21W1IBUB3HEML1KWP5YGOP","DEN07Y1DTSRX0JKAVKX9X5RZT","Total Workforce (All) P/T","0032","","S","","L","","","","","",null,null,null,null,null,null,7,"0ORGUNIT","0MAST_CCTR","Master Cost Center","0000","X","0","0","0","","","","","0000","",null,null,null,null,null,11,"D4O21W1IBUGH9QWWACXZMY8L5","DA4HOQG67KFR4BCQS53KAZC3D","","","","","","00","X","0","0","","",null,null,null,null,null,null,null,null,null,null,null,null,null,null,null,null,null,null,null,null,null,null,null,null,null,null,null,null,null,null,null,null,null,null,null,null,null,null,null,null,null,null,null,null,null,null,null,null,null,null,null,null,null,null,null,null,null,null,null,null,null,null,null,null,null,null,null,null,null,null,null,null,null,null,null,null,null,null,null,null,null,null,null,null,null,null,8,"0000000200","X"]
[null,null,null,null,null,null,null,null,null,null,null,null,null,null,null,null,null,null,null,null,null,null,null,null,null,null,null,null,null,null,null,null,null,null,null,null,null,null,null,null,null,null,null,null,null,null,null,null,null,null,null,null,null,null,null,null,null,null,null,null,null,null,null,null,null,null,null,null,null,null,null,null,null,null,null,null,null,null,null,null,null,null,null,null,null,null,null,null,null,null,10,"D4O21W1IBUB3HEML1KWP5YGOP","DEN07Y1DTSSOP5W274CVZL69L","Total Workforce (All)","0033","","S","","L","","","","","",null,null,null,null,null,null,7,"0ORGUNIT","0PERS_AREA","Personnel Area","0000","X","1","0","0","","","","","0000","",null,null,null,null,null,11,"D4O21W1IBUGH9QWWACXZMY8L5","DA4HOQG67KGISXOI3OJ6DEQD5","","","","","","00","X","0","0","","",null,null,null,null,null,null,null,null,null,null,null,null,null,null,null,null,null,null,null,null,null,null,null,null,null,null,null,null,null,null,null,null,null,null,null,null,null,null,null,null,null,null,null,null,null,null,null,null,null,null,null,null,null,null,null,null,null,null,null,null,null,null,null,null,null,null,null,null,null,null,null,null,null,null,null,null,null,null,null,null,null,null,null,null,null,null,8,"0000004000","X"]
[null,null,null,null,null,null,null,null,null,null,null,null,null,null,null,null,null,null,null,null,null,null,null,null,null,null,null,null,null,null,null,null,null,null,null,null,null,null,null,null,null,null,null,null,null,null,null,null,null,null,null,null,null,null,null,null,null,null,null,null,null,null,null,null,null,null,null,null,null,null,null,null,null,null,null,null,null,null,null,null,null,null,null,null,null,null,null,null,null,null,9,"D4O21W1IBUB3HEML1KWP5YGOP","D4O21W1IBUH8YD8NLWDLPDMUX","Grade 9 - 15 F/T","0013","","S","","L","","","","","",null,null,null,null,null,null,6,"0ORGUNIT","0PERS_AREA","Personnel Area","0000","X","1","0","0","","","","","0000","",null,null,null,null,null,11,"D4O21W1IBUH8YD8NLWDLPDMUX","DA4HOQG67KEZFP0ZGLNY8JXTL","","","","","","00","X","0","0","","",null,null,null,null,null,null,null,null,null,null,null,null,null,null,null,null,null,null,null,null,null,null,null,null,null,null,null,null,null,null,null,null,null,null,null,null,null,null,null,null,null,null,null,null,null,null,null,null,null,null,null,null,null,null,null,null,null,null,null,null,null,null,null,null,null,null,null,null,null,null,null,null,null,null,null,null,null,null,null,null,null,null,null,null,null,null,7,"0000010002","DA4HO01I2JEOEDLKMWX0GJ27T"]
[null,null,null,null,null,null,null,null,null,null,null,null,null,null,null,null,null,null,null,null,null,null,null,null,null,null,null,null,null,null,null,null,null,null,null,null,null,null,null,null,null,null,null,null,null,null,null,null,null,null,null,null,null,null,null,null,null,null,null,null,null,null,null,null,null,null,null,null,null,null,null,null,null,null,null,null,null,null,null,null,null,null,null,null,null,null,null,null,null,null,8,"D4O21W1IBUB3HEML1KWP5YGOP","DEN07Y1DTSPLYOL0WYMFPVL6H","Other (Not Migrated) Total","0021","","F","","L","","","","","",null,null,null,null,null,null,null,null,null,null,null,null,null,null,null,null,null,null,null,null,null,null,null,null,null,null,11,"D4O21W1IBUL3DGVG7LJO1IM7T","DA4IKULODJ2ENPD06N6YYITX5","","","","","","00","X","0","0","","",null,null,null,null,null,null,null,null,null,null,null,null,null,null,null,null,null,null,null,null,null,null,null,null,null,null,null,null,null,null,null,null,null,null,null,null,null,null,null,null,null,null,null,null,null,null,null,null,null,null,null,null,null,null,null,null,null,null,null,null,null,null,null,null,null,null,null,null,null,null,null,null,null,null,null,null,null,null,null,null,null,null,null,null,null,null,4,"0000000108",""]
[null,null,null,null,null,null,null,null,null,null,null,null,null,null,null,null,null,null,null,null,null,null,null,null,null,null,null,null,null,null,null,null,null,null,null,null,null,null,null,null,null,null,null,null,null,null,null,null,null,null,null,null,null,null,null,null,null,null,null,null,null,null,null,null,null,null,null,null,null,null,null,null,null,null,null,null,null,null,null,null,null,null,null,null,null,null,null,null,null,null,7,"D4O21W1IBUB3HEML1KWP5YGOP","D4O21W1IBUO63Y6HHRA4B87AX","Grade 9 - 15 Total","0015","","S","","L","","","","","",null,null,null,null,null,null,null,null,null,null,null,null,null,null,null,null,null,null,null,null,null,null,null,null,null,null,11,"D4O21W1IBUMMQPIYUOEW6DERD","DA4HOQG67KPR0DLLY5QJ6JHMH","","2","","","","00","X","0","0","",""]
[null,null,null,null,null,null,null,null,null,null,null,null,null,null,null,null,null,null,null,null,null,null,null,null,null,null,null,null,null,null,null,null,null,null,null,null,null,null,null,null,null,null,null,null,null,null,null,null,null,null,null,null,null,null,null,null,null,null,null,null,null,null,null,null,null,null,null,null,null,null,null,null,null,null,null,null,null,null,null,null,null,null,null,null,null,null,null,null,null,null,7,"D4O21W1IBUB3HEML1KWP5YGOP","DEN07Y1DTSOUA299LF6TNG6WP","Total Non-Teaching Staff P/T","0026","","S","","L","","","","","",null,null,null,null,null,null,null,null,null,null,null,null,null,null,null,null,null,null,null,null,null,null,null,null,null,null,11,"D4O21W1IBUNEFBUQ67UI8ST15","DA4HOQG67KKD81BAPDP8PJPQ1","","","","","","00","X","0","0","",""]
[null,null,null,null,null,null,null,null,null,null,null,null,null,null,null,null,null,null,null,null,null,null,null,null,null,null,null,null,null,null,null,null,null,null,null,null,null,null,null,null,null,null,null,null,null,null,null,null,null,null,null,null,null,null,null,null,null,null,null,null,null,null,null,null,null,null,null,null,null,null,null,null,null,null,null,null,null,null,null,null,null,null,null,null,null,null,null,null,null,null,5,"D4O21W1IBUB3HEML1KWP5YGOP","D4O21W1IBUEXWI9DNA2RI3G1L","Grade 8 F/T","0007","","S","","L","","","","","",null,null,null,null,null,null,null,null,null,null,null,null,null,null,null,null,null,null,null,null,null,null,null,null,null,null,11,"D4O21W1IBUXEBE3LC8HH4CYK9","DA4HOQG67KL4WNN20X4URZ3ZT","","0","","","","00","X","0","0","",""]
[null,null,null,null,null,null,null,null,null,null,null,null,null,null,null,null,null,null,null,null,null,null,null,null,null,null,null,null,null,null,null,null,null,null,null,null,null,null,null,null,null,null,null,null,null,null,null,null,null,null,null,null,null,null,null,null,null,null,null,null,null,null,null,null,null,null,null,null,null,null,null,null,null,null,null,null,null,null,null,null,null,null,null,null,null,null,null,null,null,null,4,"DA4HOQG67K82A435KQRFMPDDL","DA4HOQG67KE7R2P8528C64JJT","Indian","0012","","S","","L","X","","","","",null,null,null,null,null,null,null,null,null,null,null,null,null,null,null,null,null,null,null,null,null,null,null,null,null,null,11,"D4O21W1IBV18QHQDXXNJGHXX5","DA4HOQG67KADBZ2FJD29TZK6X","","","","","","00","X","0","0","",""]
[null,null,null,null,null,null,null,null,null,null,null,null,null,null,null,null,null,null,null,null,null,null,null,null,null,null,null,null,null,null,null,null,null,null,null,null,null,null,null,null,null,null,null,null,null,null,null,null,null,null,null,null,null,null,null,null,null,null,null,null,null,null,null,null,null,null,null,null,null,null,null,null,null,null,null,null,null,null,null,null,null,null,null,null,null,null,null,null,null,null,4,"DA4HOQG67K82A435KQRFMPDDL","DA4HOQG67KMO9WAKO002WTWJD","Total Non Disclosed","0024","","S","","L","X","","","","",null,null,null,null,null,null,null,null,null,null,null,null,null,null,null,null,null,null,null,null,null,null,null,null,null,null,11,"D4O21W1IBV18QHQDXXNJGHXX5","DA4HQT1FQ223ZYWROF1PHMPYX","","","","","","00","X","0","0","",""]
[null,null,null,null,null,null,null,null,null,null,null,null,null,null,null,null,null,null,null,null,null,null,null,null,null,null,null,null,null,null,null,null,null,null,null,null,null,null,null,null,null,null,null,null,null,null,null,null,null,null,null,null,null,null,null,null,null,null,null,null,null,null,null,null,null,null,null,null,null,null,null,null,null,null,null,null,null,null,null,null,null,null,null,null,null,null,null,null,null,null,null,null,null,null,null,null,null,null,null,null,null,null,null,null,null,null,null,null,null,null,null,null,null,null,null,null,null,null,null,null,null,null,null,null,null,null,null,null,null,null,11,"DEMAFDB5LZ4S252XBVM7GJP4P","DA4HOQG67KMO9WAKO002WTWJD","","","","","","00","X","0","0","",""]
[null,null,null,null,null,null,null,null,null,null,null,null,null,null,null,null,null,null,null,null,null,null,null,null,null,null,null,null,null,null,null,null,null,null,null,null,null,null,null,null,null,null,null,null,null,null,null,null,null,null,null,null,null,null,null,null,null,null,null,null,null,null,null,null,null,null,null,null,null,null,null,null,null,null,null,null,null,null,null,null,null,null,null,null,null,null,null,null,null,null,null,null,null,null,null,null,null,null,null,null,null,null,null,null,null,null,null,null,null,null,null,null,null,null,null,null,null,null,null,null,null,null,null,null,null,null,null,null,null,null,11,"DEN04FDC1K04NBJW47LA7T915","DA4HQT1FQ22VOL8IZYHBK248P","","","","","","00","X","0","0","",""]
[null,null,null,null,null,null,null,null,null,null,null,null,null,null,null,null,null,null,null,null,null,null,null,null,null,null,null,null,null,null,null,null,null,null,null,null,null,null,null,null,null,null,null,null,null,null,null,null,null,null,null,null,null,null,null,null,null,null,null,null,null,null,null,null,null,null,null,null,null,null,null,null,null,null,null,null,null,null,null,null,null,null,null,null,null,null,null,null,null,null,null,null,null,null,null,null,null,null,null,null,null,null,null,null,null,null,null,null,null,null,null,null,null,null,null,null,null,null,null,null,null,null,null,null,null,null,null,null,null,null,11,"DEN07Y1DTSO2LFXI9VR7L0SMX","DA4HOQG67KCODU1PHZD419R09","","0","","","","00","X","0","0","",""]
[null,null,null,null,null,null,null,null,null,null,null,null,null,null,null,null,null,null,null,null,null,null,null,null,null,null,null,null,null,null,null,null,null,null,null,null,null,null,null,null,null,null,null,null,null,null,null,null,null,null,null,null,null,null,null,null,null,null,null,null,null,null,null,null,null,null,null,null,null,null,null,null,null,null,null,null,null,null,null,null,null,null,null,null,null,null,null,null,null,null,null,null,null,null,null,null,null,null,null,null,null,null,null,null,null,null,null,null,null,null,null,null,null,null,null,null,null,null,null,null,null,null,null,null,null,null,null,null,null,null,11,"DEN07Y1DTSOUA299LF6TNG6WP","DA4IKULODJ1MZ318V3RCW3FND","","","","","","00","X","0","0","",""]
[null,null,null,null,null,null,null,null,null,null,null,null,null,null,null,null,null,null,null,null,null,null,null,null,null,null,null,null,null,null,null,null,null,null,null,null,null,null,null,null,null,null,null,null,null,null,null,null,null,null,null,null,null,null,null,null,null,null,null,null,null,null,null,null,null,null,null,null,null,null,null,null,null,null,null,null,null,null,null,null,null,null,null,null,null,null,null,null,null,null,null,null,null,null,null,null,null,null,null,null,null,null,null,null,null,null,null,null,null,null,null,null,null,null,null,null,null,null,null,null,null,null,null,null,null,null,null,null,null,null,11,"DEN07Y1DTSR5BX8JK1HNUQDQ1","DA4HOQG67KNFYIMBZJFOZ9AT5","","2","","","","00","X","0","0","",""]
[null,null,null,null,null,null,null,null,null,null,null,null,null,null,null,null,null,null,null,null,null,null,null,null,null,null,null,null,null,null,null,null,null,null,null,null,null,null,null,null,null,null,null,null,null,null,null,null,null,null,null,null,null,null,null,null,null,null,null,null,null,null,null,null,null,null,null,null,null,null,null,null,null,null,null,null,null,null,null,null,null,null,null,null,null,null,null,null,null,null,null,null,null,null,null,null,null,null,null,null,null,null,null,null,null,null,null,null,null,null,null,null,null,null,null,null,null,null,null,null,null,null,null,null,null,null,null,null,null,null,11,"DEN07Y1DTSSOP5W274CVZL69L","DA4HOQG67KITUSNS2AU0KOX6H","","","","","","00","X","0","0","",""]
[null,null,null,null,null,null,null,null,null,null,null,null,null,null,null,null,null,null,null,null,null,null,null,null,null,null,null,null,null,null,null,null,null,null,null,null,null,null,null,null,null,null,null,null,null,null,null,null,null,null,null,null,null,null,null,null,null,null,null,null,null,null,null,null,null,null,null,null,null,null,null,null,null,null,null,null,null,null,null,null,null,null,null,null,null,null,null,null,null,null,null,null,null,null,null,null,null,null,null,null,null,null,null,null,null,null,null,null,null,null,null,null,null,null,null,null,null,null,null,null,null,null,null,null,null,null,null,null,null,null,11,"DEN0OSIFULDRI056PS9TTR4S9","DA4HOQG67K9LNCQO7TMNRK5X5","","","","","","00","X","0","0","",""]
[null,null,null,null,null,null,null,null,null,null,null,null,null,null,null,null,null,null,null,null,null,null,null,null,null,null,null,null,null,null,null,null,null,null,null,null,null,null,null,null,null,null,null,null,null,null,null,null,null,null,null,null,null,null,null,null,null,null,null,null,null,null,null,null,null,null,null,null,null,null,null,null,null,null,null,null,null,null,null,null,null,null,null,null,null,null,null,null,null,null,null,null,null,null,null,null,null,null,null,null,null,null,null,null,null,null,null,null,null,null,null,null,null,null,null,null,null,null,null,null,null,null,null,null,null,null,null,null,null,null,11,"DEN0OSIFULEJ6MGY1BPFW6J21","DA4HOQG67K8TYQEWWA71P4RND","","","","","","00","X","0","0","",""]
[null,null,null,null,null,null,null,null,null,null,null,null,null,null,null,null,null,null,null,null,null,null,null,null,null,null,null,null,null,null,null,null,null,null,null,null,null,null,null,null,null,null,null,null,null,null,null,null,null,null,null,null,null,null,null,null,null,null,null,null,null,null,null,null,null,null,null,null,null,null,null,null,null,null,null,null,null,null,null,null,null,null,null,null,null,null,null,null,null,null,null,null,null,null,null,null,null,null,null,null,null,null,null,null,null,null,null,null,null,null,null,null,null,null,null,null,null,null,null,null,null,null,null,null,null,null,null,null,null,null,10,"D4O21W1IBUEXWI9DNA2RI3G1L","DA4HOQG67KPR0DLLY5QJ6JHMH","","2","","","","00","X","0","0","",""]
[null,null,null,null,null,null,null,null,null,null,null,null,null,null,null,null,null,null,null,null,null,null,null,null,null,null,null,null,null,null,null,null,null,null,null,null,null,null,null,null,null,null,null,null,null,null,null,null,null,null,null,null,null,null,null,null,null,null,null,null,null,null,null,null,null,null,null,null,null,null,null,null,null,null,null,null,null,null,null,null,null,null,null,null,null,null,null,null,null,null,null,null,null,null,null,null,null,null,null,null,null,null,null,null,null,null,null,null,null,null,null,null,null,null,null,null,null,null,null,null,null,null,null,null,null,null,null,null,null,null,10,"D4O21W1IBUFPL4L4YTIDKIUBD","DA4HOQG67KKD81BAPDP8PJPQ1","","","","","","00","X","0","0","",""]
[null,null,null,null,null,null,null,null,null,null,null,null,null,null,null,null,null,null,null,null,null,null,null,null,null,null,null,null,null,null,null,null,null,null,null,null,null,null,null,null,null,null,null,null,null,null,null,null,null,null,null,null,null,null,null,null,null,null,null,null,null,null,null,null,null,null,null,null,null,null,null,null,null,null,null,null,null,null,null,null,null,null,null,null,null,null,null,null,null,null,null,null,null,null,null,null,null,null,null,null,null,null,null,null,null,null,null,null,null,null,null,null,null,null,null,null,null,null,null,null,null,null,null,null,null,null,null,null,null,null,10,"D4O21W1IBUKBOUJOW241Z37Y1","DA4HOQG67KHAHK09F7YSFU4MX","","","","","","00","X","0","0","",""]
[null,null,null,null,null,null,null,null,null,null,null,null,null,null,null,null,null,null,null,null,null,null,null,null,null,null,null,null,null,null,null,null,null,null,null,null,null,null,null,null,null,null,null,null,null,null,null,null,null,null,null,null,null,null,null,null,null,null,null,null,null,null,null,null,null,null,null,null,null,null,null,null,null,null,null,null,null,null,null,null,null,null,null,null,null,null,null,null,null,null,null,null,null,null,null,null,null,null,null,null,null,null,null,null,null,null,null,null,null,null,null,null,null,null,null,null,null,null,null,null,null,null,null,null,null,null,null,null,null,null,10,"D4O21W1IBUL3DGVG7LJO1IM7T","DA4HOQG67KBWP7PY6FXHYUCQH","","","","","","00","X","0","0","",""]
[null,null,null,null,null,null,null,null,null,null,null,null,null,null,null,null,null,null,null,null,null,null,null,null,null,null,null,null,null,null,null,null,null,null,null,null,null,null,null,null,null,null,null,null,null,null,null,null,null,null,null,null,null,null,null,null,null,null,null,null,null,null,null,null,null,null,null,null,null,null,null,null,null,null,null,null,null,null,null,null,null,null,null,null,null,null,null,null,null,null,null,null,null,null,null,null,null,null,null,null,null,null,null,null,null,null,null,null,null,null,null,null,null,null,null,null,null,null,null,null,null,null,null,null,null,null,null,null,null,null,10,"D4O21W1IBUMMQPIYUOEW6DERD","DA4HQT1FQ223ZYWROF1PHMPYX","","","","","","00","X","0","0","",""]
[null,null,null,null,null,null,null,null,null,null,null,null,null,null,null,null,null,null,null,null,null,null,null,null,null,null,null,null,null,null,null,null,null,null,null,null,null,null,null,null,null,null,null,null,null,null,null,null,null,null,null,null,null,null,null,null,null,null,null,null,null,null,null,null,null,null,null,null,null,null,null,null,null,null,null,null,null,null,null,null,null,null,null,null,null,null,null,null,null,null,null,null,null,null,null,null,null,null,null,null,null,null,null,null,null,null,null,null,null,null,null,null,null,null,null,null,null,null,null,null,null,null,null,null,null,null,null,null,null,null,10,"D4O21W1IBUO63Y6HHRA4B87AX","DA4HOQG67KMO9WAKO002WTWJD","","","","","","00","X","0","0","",""]
[null,null,null,null,null,null,null,null,null,null,null,null,null,null,null,null,null,null,null,null,null,null,null,null,null,null,null,null,null,null,null,null,null,null,null,null,null,null,null,null,null,null,null,null,null,null,null,null,null,null,null,null,null,null,null,null,null,null,null,null,null,null,null,null,null,null,null,null,null,null,null,null,null,null,null,null,null,null,null,null,null,null,null,null,null,null,null,null,null,null,null,null,null,null,null,null,null,null,null,null,null,null,null,null,null,null,null,null,null,null,null,null,null,null,null,null,null,null,null,null,null,null,null,null,null,null,null,null,null,null,10,"D4O21W1IBUY600FCNRX36SCU1","DA4HOQG67KGISXOI3OJ6DEQD5","","","","","","00","X","0","0","",""]
[null,null,null,null,null,null,null,null,null,null,null,null,null,null,null,null,null,null,null,null,null,null,null,null,null,null,null,null,null,null,null,null,null,null,null,null,null,null,null,null,null,null,null,null,null,null,null,null,null,null,null,null,null,null,null,null,null,null,null,null,null,null,null,null,null,null,null,null,null,null,null,null,null,null,null,null,null,null,null,null,null,null,null,null,null,null,null,null,null,null,null,null,null,null,null,null,null,null,null,null,null,null,null,null,null,null,null,null,null,null,null,null,null,null,null,null,null,null,null,null,null,null,null,null,null,null,null,null,null,null,10,"D4O21W1IBV18QHQDXXNJGHXX5","DA4HOQG67KO7N4Y3B2VB1OP2X","","","","","","00","X","0","0","",""]
[null,null,null,null,null,null,null,null,null,null,null,null,null,null,null,null,null,null,null,null,null,null,null,null,null,null,null,null,null,null,null,null,null,null,null,null,null,null,null,null,null,null,null,null,null,null,null,null,null,null,null,null,null,null,null,null,null,null,null,null,null,null,null,null,null,null,null,null,null,null,null,null,null,null,null,null,null,null,null,null,null,null,null,null,null,null,null,null,null,null,null,null,null,null,null,null,null,null,null,null,null,null,null,null,null,null,null,null,null,null,null,null,null,null,null,null,null,null,null,null,null,null,null,null,null,null,null,null,null,null,10,"D4O21W1IBV8XKOZZ5BZO4RWMX","DA4IKULODJ1MZ318V3RCW3FND","","","","","","00","X","0","0","",""]
[null,null,null,null,null,null,null,null,null,null,null,null,null,null,null,null,null,null,null,null,null,null,null,null,null,null,null,null,null,null,null,null,null,null,null,null,null,null,null,null,null,null,null,null,null,null,null,null,null,null,null,null,null,null,null,null,null,null,null,null,null,null,null,null,null,null,null,null,null,null,null,null,null,null,null,null,null,null,null,null,null,null,null,null,null,null,null,null,null,null,null,null,null,null,null,null,null,null,null,null,null,null,null,null,null,null,null,null,null,null,null,null,null,null,null,null,null,null,null,null,null,null,null,null,null,null,null,null,null,null,10,"DEMAFDB5LZ4S252XBVM7GJP4P","DA4HOQG67KO7N4Y3B2VB1OP2X","","","","","","00","X","0","0","",""]
[null,null,null,null,null,null,null,null,null,null,null,null,null,null,null,null,null,null,null,null,null,null,null,null,null,null,null,null,null,null,null,null,null,null,null,null,null,null,null,null,null,null,null,null,null,null,null,null,null,null,null,null,null,null,null,null,null,null,null,null,null,null,null,null,null,null,null,null,null,null,null,null,null,null,null,null,null,null,null,null,null,null,null,null,null,null,null,null,null,null,null,null,null,null,null,null,null,null,null,null,null,null,null,null,null,null,null,null,null,null,null,null,null,null,null,null,null,null,null,null,null,null,null,null,null,null,null,null,null,null,10,"DEN07Y1DTSNAWTLQYCBLILED5","DA4HOQG67KITUSNS2AU0KOX6H","","0","","","","00","X","0","0","",""]
[null,null,null,null,null,null,null,null,null,null,null,null,null,null,null,null,null,null,null,null,null,null,null,null,null,null,null,null,null,null,null,null,null,null,null,null,null,null,null,null,null,null,null,null,null,null,null,null,null,null,null,null,null,null,null,null,null,null,null,null,null,null,null,null,null,null,null,null,null,null,null,null,null,null,null,null,null,null,null,null,null,null,null,null,null,null,null,null,null,null,null,null,null,null,null,null,null,null,null,null,null,null,null,null,null,null,null,null,null,null,null,null,null,null,null,null,null,null,null,null,null,null,null,null,null,null,null,null,null,null,10,"DEN07Y1DTSO2LFXI9VR7L0SMX","DA4HQT1FQ22VOL8IZYHBK248P","","0","","","","00","X","0","0","",""]
[null,null,null,null,null,null,null,null,null,null,null,null,null,null,null,null,null,null,null,null,null,null,null,null,null,null,null,null,null,null,null,null,null,null,null,null,null,null,null,null,null,null,null,null,null,null,null,null,null,null,null,null,null,null,null,null,null,null,null,null,null,null,null,null,null,null,null,null,null,null,null,null,null,null,null,null,null,null,null,null,null,null,null,null,null,null,null,null,null,null,null,null,null,null,null,null,null,null,null,null,null,null,null,null,null,null,null,null,null,null,null,null,null,null,null,null,null,null,null,null,null,null,null,null,null,null,null,null,null,null,10,"DEN07Y1DTSPLYOL0WYMFPVL6H","DA4HOQG67K8TYQEWWA71P4RND","","0","","","","00","X","0","0","",""]
[null,null,null,null,null,null,null,null,null,null,null,null,null,null,null,null,null,null,null,null,null,null,null,null,null,null,null,null,null,null,null,null,null,null,null,null,null,null,null,null,null,null,null,null,null,null,null,null,null,null,null,null,null,null,null,null,null,null,null,null,null,null,null,null,null,null,null,null,null,null,null,null,null,null,null,null,null,null,null,null,null,null,null,null,null,null,null,null,null,null,null,null,null,null,null,null,null,null,null,null,null,null,null,null,null,null,null,null,null,null,null,null,null,null,null,null,null,null,null,null,null,null,null,null,null,null,null,null,null,null,10,"DEN07Y1DTSQDNAWS8I21SAZG9","DA4HQT1FQ21CBCL0CVM3F7BP5","","0","","","","00","X","0","0","",""]
[null,null,null,null,null,null,null,null,null,null,null,null,null,null,null,null,null,null,null,null,null,null,null,null,null,null,null,null,null,null,null,null,null,null,null,null,null,null,null,null,null,null,null,null,null,null,null,null,null,null,null,null,null,null,null,null,null,null,null,null,null,null,null,null,null,null,null,null,null,null,null,null,null,null,null,null,null,null,null,null,null,null,null,null,null,null,null,null,null,null,null,null,null,null,null,null,null,null,null,null,null,null,null,null,null,null,null,null,null,null,null,null,null,null,null,null,null,null,null,null,null,null,null,null,null,null,null,null,null,null,10,"DEN07Y1DTSSOP5W274CVZL69L","DA4HOQG67KKD81BAPDP8PJPQ1","","","","","","00","X","0","0","",""]
[null,null,null,null,null,null,null,null,null,null,null,null,null,null,null,null,null,null,null,null,null,null,null,null,null,null,null,null,null,null,null,null,null,null,null,null,null,null,null,null,null,null,null,null,null,null,null,null,null,null,null,null,null,null,null,null,null,null,null,null,null,null,null,null,null,null,null,null,null,null,null,null,null,null,null,null,null,null,null,null,null,null,null,null,null,null,null,null,null,null,null,null,null,null,null,null,null,null,null,null,null,null,null,null,null,null,null,null,null,null,null,null,null,null,null,null,null,null,null,null,null,null,null,null,null,null,null,null,null,null,10,"DEN0OSIFULDRI056PS9TTR4S9","DA4HOQG67KFR4BCQS53KAZC3D","","","","","","00","X","0","0","",""]
[null,null,null,null,null,null,null,null,null,null,null,null,null,null,null,null,null,null,null,null,null,null,null,null,null,null,null,null,null,null,null,null,null,null,null,null,null,null,null,null,null,null,null,null,null,null,null,null,null,null,null,null,null,null,null,null,null,null,null,null,null,null,null,null,null,null,null,null,null,null,null,null,null,null,null,null,null,null,null,null,null,null,null,null,null,null,null,null,null,null,null,null,null,null,null,null,null,null,null,null,null,null,null,null,null,null,null,null,null,null,null,null,null,null,null,null,null,null,null,null,null,null,null,null,null,null,null,null,null,null,9,"D4O21W1IBUE67VXMBQN5FO1RT","DA4HOQG67KDG2GDGTISQ3P5A1","","","","","","00","X","0","0","",""]
[null,null,null,null,null,null,null,null,null,null,null,null,null,null,null,null,null,null,null,null,null,null,null,null,null,null,null,null,null,null,null,null,null,null,null,null,null,null,null,null,null,null,null,null,null,null,null,null,null,null,null,null,null,null,null,null,null,null,null,null,null,null,null,null,null,null,null,null,null,null,null,null,null,null,null,null,null,null,null,null,null,null,null,null,null,null,null,null,null,null,null,null,null,null,null,null,null,null,null,null,null,null,null,null,null,null,null,null,null,null,null,null,null,null,null,null,null,null,null,null,null,null,null,null,null,null,null,null,null,null,9,"D4O21W1IBUEXWI9DNA2RI3G1L","DA4HQT1FQ223ZYWROF1PHMPYX","","","","","","00","X","0","0","",""]
[null,null,null,null,null,null,null,null,null,null,null,null,null,null,null,null,null,null,null,null,null,null,null,null,null,null,null,null,null,null,null,null,null,null,null,null,null,null,null,null,null,null,null,null,null,null,null,null,null,null,null,null,null,null,null,null,null,null,null,null,null,null,null,null,null,null,null,null,null,null,null,null,null,null,null,null,null,null,null,null,null,null,null,null,null,null,null,null,null,null,null,null,null,null,null,null,null,null,null,null,null,null,null,null,null,null,null,null,null,null,null,null,null,null,null,null,null,null,null,null,null,null,null,null,null,null,null,null,null,null,9,"D4O21W1IBUGH9QWWACXZMY8L5","DA4HOQG67KMO9WAKO002WTWJD","","","","","","00","X","0","0","",""]
[null,null,null,null,null,null,null,null,null,null,null,null,null,null,null,null,null,null,null,null,null,null,null,null,null,null,null,null,null,null,null,null,null,null,null,null,null,null,null,null,null,null,null,null,null,null,null,null,null,null,null,null,null,null,null,null,null,null,null,null,null,null,null,null,null,null,null,null,null,null,null,null,null,null,null,null,null,null,null,null,null,null,null,null,null,null,null,null,null,null,null,null,null,null,null,null,null,null,null,null,null,null,null,null,null,null,null,null,null,null,null,null,null,null,null,null,null,null,null,null,null,null,null,null,null,null,null,null,null,null,9,"D4O21W1IBUKBOUJOW241Z37Y1","DA4HOQG67KI266C0QREEI9IWP","","","","","","00","X","0","0","",""]
[null,null,null,null,null,null,null,null,null,null,null,null,null,null,null,null,null,null,null,null,null,null,null,null,null,null,null,null,null,null,null,null,null,null,null,null,null,null,null,null,null,null,null,null,null,null,null,null,null,null,null,null,null,null,null,null,null,null,null,null,null,null,null,null,null,null,null,null,null,null,null,null,null,null,null,null,null,null,null,null,null,null,null,null,null,null,null,null,null,null,null,null,null,null,null,null,null,null,null,null,null,null,null,null,null,null,null,null,null,null,null,null,null,null,null,null,null,null,null,null,null,null,null,null,null,null,null,null,null,null,9,"D4O21W1IBUL3DGVG7LJO1IM7T","DA4HOQG67KKD81BAPDP8PJPQ1","","","","","","00","X","0","0","",""]
[null,null,null,null,null,null,null,null,null,null,null,null,null,null,null,null,null,null,null,null,null,null,null,null,null,null,null,null,null,null,null,null,null,null,null,null,null,null,null,null,null,null,null,null,null,null,null,null,null,null,null,null,null,null,null,null,null,null,null,null,null,null,null,null,null,null,null,null,null,null,null,null,null,null,null,null,null,null,null,null,null,null,null,null,null,null,null,null,null,null,null,null,null,null,null,null,null,null,null,null,null,null,null,null,null,null,null,null,null,null,null,null,null,null,null,null,null,null,null,null,null,null,null,null,null,null,null,null,null,null,9,"D4O21W1IBUNEFBUQ67UI8ST15","DA4IKULODJ1MZ318V3RCW3FND","","","","","","00","X","0","0","",""]
[null,null,null,null,null,null,null,null,null,null,null,null,null,null,null,null,null,null,null,null,null,null,null,null,null,null,null,null,null,null,null,null,null,null,null,null,null,null,null,null,null,null,null,null,null,null,null,null,null,null,null,null,null,null,null,null,null,null,null,null,null,null,null,null,null,null,null,null,null,null,null,null,null,null,null,null,null,null,null,null,null,null,null,null,null,null,null,null,null,null,null,null,null,null,null,null,null,null,null,null,null,null,null,null,null,null,null,null,null,null,null,null,null,null,null,null,null,null,null,null,null,null,null,null,null,null,null,null,null,null,9,"D4O21W1IBUO63Y6HHRA4B87AX","DA4HOQG67KO7N4Y3B2VB1OP2X","","","","","","00","X","0","0","",""]
[null,null,null,null,null,null,null,null,null,null,null,null,null,null,null,null,null,null,null,null,null,null,null,null,null,null,null,null,null,null,null,null,null,null,null,null,null,null,null,null,null,null,null,null,null,null,null,null,null,null,null,null,null,null,null,null,null,null,null,null,null,null,null,null,null,null,null,null,null,null,null,null,null,null,null,null,null,null,null,null,null,null,null,null,null,null,null,null,null,null,null,null,null,null,null,null,null,null,null,null,null,null,null,null,null,null,null,null,null,null,null,null,null,null,null,null,null,null,null,null,null,null,null,null,null,null,null,null,null,null,9,"D4O21W1IBUXEBE3LC8HH4CYK9","DA4HOQG67KJLJEZJDU9MN4BG9","","0","","","","00","X","0","0","",""]
[null,null,null,null,null,null,null,null,null,null,null,null,null,null,null,null,null,null,null,null,null,null,null,null,null,null,null,null,null,null,null,null,null,null,null,null,null,null,null,null,null,null,null,null,null,null,null,null,null,null,null,null,null,null,null,null,null,null,null,null,null,null,null,null,null,null,null,null,null,null,null,null,null,null,null,null,null,null,null,null,null,null,null,null,null,null,null,null,null,null,null,null,null,null,null,null,null,null,null,null,null,null,null,null,null,null,null,null,null,null,null,null,null,null,null,null,null,null,null,null,null,null,null,null,null,null,null,null,null,null,9,"D4O21W1IBV0H1VEMME7XE2JND","DA4HOQG67KEZFP0ZGLNY8JXTL","","","","","","00","X","0","0","",""]
[null,null,null,null,null,null,null,null,null,null,null,null,null,null,null,null,null,null,null,null,null,null,null,null,null,null,null,null,null,null,null,null,null,null,null,null,null,null,null,null,null,null,null,null,null,null,null,null,null,null,null,null,null,null,null,null,null,null,null,null,null,null,null,null,null,null,null,null,null,null,null,null,null,null,null,null,null,null,null,null,null,null,null,null,null,null,null,null,null,null,null,null,null,null,null,null,null,null,null,null,null,null,null,null,null,null,null,null,null,null,null,null,null,null,null,null,null,null,null,null,null,null,null,null,null,null,null,null,null,null,9,"D4O21W1IBV8XKOZZ5BZO4RWMX","DA4HQT1FQ223ZYWROF1PHMPYX","","","","","","00","X","0","0","",""]
[null,null,null,null,null,null,null,null,null,null,null,null,null,null,null,null,null,null,null,null,null,null,null,null,null,null,null,null,null,null,null,null,null,null,null,null,null,null,null,null,null,null,null,null,null,null,null,null,null,null,null,null,null,null,null,null,null,null,null,null,null,null,null,null,null,null,null,null,null,null,null,null,null,null,null,null,null,null,null,null,null,null,null,null,null,null,null,null,null,null,null,null,null,null,null,null,null,null,null,null,null,null,null,null,null,null,null,null,null,null,null,null,null,null,null,null,null,null,null,null,null,null,null,null,null,null,null,null,null,null,9,"DEMAGSP8VDTMCQ2Z9KSRG7UGP","DA4HQT1FQ21CBCL0CVM3F7BP5","","","","","","00","X","0","0","",""]
[null,null,null,null,null,null,null,null,null,null,null,null,null,null,null,null,null,null,null,null,null,null,null,null,null,null,null,null,null,null,null,null,null,null,null,null,null,null,null,null,null,null,null,null,null,null,null,null,null,null,null,null,null,null,null,null,null,null,null,null,null,null,null,null,null,null,null,null,null,null,null,null,null,null,null,null,null,null,null,null,null,null,null,null,null,null,null,null,null,null,null,null,null,null,null,null,null,null,null,null,null,null,null,null,null,null,null,null,null,null,null,null,null,null,null,null,null,null,null,null,null,null,null,null,null,null,null,null,null,null,9,"DEN07Y1DTSNAWTLQYCBLILED5","DA4HOQG67KKD81BAPDP8PJPQ1","","0","","","","00","X","0","0","",""]
[null,null,null,null,null,null,null,null,null,null,null,null,null,null,null,null,null,null,null,null,null,null,null,null,null,null,null,null,null,null,null,null,null,null,null,null,null,null,null,null,null,null,null,null,null,null,null,null,null,null,null,null,null,null,null,null,null,null,null,null,null,null,null,null,null,null,null,null,null,null,null,null,null,null,null,null,null,null,null,null,null,null,null,null,null,null,null,null,null,null,null,null,null,null,null,null,null,null,null,null,null,null,null,null,null,null,null,null,null,null,null,null,null,null,null,null,null,null,null,null,null,null,null,null,null,null,null,null,null,null,9,"DEN07Y1DTSOUA299LF6TNG6WP","DA4HOQG67KFR4BCQS53KAZC3D","","","","","","00","X","0","0","",""]
[null,null,null,null,null,null,null,null,null,null,null,null,null,null,null,null,null,null,null,null,null,null,null,null,null,null,null,null,null,null,null,null,null,null,null,null,null,null,null,null,null,null,null,null,null,null,null,null,null,null,null,null,null,null,null,null,null,null,null,null,null,null,null,null,null,null,null,null,null,null,null,null,null,null,null,null,null,null,null,null,null,null,null,null,null,null,null,null,null,null,null,null,null,null,null,null,null,null,null,null,null,null,null,null,null,null,null,null,null,null,null,null,null,null,null,null,null,null,null,null,null,null,null,null,null,null,null,null,null,null,9,"DEN07Y1DTSR5BX8JK1HNUQDQ1","DA4HOQG67K8TYQEWWA71P4RND","","","","","","00","X","0","0","",""]
[null,null,null,null,null,null,null,null,null,null,null,null,null,null,null,null,null,null,null,null,null,null,null,null,null,null,null,null,null,null,null,null,null,null,null,null,null,null,null,null,null,null,null,null,null,null,null,null,null,null,null,null,null,null,null,null,null,null,null,null,null,null,null,null,null,null,null,null,null,null,null,null,null,null,null,null,null,null,null,null,null,null,null,null,null,null,null,null,null,null,null,null,null,null,null,null,null,null,null,null,null,null,null,null,null,null,null,null,null,null,null,null,null,null,null,null,null,null,null,null,null,null,null,null,null,null,null,null,null,null,9,"DEN07Y1DTSRX0JKAVKX9X5RZT","DA4HQT1FQ223ZYWROF1PHMPYX","","","","","","00","X","0","0","",""]
[null,null,null,null,null,null,null,null,null,null,null,null,null,null,null,null,null,null,null,null,null,null,null,null,null,null,null,null,null,null,null,null,null,null,null,null,null,null,null,null,null,null,null,null,null,null,null,null,null,null,null,null,null,null,null,null,null,null,null,null,null,null,null,null,null,null,null,null,null,null,null,null,null,null,null,null,null,null,null,null,null,null,null,null,null,null,null,null,null,null,null,null,null,null,null,null,null,null,null,null,null,null,null,null,null,null,null,null,null,null,null,null,null,null,null,null,null,null,null,null,null,null,null,null,null,null,null,null,null,null,9,"DEN0OSIFULCZTDTFE8U7RBQIH","DA4HOQG67KMO9WAKO002WTWJD","","","","","","00","X","0","0","",""]
[null,null,null,null,null,null,null,null,null,null,null,null,null,null,null,null,null,null,null,null,null,null,null,null,null,null,null,null,null,null,null,null,null,null,null,null,null,null,null,null,null,null,null,null,null,null,null,null,null,null,null,null,null,null,null,null,null,null,null,null,null,null,null,null,null,null,null,null,null,null,null,null,null,null,null,null,null,null,null,null,null,null,null,null,null,null,null,null,null,null,null,null,null,null,null,null,null,null,null,null,null,null,null,null,null,null,null,null,null,null,null,null,null,null,null,null,null,null,null,null,null,null,null,null,null,null,null,null,null,null,9,"DEN0OSIFULEJ6MGY1BPFW6J21","DA4HOQG67KI266C0QREEI9IWP","","","","","","00","X","0","0","",""]
[null,null,null,null,null,null,null,null,null,null,null,null,null,null,null,null,null,null,null,null,null,null,null,null,null,null,null,null,null,null,null,null,null,null,null,null,null,null,null,null,null,null,null,null,null,null,null,null,null,null,null,null,null,null,null,null,null,null,null,null,null,null,null,null,null,null,null,null,null,null,null,null,null,null,null,null,null,null,null,null,null,null,null,null,null,null,null,null,null,null,null,null,null,null,null,null,null,null,null,null,null,null,null,null,null,null,null,null,null,null,null,null,null,null,null,null,null,null,null,null,null,null,null,null,null,null,null,null,null,null,8,"D4O21W1IBUDEJ9LV077JD8NI1","DA4HOQG67KCODU1PHZD419R09","","","","","","00","X","0","0","",""]
[null,null,null,null,null,null,null,null,null,null,null,null,null,null,null,null,null,null,null,null,null,null,null,null,null,null,null,null,null,null,null,null,null,null,null,null,null,null,null,null,null,null,null,null,null,null,null,null,null,null,null,null,null,null,null,null,null,null,null,null,null,null,null,null,null,null,null,null,null,null,null,null,null,null,null,null,null,null,null,null,null,null,null,null,null,null,null,null,null,null,null,null,null,null,null,null,null,null,null,null,null,null,null,null,null,null,null,null,null,null,null,null,null,null,null,null,null,null,null,null,null,null,null,null,null,null,null,null,null,null,8,"D4O21W1IBUEXWI9DNA2RI3G1L","DA4HOQG67KGISXOI3OJ6DEQD5","","","","","","00","X","0","0","",""]
[null,null,null,null,null,null,null,null,null,null,null,null,null,null,null,null,null,null,null,null,null,null,null,null,null,null,null,null,null,null,null,null,null,null,null,null,null,null,null,null,null,null,null,null,null,null,null,null,null,null,null,null,null,null,null,null,null,null,null,null,null,null,null,null,null,null,null,null,null,null,null,null,null,null,null,null,null,null,null,null,null,null,null,null,null,null,null,null,null,null,null,null,null,null,null,null,null,null,null,null,null,null,null,null,null,null,null,null,null,null,null,null,null,null,null,null,null,null,null,null,null,null,null,null,null,null,null,null,null,null,8,"D4O21W1IBUGH9QWWACXZMY8L5","DA4HOQG67KO7N4Y3B2VB1OP2X","","","","","","00","X","0","0","",""]
[null,null,null,null,null,null,null,null,null,null,null,null,null,null,null,null,null,null,null,null,null,null,null,null,null,null,null,null,null,null,null,null,null,null,null,null,null,null,null,null,null,null,null,null,null,null,null,null,null,null,null,null,null,null,null,null,null,null,null,null,null,null,null,null,null,null,null,null,null,null,null,null,null,null,null,null,null,null,null,null,null,null,null,null,null,null,null,null,null,null,null,null,null,null,null,null,null,null,null,null,null,null,null,null,null,null,null,null,null,null,null,null,null,null,null,null,null,null,null,null,null,null,null,null,null,null,null,null,null,null,8,"D4O21W1IBUKBOUJOW241Z37Y1","DA4HOQG67KJLJEZJDU9MN4BG9","","","","","","00","X","0","0","",""]
[null,null,null,null,null,null,null,null,null,null,null,null,null,null,null,null,null,null,null,null,null,null,null,null,null,null,null,null,null,null,null,null,null,null,null,null,null,null,null,null,null,null,null,null,null,null,null,null,null,null,null,null,null,null,null,null,null,null,null,null,null,null,null,null,null,null,null,null,null,null,null,null,null,null,null,null,null,null,null,null,null,null,null,null,null,null,null,null,null,null,null,null,null,null,null,null,null,null,null,null,null,null,null,null,null,null,null,null,null,null,null,null,null,null,null,null,null,null,null,null,null,null,null,null,null,null,null,null,null,null,8,"D4O21W1IBULV2377J4ZA3Y0HL","DA4HOQG67KEZFP0ZGLNY8JXTL","","","","","","00","X","0","0","",""]
[null,null,null,null,null,null,null,null,null,null,null,null,null,null,null,null,null,null,null,null,null,null,null,null,null,null,null,null,null,null,null,null,null,null,null,null,null,null,null,null,null,null,null,null,null,null,null,null,null,null,null,null,null,null,null,null,null,null,null,null,null,null,null,null,null,null,null,null,null,null,null,null,null,null,null,null,null,null,null,null,null,null,null,null,null,null,null,null,null,null,null,null,null,null,null,null,null,null,null,null,null,null,null,null,null,null,null,null,null,null,null,null,null,null,null,null,null,null,null,null,null,null,null,null,null,null,null,null,null,null,8,"D4O21W1IBUNEFBUQ67UI8ST15","DA4HOQG67KNFYIMBZJFOZ9AT5","","2","","","","00","X","0","0","",""]
[null,null,null,null,null,null,null,null,null,null,null,null,null,null,null,null,null,null,null,null,null,null,null,null,null,null,null,null,null,null,null,null,null,null,null,null,null,null,null,null,null,null,null,null,null,null,null,null,null,null,null,null,null,null,null,null,null,null,null,null,null,null,null,null,null,null,null,null,null,null,null,null,null,null,null,null,null,null,null,null,null,null,null,null,null,null,null,null,null,null,null,null,null,null,null,null,null,null,null,null,null,null,null,null,null,null,null,null,null,null,null,null,null,null,null,null,null,null,null,null,null,null,null,null,null,null,null,null,null,null,8,"D4O21W1IBUWMMRRU0P1V1XKAH","DA4HQT1FQ21CBCL0CVM3F7BP5","","0","","","","00","X","0","0","",""]
[null,null,null,null,null,null,null,null,null,null,null,null,null,null,null,null,null,null,null,null,null,null,null,null,null,null,null,null,null,null,null,null,null,null,null,null,null,null,null,null,null,null,null,null,null,null,null,null,null,null,null,null,null,null,null,null,null,null,null,null,null,null,null,null,null,null,null,null,null,null,null,null,null,null,null,null,null,null,null,null,null,null,null,null,null,null,null,null,null,null,null,null,null,null,null,null,null,null,null,null,null,null,null,null,null,null,null,null,null,null,null,null,null,null,null,null,null,null,null,null,null,null,null,null,null,null,null,null,null,null,8,"D4O21W1IBV0H1VEMME7XE2JND","DA4HOQG67KKD81BAPDP8PJPQ1","","","","","","00","X","0","0","",""]
[null,null,null,null,null,null,null,null,null,null,null,null,null,null,null,null,null,null,null,null,null,null,null,null,null,null,null,null,null,null,null,null,null,null,null,null,null,null,null,null,null,null,null,null,null,null,null,null,null,null,null,null,null,null,null,null,null,null,null,null,null,null,null,null,null,null,null,null,null,null,null,null,null,null,null,null,null,null,null,null,null,null,null,null,null,null,null,null,null,null,null,null,null,null,null,null,null,null,null,null,null,null,null,null,null,null,null,null,null,null,null,null,null,null,null,null,null,null,null,null,null,null,null,null,null,null,null,null,null,null,8,"D4O21W1IBV8XKOZZ5BZO4RWMX","DA4HOQG67KFR4BCQS53KAZC3D","","","","","","00","X","0","0","",""]
[null,null,null,null,null,null,null,null,null,null,null,null,null,null,null,null,null,null,null,null,null,null,null,null,null,null,null,null,null,null,null,null,null,null,null,null,null,null,null,null,null,null,null,null,null,null,null,null,null,null,null,null,null,null,null,null,null,null,null,null,null,null,null,null,null,null,null,null,null,null,null,null,null,null,null,null,null,null,null,null,null,null,null,null,null,null,null,null,null,null,null,null,null,null,null,null,null,null,null,null,null,null,null,null,null,null,null,null,null,null,null,null,null,null,null,null,null,null,null,null,null,null,null,null,null,null,null,null,null,null,8,"DEMAGSP8VDTMCQ2Z9KSRG7UGP","DA4HOQG67KADBZ2FJD29TZK6X","","","","","","00","X","0","0","",""]
[null,null,null,null,null,null,null,null,null,null,null,null,null,null,null,null,null,null,null,null,null,null,null,null,null,null,null,null,null,null,null,null,null,null,null,null,null,null,null,null,null,null,null,null,null,null,null,null,null,null,null,null,null,null,null,null,null,null,null,null,null,null,null,null,null,null,null,null,null,null,null,null,null,null,null,null,null,null,null,null,null,null,null,null,null,null,null,null,null,null,null,null,null,null,null,null,null,null,null,null,null,null,null,null,null,null,null,null,null,null,null,null,null,null,null,null,null,null,null,null,null,null,null,null,null,null,null,null,null,null,8,"DEN03PYIT5FSSAA2U7ST53H15","DA4IKULODJ2ENPD06N6YYITX5","","","","","","00","X","0","0","",""]
[null,null,null,null,null,null,null,null,null,null,null,null,null,null,null,null,null,null,null,null,null,null,null,null,null,null,null,null,null,null,null,null,null,null,null,null,null,null,null,null,null,null,null,null,null,null,null,null,null,null,null,null,null,null,null,null,null,null,null,null,null,null,null,null,null,null,null,null,null,null,null,null,null,null,null,null,null,null,null,null,null,null,null,null,null,null,null,null,null,null,null,null,null,null,null,null,null,null,null,null,null,null,null,null,null,null,null,null,null,null,null,null,null,null,null,null,null,null,null,null,null,null,null,null,null,null,null,null,null,null,8,"DEN07Y1DTSO2LFXI9VR7L0SMX","DA4HOQG67KMO9WAKO002WTWJD","","0","","","","00","X","0","0","",""]
[null,null,null,null,null,null,null,null,null,null,null,null,null,null,null,null,null,null,null,null,null,null,null,null,null,null,null,null,null,null,null,null,null,null,null,null,null,null,null,null,null,null,null,null,null,null,null,null,null,null,null,null,null,null,null,null,null,null,null,null,null,null,null,null,null,null,null,null,null,null,null,null,null,null,null,null,null,null,null,null,null,null,null,null,null,null,null,null,null,null,null,null,null,null,null,null,null,null,null,null,null,null,null,null,null,null,null,null,null,null,null,null,null,null,null,null,null,null,null,null,null,null,null,null,null,null,null,null,null,null,8,"DEN07Y1DTSPLYOL0WYMFPVL6H","DA4HOQG67KI266C0QREEI9IWP","","0","","","","00","X","0","0","",""]
[null,null,null,null,null,null,null,null,null,null,null,null,null,null,null,null,null,null,null,null,null,null,null,null,null,null,null,null,null,null,null,null,null,null,null,null,null,null,null,null,null,null,null,null,null,null,null,null,null,null,null,null,null,null,null,null,null,null,null,null,null,null,null,null,null,null,null,null,null,null,null,null,null,null,null,null,null,null,null,null,null,null,null,null,null,null,null,null,null,null,null,null,null,null,null,null,null,null,null,null,null,null,null,null,null,null,null,null,null,null,null,null,null,null,null,null,null,null,null,null,null,null,null,null,null,null,null,null,null,null,8,"DEN07Y1DTSQDNAWS8I21SAZG9","DA4HOQG67KCODU1PHZD419R09","","0","","","","00","X","0","0","",""]
[null,null,null,null,null,null,null,null,null,null,null,null,null,null,null,null,null,null,null,null,null,null,null,null,null,null,null,null,null,null,null,null,null,null,null,null,null,null,null,null,null,null,null,null,null,null,null,null,null,null,null,null,null,null,null,null,null,null,null,null,null,null,null,null,null,null,null,null,null,null,null,null,null,null,null,null,null,null,null,null,null,null,null,null,null,null,null,null,null,null,null,null,null,null,null,null,null,null,null,null,null,null,null,null,null,null,null,null,null,null,null,null,null,null,null,null,null,null,null,null,null,null,null,null,null,null,null,null,null,null,8,"DEN07Y1DTSRX0JKAVKX9X5RZT","DA4HOQG67KCODU1PHZD419R09","","","","","","00","X","0","0","",""]
[null,null,null,null,null,null,null,null,null,null,null,null,null,null,null,null,null,null,null,null,null,null,null,null,null,null,null,null,null,null,null,null,null,null,null,null,null,null,null,null,null,null,null,null,null,null,null,null,null,null,null,null,null,null,null,null,null,null,null,null,null,null,null,null,null,null,null,null,null,null,null,null,null,null,null,null,null,null,null,null,null,null,null,null,null,null,null,null,null,null,null,null,null,null,null,null,null,null,null,null,null,null,null,null,null,null,null,null,null,null,null,null,null,null,null,null,null,null,null,null,null,null,null,null,null,null,null,null,null,null,8,"DEN0OSIFULCZTDTFE8U7RBQIH","DA4HOQG67KO7N4Y3B2VB1OP2X","","","","","","00","X","0","0","",""]
[null,null,null,null,null,null,null,null,null,null,null,null,null,null,null,null,null,null,null,null,null,null,null,null,null,null,null,null,null,null,null,null,null,null,null,null,null,null,null,null,null,null,null,null,null,null,null,null,null,null,null,null,null,null,null,null,null,null,null,null,null,null,null,null,null,null,null,null,null,null,null,null,null,null,null,null,null,null,null,null,null,null,null,null,null,null,null,null,null,null,null,null,null,null,null,null,null,null,null,null,null,null,null,null,null,null,null,null,null,null,null,null,null,null,null,null,null,null,null,null,null,null,null,null,null,null,null,null,null,null,8,"DEN0OSIFULEJ6MGY1BPFW6J21","DA4HOQG67KJLJEZJDU9MN4BG9","","","","","","00","X","0","0","",""]
[null,null,null,null,null,null,null,null,null,null,null,null,null,null,null,null,null,null,null,null,null,null,null,null,null,null,null,null,null,null,null,null,null,null,null,null,null,null,null,null,null,null,null,null,null,null,null,null,null,null,null,null,null,null,null,null,null,null,null,null,null,null,null,null,null,null,null,null,null,null,null,null,null,null,null,null,null,null,null,null,null,null,null,null,null,null,null,null,null,null,null,null,null,null,null,null,null,null,null,null,null,null,null,null,null,null,null,null,null,null,null,null,null,null,null,null,null,null,null,null,null,null,null,null,null,null,null,null,null,null,7,"D4O21W1IBUE67VXMBQN5FO1RT","DA4HOQG67KEZFP0ZGLNY8JXTL","","","","","","00","X","0","0","",""]
[null,null,null,null,null,null,null,null,null,null,null,null,null,null,null,null,null,null,null,null,null,null,null,null,null,null,null,null,null,null,null,null,null,null,null,null,null,null,null,null,null,null,null,null,null,null,null,null,null,null,null,null,null,null,null,null,null,null,null,null,null,null,null,null,null,null,null,null,null,null,null,null,null,null,null,null,null,null,null,null,null,null,null,null,null,null,null,null,null,null,null,null,null,null,null,null,null,null,null,null,null,null,null,null,null,null,null,null,null,null,null,null,null,null,null,null,null,null,null,null,null,null,null,null,null,null,null,null,null,null,7,"D4O21W1IBUFPL4L4YTIDKIUBD","DA4HOQG67KJLJEZJDU9MN4BG9","","","","","","00","X","0","0","",""]
[null,null,null,null,null,null,null,null,null,null,null,null,null,null,null,null,null,null,null,null,null,null,null,null,null,null,null,null,null,null,null,null,null,null,null,null,null,null,null,null,null,null,null,null,null,null,null,null,null,null,null,null,null,null,null,null,null,null,null,null,null,null,null,null,null,null,null,null,null,null,null,null,null,null,null,null,null,null,null,null,null,null,null,null,null,null,null,null,null,null,null,null,null,null,null,null,null,null,null,null,null,null,null,null,null,null,null,null,null,null,null,null,null,null,null,null,null,null,null,null,null,null,null,null,null,null,null,null,null,null,7,"D4O21W1IBUH8YD8NLWDLPDMUX","DA4HQT1FQ21CBCL0CVM3F7BP5","","","","","","00","X","0","0","",""]
[null,null,null,null,null,null,null,null,null,null,null,null,null,null,null,null,null,null,null,null,null,null,null,null,null,null,null,null,null,null,null,null,null,null,null,null,null,null,null,null,null,null,null,null,null,null,null,null,null,null,null,null,null,null,null,null,null,null,null,null,null,null,null,null,null,null,null,null,null,null,null,null,null,null,null,null,null,null,null,null,null,null,null,null,null,null,null,null,null,null,null,null,null,null,null,null,null,null,null,null,null,null,null,null,null,null,null,null,null,null,null,null,null,null,null,null,null,null,null,null,null,null,null,null,null,null,null,null,null,null,7,"D4O21W1IBUL3DGVG7LJO1IM7T","DA4HOQG67KLWL9YTCGKGUEI9L","","","","","","00","X","0","0","",""]
[null,null,null,null,null,null,null,null,null,null,null,null,null,null,null,null,null,null,null,null,null,null,null,null,null,null,null,null,null,null,null,null,null,null,null,null,null,null,null,null,null,null,null,null,null,null,null,null,null,null,null,null,null,null,null,null,null,null,null,null,null,null,null,null,null,null,null,null,null,null,null,null,null,null,null,null,null,null,null,null,null,null,null,null,null,null,null,null,null,null,null,null,null,null,null,null,null,null,null,null,null,null,null,null,null,null,null,null,null,null,null,null,null,null,null,null,null,null,null,null,null,null,null,null,null,null,null,null,null,null,7,"D4O21W1IBUNEFBUQ67UI8ST15","DA4HOQG67KFR4BCQS53KAZC3D","","","","","","00","X","0","0","",""]
[null,null,null,null,null,null,null,null,null,null,null,null,null,null,null,null,null,null,null,null,null,null,null,null,null,null,null,null,null,null,null,null,null,null,null,null,null,null,null,null,null,null,null,null,null,null,null,null,null,null,null,null,null,null,null,null,null,null,null,null,null,null,null,null,null,null,null,null,null,null,null,null,null,null,null,null,null,null,null,null,null,null,null,null,null,null,null,null,null,null,null,null,null,null,null,null,null,null,null,null,null,null,null,null,null,null,null,null,null,null,null,null,null,null,null,null,null,null,null,null,null,null,null,null,null,null,null,null,null,null,7,"D4O21W1IBUWMMRRU0P1V1XKAH","DA4HOQG67KADBZ2FJD29TZK6X","","0","","","","00","X","0","0","",""]
[null,null,null,null,null,null,null,null,null,null,null,null,null,null,null,null,null,null,null,null,null,null,null,null,null,null,null,null,null,null,null,null,null,null,null,null,null,null,null,null,null,null,null,null,null,null,null,null,null,null,null,null,null,null,null,null,null,null,null,null,null,null,null,null,null,null,null,null,null,null,null,null,null,null,null,null,null,null,null,null,null,null,null,null,null,null,null,null,null,null,null,null,null,null,null,null,null,null,null,null,null,null,null,null,null,null,null,null,null,null,null,null,null,null,null,null,null,null,null,null,null,null,null,null,null,null,null,null,null,null,7,"D4O21W1IBUXEBE3LC8HH4CYK9","DA4HQT1FQ21CBCL0CVM3F7BP5","","0","","","","00","X","0","0","",""]
[null,null,null,null,null,null,null,null,null,null,null,null,null,null,null,null,null,null,null,null,null,null,null,null,null,null,null,null,null,null,null,null,null,null,null,null,null,null,null,null,null,null,null,null,null,null,null,null,null,null,null,null,null,null,null,null,null,null,null,null,null,null,null,null,null,null,null,null,null,null,null,null,null,null,null,null,null,null,null,null,null,null,null,null,null,null,null,null,null,null,null,null,null,null,null,null,null,null,null,null,null,null,null,null,null,null,null,null,null,null,null,null,null,null,null,null,null,null,null,null,null,null,null,null,null,null,null,null,null,null,7,"D4O21W1IBUY600FCNRX36SCU1","DA4HOQG67KNFYIMBZJFOZ9AT5","","2","","","","00","X","0","0","",""]
[null,null,null,null,null,null,null,null,null,null,null,null,null,null,null,null,null,null,null,null,null,null,null,null,null,null,null,null,null,null,null,null,null,null,null,null,null,null,null,null,null,null,null,null,null,null,null,null,null,null,null,null,null,null,null,null,null,null,null,null,null,null,null,null,null,null,null,null,null,null,null,null,null,null,null,null,null,null,null,null,null,null,null,null,null,null,null,null,null,null,null,null,null,null,null,null,null,null,null,null,null,null,null,null,null,null,null,null,null,null,null,null,null,null,null,null,null,null,null,null,null,null,null,null,null,null,null,null,null,null,7,"D4O21W1IBV18QHQDXXNJGHXX5","DA4HOQG67KITUSNS2AU0KOX6H","","","","","","00","X","0","0","",""]
[null,null,null,null,null,null,null,null,null,null,null,null,null,null,null,null,null,null,null,null,null,null,null,null,null,null,null,null,null,null,null,null,null,null,null,null,null,null,null,null,null,null,null,null,null,null,null,null,null,null,null,null,null,null,null,null,null,null,null,null,null,null,null,null,null,null,null,null,null,null,null,null,null,null,null,null,null,null,null,null,null,null,null,null,null,null,null,null,null,null,null,null,null,null,null,null,null,null,null,null,null,null,null,null,null,null,null,null,null,null,null,null,null,null,null,null,null,null,null,null,null,null,null,null,null,null,null,null,null,null,7,"DEMAGSP8VDTMCQ2Z9KSRG7UGP","DA4HOQG67KCODU1PHZD419R09","","","","","","00","X","0","0","",""]
[null,null,null,null,null,null,null,null,null,null,null,null,null,null,null,null,null,null,null,null,null,null,null,null,null,null,null,null,null,null,null,null,null,null,null,null,null,null,null,null,null,null,null,null,null,null,null,null,null,null,null,null,null,null,null,null,null,null,null,null,null,null,null,null,null,null,null,null,null,null,null,null,null,null,null,null,null,null,null,null,null,null,null,null,null,null,null,null,null,null,null,null,null,null,null,null,null,null,null,null,null,null,null,null,null,null,null,null,null,null,null,null,null,null,null,null,null,null,null,null,null,null,null,null,null,null,null,null,null,null,7,"DEN03PYIT5FSSAA2U7ST53H15","DA4IKULODJ2ENPD06N6YYITX5","","","","","","00","X","0","0","",""]
[null,null,null,null,null,null,null,null,null,null,null,null,null,null,null,null,null,null,null,null,null,null,null,null,null,null,null,null,null,null,null,null,null,null,null,null,null,null,null,null,null,null,null,null,null,null,null,null,null,null,null,null,null,null,null,null,null,null,null,null,null,null,null,null,null,null,null,null,null,null,null,null,null,null,null,null,null,null,null,null,null,null,null,null,null,null,null,null,null,null,null,null,null,null,null,null,null,null,null,null,null,null,null,null,null,null,null,null,null,null,null,null,null,null,null,null,null,null,null,null,null,null,null,null,null,null,null,null,null,null,7,"DEN07Y1DTSO2LFXI9VR7L0SMX","DA4HOQG67KO7N4Y3B2VB1OP2X","","0","","","","00","X","0","0","",""]
[null,null,null,null,null,null,null,null,null,null,null,null,null,null,null,null,null,null,null,null,null,null,null,null,null,null,null,null,null,null,null,null,null,null,null,null,null,null,null,null,null,null,null,null,null,null,null,null,null,null,null,null,null,null,null,null,null,null,null,null,null,null,null,null,null,null,null,null,null,null,null,null,null,null,null,null,null,null,null,null,null,null,null,null,null,null,null,null,null,null,null,null,null,null,null,null,null,null,null,null,null,null,null,null,null,null,null,null,null,null,null,null,null,null,null,null,null,null,null,null,null,null,null,null,null,null,null,null,null,null,7,"DEN07Y1DTSPLYOL0WYMFPVL6H","DA4HOQG67KJLJEZJDU9MN4BG9","","0","","","","00","X","0","0","",""]
[null,null,null,null,null,null,null,null,null,null,null,null,null,null,null,null,null,null,null,null,null,null,null,null,null,null,null,null,null,null,null,null,null,null,null,null,null,null,null,null,null,null,null,null,null,null,null,null,null,null,null,null,null,null,null,null,null,null,null,null,null,null,null,null,null,null,null,null,null,null,null,null,null,null,null,null,null,null,null,null,null,null,null,null,null,null,null,null,null,null,null,null,null,null,null,null,null,null,null,null,null,null,null,null,null,null,null,null,null,null,null,null,null,null,null,null,null,null,null,null,null,null,null,null,null,null,null,null,null,null,7,"DEN07Y1DTSR5BX8JK1HNUQDQ1","DA4HOQG67KEZFP0ZGLNY8JXTL","","","","","","00","X","0","0","",""]
[null,null,null,null,null,null,null,null,null,null,null,null,null,null,null,null,null,null,null,null,null,null,null,null,null,null,null,null,null,null,null,null,null,null,null,null,null,null,null,null,null,null,null,null,null,null,null,null,null,null,null,null,null,null,null,null,null,null,null,null,null,null,null,null,null,null,null,null,null,null,null,null,null,null,null,null,null,null,null,null,null,null,null,null,null,null,null,null,null,null,null,null,null,null,null,null,null,null,null,null,null,null,null,null,null,null,null,null,null,null,null,null,null,null,null,null,null,null,null,null,null,null,null,null,null,null,null,null,null,null,7,"DEN07Y1DTSSOP5W274CVZL69L","DA4IKULODJ2ENPD06N6YYITX5","","","","","","00","X","0","0","",""]
[null,null,null,null,null,null,null,null,null,null,null,null,null,null,null,null,null,null,null,null,null,null,null,null,null,null,null,null,null,null,null,null,null,null,null,null,null,null,null,null,null,null,null,null,null,null,null,null,null,null,null,null,null,null,null,null,null,null,null,null,null,null,null,null,null,null,null,null,null,null,null,null,null,null,null,null,null,null,null,null,null,null,null,null,null,null,null,null,null,null,null,null,null,null,null,null,null,null,null,null,null,null,null,null,null,null,null,null,null,null,null,null,null,null,null,null,null,null,null,null,null,null,null,null,null,null,null,null,null,null,7,"DEN0OSIFULDRI056PS9TTR4S9","DA4HOQG67KFR4BCQS53KAZC3D","","","","","","00","X","0","0","",""]
[null,null,null,null,null,null,null,null,null,null,null,null,null,null,null,null,null,null,null,null,null,null,null,null,null,null,null,null,null,null,null,null,null,null,null,null,null,null,null,null,null,null,null,null,null,null,null,null,null,null,null,null,null,null,null,null,null,null,null,null,null,null,null,null,null,null,null,null,null,null,null,null,null,null,null,null,null,null,null,null,null,null,null,null,null,null,null,null,null,null,null,null,null,null,null,null,null,null,null,null,null,null,null,null,null,null,null,null,null,null,null,null,null,null,null,null,null,null,null,null,null,null,null,null,null,null,null,null,null,null,6,"D4O21W1IBUDEJ9LV077JD8NI1","DA4HOQG67KLWL9YTCGKGUEI9L","","","","","","00","X","0","0","",""]
[null,null,null,null,null,null,null,null,null,null,null,null,null,null,null,null,null,null,null,null,null,null,null,null,null,null,null,null,null,null,null,null,null,null,null,null,null,null,null,null,null,null,null,null,null,null,null,null,null,null,null,null,null,null,null,null,null,null,null,null,null,null,null,null,null,null,null,null,null,null,null,null,null,null,null,null,null,null,null,null,null,null,null,null,null,null,null,null,null,null,null,null,null,null,null,null,null,null,null,null,null,null,null,null,null,null,null,null,null,null,null,null,null,null,null,null,null,null,null,null,null,null,null,null,null,null,null,null,null,null,6,"D4O21W1IBUE67VXMBQN5FO1RT","DA4HOQG67KGISXOI3OJ6DEQD5","","","","","","00","X","0","0","",""]
[null,null,null,null,null,null,null,null,null,null,null,null,null,null,null,null,null,null,null,null,null,null,null,null,null,null,null,null,null,null,null,null,null,null,null,null,null,null,null,null,null,null,null,null,null,null,null,null,null,null,null,null,null,null,null,null,null,null,null,null,null,null,null,null,null,null,null,null,null,null,null,null,null,null,null,null,null,null,null,null,null,null,null,null,null,null,null,null,null,null,null,null,null,null,null,null,null,null,null,null,null,null,null,null,null,null,null,null,null,null,null,null,null,null,null,null,null,null,null,null,null,null,null,null,null,null,null,null,null,null,6,"D4O21W1IBUFPL4L4YTIDKIUBD","DA4HOQG67KBWP7PY6FXHYUCQH","","","","","","00","X","0","0","",""]
[null,null,null,null,null,null,null,null,null,null,null,null,null,null,null,null,null,null,null,null,null,null,null,null,null,null,null,null,null,null,null,null,null,null,null,null,null,null,null,null,null,null,null,null,null,null,null,null,null,null,null,null,null,null,null,null,null,null,null,null,null,null,null,null,null,null,null,null,null,null,null,null,null,null,null,null,null,null,null,null,null,null,null,null,null,null,null,null,null,null,null,null,null,null,null,null,null,null,null,null,null,null,null,null,null,null,null,null,null,null,null,null,null,null,null,null,null,null,null,null,null,null,null,null,null,null,null,null,null,null,6,"D4O21W1IBUKBOUJOW241Z37Y1","DA4HOQG67KMO9WAKO002WTWJD","","","","","","00","X","0","0","",""]
[null,null,null,null,null,null,null,null,null,null,null,null,null,null,null,null,null,null,null,null,null,null,null,null,null,null,null,null,null,null,null,null,null,null,null,null,null,null,null,null,null,null,null,null,null,null,null,null,null,null,null,null,null,null,null,null,null,null,null,null,null,null,null,null,null,null,null,null,null,null,null,null,null,null,null,null,null,null,null,null,null,null,null,null,null,null,null,null,null,null,null,null,null,null,null,null,null,null,null,null,null,null,null,null,null,null,null,null,null,null,null,null,null,null,null,null,null,null,null,null,null,null,null,null,null,null,null,null,null,null,6,"D4O21W1IBUL3DGVG7LJO1IM7T","DA4HOQG67KNFYIMBZJFOZ9AT5","","2","","","","00","X","0","0","",""]
[null,null,null,null,null,null,null,null,null,null,null,null,null,null,null,null,null,null,null,null,null,null,null,null,null,null,null,null,null,null,null,null,null,null,null,null,null,null,null,null,null,null,null,null,null,null,null,null,null,null,null,null,null,null,null,null,null,null,null,null,null,null,null,null,null,null,null,null,null,null,null,null,null,null,null,null,null,null,null,null,null,null,null,null,null,null,null,null,null,null,null,null,null,null,null,null,null,null,null,null,null,null,null,null,null,null,null,null,null,null,null,null,null,null,null,null,null,null,null,null,null,null,null,null,null,null,null,null,null,null,6,"D4O21W1IBUMMQPIYUOEW6DERD","DA4HOQG67KITUSNS2AU0KOX6H","","","","","","00","X","0","0","",""]
[null,null,null,null,null,null,null,null,null,null,null,null,null,null,null,null,null,null,null,null,null,null,null,null,null,null,null,null,null,null,null,null,null,null,null,null,null,null,null,null,null,null,null,null,null,null,null,null,null,null,null,null,null,null,null,null,null,null,null,null,null,null,null,null,null,null,null,null,null,null,null,null,null,null,null,null,null,null,null,null,null,null,null,null,null,null,null,null,null,null,null,null,null,null,null,null,null,null,null,null,null,null,null,null,null,null,null,null,null,null,null,null,null,null,null,null,null,null,null,null,null,null,null,null,null,null,null,null,null,null,6,"D4O21W1IBUWMMRRU0P1V1XKAH","DA4HOQG67KCODU1PHZD419R09","","0","","","","00","X","0","0","",""]
[null,null,null,null,null,null,null,null,null,null,null,null,null,null,null,null,null,null,null,null,null,null,null,null,null,null,null,null,null,null,null,null,null,null,null,null,null,null,null,null,null,null,null,null,null,null,null,null,null,null,null,null,null,null,null,null,null,null,null,null,null,null,null,null,null,null,null,null,null,null,null,null,null,null,null,null,null,null,null,null,null,null,null,null,null,null,null,null,null,null,null,null,null,null,null,null,null,null,null,null,null,null,null,null,null,null,null,null,null,null,null,null,null,null,null,null,null,null,null,null,null,null,null,null,null,null,null,null,null,null,6,"D4O21W1IBUXEBE3LC8HH4CYK9","DA4IKULODJ1MZ318V3RCW3FND","","0","","","","00","X","0","0","",""]
[null,null,null,null,null,null,null,null,null,null,null,null,null,null,null,null,null,null,null,null,null,null,null,null,null,null,null,null,null,null,null,null,null,null,null,null,null,null,null,null,null,null,null,null,null,null,null,null,null,null,null,null,null,null,null,null,null,null,null,null,null,null,null,null,null,null,null,null,null,null,null,null,null,null,null,null,null,null,null,null,null,null,null,null,null,null,null,null,null,null,null,null,null,null,null,null,null,null,null,null,null,null,null,null,null,null,null,null,null,null,null,null,null,null,null,null,null,null,null,null,null,null,null,null,null,null,null,null,null,null,6,"D4O21W1IBV0H1VEMME7XE2JND","DA4HQT1FQ21CBCL0CVM3F7BP5","","","","","","00","X","0","0","",""]
[null,null,null,null,null,null,null,null,null,null,null,null,null,null,null,null,null,null,null,null,null,null,null,null,null,null,null,null,null,null,null,null,null,null,null,null,null,null,null,null,null,null,null,null,null,null,null,null,null,null,null,null,null,null,null,null,null,null,null,null,null,null,null,null,null,null,null,null,null,null,null,null,null,null,null,null,null,null,null,null,null,null,null,null,null,null,null,null,null,null,null,null,null,null,null,null,null,null,null,null,null,null,null,null,null,null,null,null,null,null,null,null,null,null,null,null,null,null,null,null,null,null,null,null,null,null,null,null,null,null,6,"DEMAFDB5LZ4S252XBVM7GJP4P","DA4HOQG67KJLJEZJDU9MN4BG9","","","","","","00","X","0","0","",""]
[null,null,null,null,null,null,null,null,null,null,null,null,null,null,null,null,null,null,null,null,null,null,null,null,null,null,null,null,null,null,null,null,null,null,null,null,null,null,null,null,null,null,null,null,null,null,null,null,null,null,null,null,null,null,null,null,null,null,null,null,null,null,null,null,null,null,null,null,null,null,null,null,null,null,null,null,null,null,null,null,null,null,null,null,null,null,null,null,null,null,null,null,null,null,null,null,null,null,null,null,null,null,null,null,null,null,null,null,null,null,null,null,null,null,null,null,null,null,null,null,null,null,null,null,null,null,null,null,null,null,6,"DEN03PYIT5FSSAA2U7ST53H15","DA4HOQG67KEZFP0ZGLNY8JXTL","","","","","","00","X","0","0","",""]
[null,null,null,null,null,null,null,null,null,null,null,null,null,null,null,null,null,null,null,null,null,null,null,null,null,null,null,null,null,null,null,null,null,null,null,null,null,null,null,null,null,null,null,null,null,null,null,null,null,null,null,null,null,null,null,null,null,null,null,null,null,null,null,null,null,null,null,null,null,null,null,null,null,null,null,null,null,null,null,null,null,null,null,null,null,null,null,null,null,null,null,null,null,null,null,null,null,null,null,null,null,null,null,null,null,null,null,null,null,null,null,null,null,null,null,null,null,null,null,null,null,null,null,null,null,null,null,null,null,null,6,"DEN04FDC1K04NBJW47LA7T915","DA4HOQG67K8TYQEWWA71P4RND","","","","","","00","X","0","0","",""]
[null,null,null,null,null,null,null,null,null,null,null,null,null,null,null,null,null,null,null,null,null,null,null,null,null,null,null,null,null,null,null,null,null,null,null,null,null,null,null,null,null,null,null,null,null,null,null,null,null,null,null,null,null,null,null,null,null,null,null,null,null,null,null,null,null,null,null,null,null,null,null,null,null,null,null,null,null,null,null,null,null,null,null,null,null,null,null,null,null,null,null,null,null,null,null,null,null,null,null,null,null,null,null,null,null,null,null,null,null,null,null,null,null,null,null,null,null,null,null,null,null,null,null,null,null,null,null,null,null,null,6,"DEN07Y1DTSOUA299LF6TNG6WP","DA4HOQG67KBWP7PY6FXHYUCQH","","","","","","00","X","0","0","",""]
[null,null,null,null,null,null,null,null,null,null,null,null,null,null,null,null,null,null,null,null,null,null,null,null,null,null,null,null,null,null,null,null,null,null,null,null,null,null,null,null,null,null,null,null,null,null,null,null,null,null,null,null,null,null,null,null,null,null,null,null,null,null,null,null,null,null,null,null,null,null,null,null,null,null,null,null,null,null,null,null,null,null,null,null,null,null,null,null,null,null,null,null,null,null,null,null,null,null,null,null,null,null,null,null,null,null,null,null,null,null,null,null,null,null,null,null,null,null,null,null,null,null,null,null,null,null,null,null,null,null,6,"DEN07Y1DTSQDNAWS8I21SAZG9","DA4HOQG67KLWL9YTCGKGUEI9L","","0","","","","00","X","0","0","",""]
[null,null,null,null,null,null,null,null,null,null,null,null,null,null,null,null,null,null,null,null,null,null,null,null,null,null,null,null,null,null,null,null,null,null,null,null,null,null,null,null,null,null,null,null,null,null,null,null,null,null,null,null,null,null,null,null,null,null,null,null,null,null,null,null,null,null,null,null,null,null,null,null,null,null,null,null,null,null,null,null,null,null,null,null,null,null,null,null,null,null,null,null,null,null,null,null,null,null,null,null,null,null,null,null,null,null,null,null,null,null,null,null,null,null,null,null,null,null,null,null,null,null,null,null,null,null,null,null,null,null,6,"DEN07Y1DTSR5BX8JK1HNUQDQ1","DA4HOQG67KGISXOI3OJ6DEQD5","","","","","","00","X","0","0","",""]
[null,null,null,null,null,null,null,null,null,null,null,null,null,null,null,null,null,null,null,null,null,null,null,null,null,null,null,null,null,null,null,null,null,null,null,null,null,null,null,null,null,null,null,null,null,null,null,null,null,null,null,null,null,null,null,null,null,null,null,null,null,null,null,null,null,null,null,null,null,null,null,null,null,null,null,null,null,null,null,null,null,null,null,null,null,null,null,null,null,null,null,null,null,null,null,null,null,null,null,null,null,null,null,null,null,null,null,null,null,null,null,null,null,null,null,null,null,null,null,null,null,null,null,null,null,null,null,null,null,null,6,"DEN07Y1DTSSOP5W274CVZL69L","DA4HOQG67KBWP7PY6FXHYUCQH","","","","","","00","X","0","0","",""]
[null,null,null,null,null,null,null,null,null,null,null,null,null,null,null,null,null,null,null,null,null,null,null,null,null,null,null,null,null,null,null,null,null,null,null,null,null,null,null,null,null,null,null,null,null,null,null,null,null,null,null,null,null,null,null,null,null,null,null,null,null,null,null,null,null,null,null,null,null,null,null,null,null,null,null,null,null,null,null,null,null,null,null,null,null,null,null,null,null,null,null,null,null,null,null,null,null,null,null,null,null,null,null,null,null,null,null,null,null,null,null,null,null,null,null,null,null,null,null,null,null,null,null,null,null,null,null,null,null,null,6,"DEN0OSIFULDRI056PS9TTR4S9","DA4HQT1FQ223ZYWROF1PHMPYX","","","","","","00","X","0","0","",""]
[null,null,null,null,null,null,null,null,null,null,null,null,null,null,null,null,null,null,null,null,null,null,null,null,null,null,null,null,null,null,null,null,null,null,null,null,null,null,null,null,null,null,null,null,null,null,null,null,null,null,null,null,null,null,null,null,null,null,null,null,null,null,null,null,null,null,null,null,null,null,null,null,null,null,null,null,null,null,null,null,null,null,null,null,null,null,null,null,null,null,null,null,null,null,null,null,null,null,null,null,null,null,null,null,null,null,null,null,null,null,null,null,null,null,null,null,null,null,null,null,null,null,null,null,null,null,null,null,null,null,5,"D4O21W1IBUE67VXMBQN5FO1RT","DA4HOQG67KITUSNS2AU0KOX6H","","","","","","00","X","0","0","",""]
[null,null,null,null,null,null,null,null,null,null,null,null,null,null,null,null,null,null,null,null,null,null,null,null,null,null,null,null,null,null,null,null,null,null,null,null,null,null,null,null,null,null,null,null,null,null,null,null,null,null,null,null,null,null,null,null,null,null,null,null,null,null,null,null,null,null,null,null,null,null,null,null,null,null,null,null,null,null,null,null,null,null,null,null,null,null,null,null,null,null,null,null,null,null,null,null,null,null,null,null,null,null,null,null,null,null,null,null,null,null,null,null,null,null,null,null,null,null,null,null,null,null,null,null,null,null,null,null,null,null,5,"D4O21W1IBUEXWI9DNA2RI3G1L","DA4HOQG67KITUSNS2AU0KOX6H","","","","","","00","X","0","0","",""]
[null,null,null,null,null,null,null,null,null,null,null,null,null,null,null,null,null,null,null,null,null,null,null,null,null,null,null,null,null,null,null,null,null,null,null,null,null,null,null,null,null,null,null,null,null,null,null,null,null,null,null,null,null,null,null,null,null,null,null,null,null,null,null,null,null,null,null,null,null,null,null,null,null,null,null,null,null,null,null,null,null,null,null,null,null,null,null,null,null,null,null,null,null,null,null,null,null,null,null,null,null,null,null,null,null,null,null,null,null,null,null,null,null,null,null,null,null,null,null,null,null,null,null,null,null,null,null,null,null,null,5,"D4O21W1IBUH8YD8NLWDLPDMUX","DA4HOQG67KCODU1PHZD419R09","","","","","","00","X","0","0","",""]
[null,null,null,null,null,null,null,null,null,null,null,null,null,null,null,null,null,null,null,null,null,null,null,null,null,null,null,null,null,null,null,null,null,null,null,null,null,null,null,null,null,null,null,null,null,null,null,null,null,null,null,null,null,null,null,null,null,null,null,null,null,null,null,null,null,null,null,null,null,null,null,null,null,null,null,null,null,null,null,null,null,null,null,null,null,null,null,null,null,null,null,null,null,null,null,null,null,null,null,null,null,null,null,null,null,null,null,null,null,null,null,null,null,null,null,null,null,null,null,null,null,null,null,null,null,null,null,null,null,null,5,"D4O21W1IBUKBOUJOW241Z37Y1","DA4IKULODJ1MZ318V3RCW3FND","","","","","","00","X","0","0","",""]
[null,null,null,null,null,null,null,null,null,null,null,null,null,null,null,null,null,null,null,null,null,null,null,null,null,null,null,null,null,null,null,null,null,null,null,null,null,null,null,null,null,null,null,null,null,null,null,null,null,null,null,null,null,null,null,null,null,null,null,null,null,null,null,null,null,null,null,null,null,null,null,null,null,null,null,null,null,null,null,null,null,null,null,null,null,null,null,null,null,null,null,null,null,null,null,null,null,null,null,null,null,null,null,null,null,null,null,null,null,null,null,null,null,null,null,null,null,null,null,null,null,null,null,null,null,null,null,null,null,null,5,"D4O21W1IBULV2377J4ZA3Y0HL","DA4HOQG67KMO9WAKO002WTWJD","","","","","","00","X","0","0","",""]
[null,null,null,null,null,null,null,null,null,null,null,null,null,null,null,null,null,null,null,null,null,null,null,null,null,null,null,null,null,null,null,null,null,null,null,null,null,null,null,null,null,null,null,null,null,null,null,null,null,null,null,null,null,null,null,null,null,null,null,null,null,null,null,null,null,null,null,null,null,null,null,null,null,null,null,null,null,null,null,null,null,null,null,null,null,null,null,null,null,null,null,null,null,null,null,null,null,null,null,null,null,null,null,null,null,null,null,null,null,null,null,null,null,null,null,null,null,null,null,null,null,null,null,null,null,null,null,null,null,null,5,"D4O21W1IBUMMQPIYUOEW6DERD","DA4HOQG67KKD81BAPDP8PJPQ1","","","","","","00","X","0","0","",""]
[null,null,null,null,null,null,null,null,null,null,null,null,null,null,null,null,null,null,null,null,null,null,null,null,null,null,null,null,null,null,null,null,null,null,null,null,null,null,null,null,null,null,null,null,null,null,null,null,null,null,null,null,null,null,null,null,null,null,null,null,null,null,null,null,null,null,null,null,null,null,null,null,null,null,null,null,null,null,null,null,null,null,null,null,null,null,null,null,null,null,null,null,null,null,null,null,null,null,null,null,null,null,null,null,null,null,null,null,null,null,null,null,null,null,null,null,null,null,null,null,null,null,null,null,null,null,null,null,null,null,5,"D4O21W1IBUXEBE3LC8HH4CYK9","DA4HOQG67KEZFP0ZGLNY8JXTL","","0","","","","00","X","0","0","",""]
[null,null,null,null,null,null,null,null,null,null,null,null,null,null,null,null,null,null,null,null,null,null,null,null,null,null,null,null,null,null,null,null,null,null,null,null,null,null,null,null,null,null,null,null,null,null,null,null,null,null,null,null,null,null,null,null,null,null,null,null,null,null,null,null,null,null,null,null,null,null,null,null,null,null,null,null,null,null,null,null,null,null,null,null,null,null,null,null,null,null,null,null,null,null,null,null,null,null,null,null,null,null,null,null,null,null,null,null,null,null,null,null,null,null,null,null,null,null,null,null,null,null,null,null,null,null,null,null,null,null,5,"D4O21W1IBUY600FCNRX36SCU1","DA4HOQG67K8TYQEWWA71P4RND","","","","","","00","X","0","0","",""]
[null,null,null,null,null,null,null,null,null,null,null,null,null,null,null,null,null,null,null,null,null,null,null,null,null,null,null,null,null,null,null,null,null,null,null,null,null,null,null,null,null,null,null,null,null,null,null,null,null,null,null,null,null,null,null,null,null,null,null,null,null,null,null,null,null,null,null,null,null,null,null,null,null,null,null,null,null,null,null,null,null,null,null,null,null,null,null,null,null,null,null,null,null,null,null,null,null,null,null,null,null,null,null,null,null,null,null,null,null,null,null,null,null,null,null,null,null,null,null,null,null,null,null,null,null,null,null,null,null,null,5,"D4O21W1IBV0H1VEMME7XE2JND","DA4HQT1FQ21CBCL0CVM3F7BP5","","","","","","00","X","0","0","",""]
[null,null,null,null,null,null,null,null,null,null,null,null,null,null,null,null,null,null,null,null,null,null,null,null,null,null,null,null,null,null,null,null,null,null,null,null,null,null,null,null,null,null,null,null,null,null,null,null,null,null,null,null,null,null,null,null,null,null,null,null,null,null,null,null,null,null,null,null,null,null,null,null,null,null,null,null,null,null,null,null,null,null,null,null,null,null,null,null,null,null,null,null,null,null,null,null,null,null,null,null,null,null,null,null,null,null,null,null,null,null,null,null,null,null,null,null,null,null,null,null,null,null,null,null,null,null,null,null,null,null,5,"DEMAFDB5LZ4S252XBVM7GJP4P","DA4IKULODJ1MZ318V3RCW3FND","","","","","","00","X","0","0","",""]
[null,null,null,null,null,null,null,null,null,null,null,null,null,null,null,null,null,null,null,null,null,null,null,null,null,null,null,null,null,null,null,null,null,null,null,null,null,null,null,null,null,null,null,null,null,null,null,null,null,null,null,null,null,null,null,null,null,null,null,null,null,null,null,null,null,null,null,null,null,null,null,null,null,null,null,null,null,null,null,null,null,null,null,null,null,null,null,null,null,null,null,null,null,null,null,null,null,null,null,null,null,null,null,null,null,null,null,null,null,null,null,null,null,null,null,null,null,null,null,null,null,null,null,null,null,null,null,null,null,null,5,"DEN03PYIT5FSSAA2U7ST53H15","DA4HOQG67KGISXOI3OJ6DEQD5","","","","","","00","X","0","0","",""]
[null,null,null,null,null,null,null,null,null,null,null,null,null,null,null,null,null,null,null,null,null,null,null,null,null,null,null,null,null,null,null,null,null,null,null,null,null,null,null,null,null,null,null,null,null,null,null,null,null,null,null,null,null,null,null,null,null,null,null,null,null,null,null,null,null,null,null,null,null,null,null,null,null,null,null,null,null,null,null,null,null,null,null,null,null,null,null,null,null,null,null,null,null,null,null,null,null,null,null,null,null,null,null,null,null,null,null,null,null,null,null,null,null,null,null,null,null,null,null,null,null,null,null,null,null,null,null,null,null,null,5,"DEN07Y1DTSNAWTLQYCBLILED5","DA4HOQG67KBWP7PY6FXHYUCQH","","0","","","","00","X","0","0","",""]
[null,null,null,null,null,null,null,null,null,null,null,null,null,null,null,null,null,null,null,null,null,null,null,null,null,null,null,null,null,null,null,null,null,null,null,null,null,null,null,null,null,null,null,null,null,null,null,null,null,null,null,null,null,null,null,null,null,null,null,null,null,null,null,null,null,null,null,null,null,null,null,null,null,null,null,null,null,null,null,null,null,null,null,null,null,null,null,null,null,null,null,null,null,null,null,null,null,null,null,null,null,null,null,null,null,null,null,null,null,null,null,null,null,null,null,null,null,null,null,null,null,null,null,null,null,null,null,null,null,null,5,"DEN07Y1DTSOUA299LF6TNG6WP","DA4HQT1FQ223ZYWROF1PHMPYX","","","","","","00","X","0","0","",""]
[null,null,null,null,null,null,null,null,null,null,null,null,null,null,null,null,null,null,null,null,null,null,null,null,null,null,null,null,null,null,null,null,null,null,null,null,null,null,null,null,null,null,null,null,null,null,null,null,null,null,null,null,null,null,null,null,null,null,null,null,null,null,null,null,null,null,null,null,null,null,null,null,null,null,null,null,null,null,null,null,null,null,null,null,null,null,null,null,null,null,null,null,null,null,null,null,null,null,null,null,null,null,null,null,null,null,null,null,null,null,null,null,null,null,null,null,null,null,null,null,null,null,null,null,null,null,null,null,null,null,5,"DEN07Y1DTSPLYOL0WYMFPVL6H","DA4HOQG67KEZFP0ZGLNY8JXTL","","0","","","","00","X","0","0","",""]
[null,null,null,null,null,null,null,null,null,null,null,null,null,null,null,null,null,null,null,null,null,null,null,null,null,null,null,null,null,null,null,null,null,null,null,null,null,null,null,null,null,null,null,null,null,null,null,null,null,null,null,null,null,null,null,null,null,null,null,null,null,null,null,null,null,null,null,null,null,null,null,null,null,null,null,null,null,null,null,null,null,null,null,null,null,null,null,null,null,null,null,null,null,null,null,null,null,null,null,null,null,null,null,null,null,null,null,null,null,null,null,null,null,null,null,null,null,null,null,null,null,null,null,null,null,null,null,null,null,null,5,"DEN07Y1DTSRX0JKAVKX9X5RZT","DA4HOQG67KITUSNS2AU0KOX6H","","","","","","00","X","0","0","",""]
[null,null,null,null,null,null,null,null,null,null,null,null,null,null,null,null,null,null,null,null,null,null,null,null,null,null,null,null,null,null,null,null,null,null,null,null,null,null,null,null,null,null,null,null,null,null,null,null,null,null,null,null,null,null,null,null,null,null,null,null,null,null,null,null,null,null,null,null,null,null,null,null,null,null,null,null,null,null,null,null,null,null,null,null,null,null,null,null,null,null,null,null,null,null,null,null,null,null,null,null,null,null,null,null,null,null,null,null,null,null,null,null,null,null,null,null,null,null,null,null,null,null,null,null,null,null,null,null,null,null,5,"DEN0OSIFULDRI056PS9TTR4S9","DA4HOQG67KCODU1PHZD419R09","","","","","","00","X","0","0","",""]
[null,null,null,null,null,null,null,null,null,null,null,null,null,null,null,null,null,null,null,null,null,null,null,null,null,null,null,null,null,null,null,null,null,null,null,null,null,null,null,null,null,null,null,null,null,null,null,null,null,null,null,null,null,null,null,null,null,null,null,null,null,null,null,null,null,null,null,null,null,null,null,null,null,null,null,null,null,null,null,null,null,null,null,null,null,null,null,null,null,null,null,null,null,null,null,null,null,null,null,null,null,null,null,null,null,null,null,null,null,null,null,null,null,null,null,null,null,null,null,null,null,null,null,null,null,null,null,null,null,null,5,"DEN0OSIFULEJ6MGY1BPFW6J21","DA4IKULODJ1MZ318V3RCW3FND","","","","","","00","X","0","0","",""]
[null,null,null,null,null,null,null,null,null,null,null,null,null,null,null,null,null,null,null,null,null,null,null,null,null,null,null,null,null,null,null,null,null,null,null,null,null,null,null,null,null,null,null,null,null,null,null,null,null,null,null,null,null,null,null,null,null,null,null,null,null,null,null,null,null,null,null,null,null,null,null,null,null,null,null,null,null,null,null,null,null,null,null,null,null,null,null,null,null,null,null,null,null,null,null,null,null,null,null,null,null,null,null,null,null,null,null,null,null,null,null,null,null,null,null,null,null,null,null,null,null,null,null,null,null,null,null,null,null,null,4,"D4O2P4A3SHEMNVLLG4FF26VAX","DA4HOQG67KOZBR9UMMAX443CP","","2","","","","00","X","0","0","",""]
[null,null,null,null,null,null,null,null,null,null,null,null,null,null,null,null,null,null,null,null,null,null,null,null,null,null,null,null,null,null,null,null,null,null,null,null,null,null,null,null,null,null,null,null,null,null,null,null,null,null,null,null,null,null,null,null,null,null,null,null,null,null,null,null,null,null,null,null,null,null,null,null,null,null,null,null,null,null,null,null,null,null,null,null,null,null,null,null,null,null,null,null,null,null,null,null,null,null,null,null,null,null,null,null,null,null,null,null,null,null,null,null,null,null,null,null,null,null,null,null,null,null,null,null,null,null,null,null,null,null,4,"D4O2P4A3SHHPECWMQA5VBWGE1","DA4HOQG67KLWL9YTCGKGUEI9L","","","","","","00","X","0","0","",""]
[null,null,null,null,null,null,null,null,null,null,null,null,null,null,null,null,null,null,null,null,null,null,null,null,null,null,null,null,null,null,null,null,null,null,null,null,null,null,null,null,null,null,null,null,null,null,null,null,null,null,null,null,null,null,null,null,null,null,null,null,null,null,null,null,null,null,null,null,null,null,null,null,null,null,null,null,null,null,null,null,null,null,null,null,null,null,null,null,null,null,null,null,null,null,null,null,null,null,null,null,null,null,null,null,null,null,null,null,null,null,null,null,null,null,null,null,null,null,null,null,null,null,null,null,null,null,null,null,null,null,4,"D4O2P4A3SHNUVBIPALMRVBMK9","DA4HOQG67KFR4BCQS53KAZC3D","","","","","","00","X","0","0","",""]
[null,null,null,null,null,null,null,null,null,null,null,null,null,null,null,null,null,null,null,null,null,null,null,null,null,null,null,null,null,null,null,null,null,null,null,null,null,null,null,null,null,null,null,null,null,null,null,null,null,null,null,null,null,null,null,null,null,null,null,null,null,null,null,null,null,null,null,null,null,null,null,null,null,null,null,null,null,null,null,null,null,null,null,null,null,null,null,null,null,null,null,null,null,null,null,null,null,null,null,null,null,null,null,null,null,null,null,null,null,null,null,null,null,null,null,null,null,null,null,null,null,null,null,null,null,null,null,null,null,null,4,"DEN9FTLAHPZM13J0WXXO1VFND","DA4HOQG67K8TYQEWWA71P4RND","","","","","","00","X","0","0","",""]
[null,null,null,null,null,null,null,null,null,null,null,null,null,null,null,null,null,null,null,null,null,null,null,null,null,null,null,null,null,null,null,null,null,null,null,null,null,null,null,null,null,null,null,null,null,null,null,null,null,null,null,null,null,null,null,null,null,null,null,null,null,null,null,null,null,null,null,null,null,null,null,null,null,null,null,null,null,null,null,null,null,null,null,null,null,null,null,null,null,null,null,null,null,null,null,null,null,null,null,null,null,null,null,null,null,null,null,null,null,null,null,null,null,null,null,null,null,null,null,null,null,null,null,null,null,null,null,null,null,null,4,"DEN9FTLAHQ0DPPUS8HDA4ATX5","DA4HQT1FQ21CBCL0CVM3F7BP5","","","","","","00","X","0","0","",""]
[null,null,null,null,null,null,null,null,null,null,null,null,null,null,null,null,null,null,null,null,null,null,null,null,null,null,null,null,null,null,null,null,null,null,null,null,null,null,null,null,null,null,null,null,null,null,null,null,null,null,null,null,null,null,null,null,null,null,null,null,null,null,null,null,null,null,null,null,null,null,null,null,null,null,null,null,null,null,null,null,null,null,null,null,null,null,null,null,null,null,null,null,null,null,null,null,null,null,null,null,null,null,null,null,null,null,null,null,null,null,null,null,null,null,null,null,null,null,null,null,null,null,null,null,null,null,null,null,null,null,4,"DEN9FTLAHQ2ORKU273O4BL0QH","DA4HOQG67KPR0DLLY5QJ6JHMH","","2","","","","00","X","0","0","",""]
[null,null,null,null,null,null,null,null,null,null,null,null,null,null,null,null,null,null,null,null,null,null,null,null,null,null,null,null,null,null,null,null,null,null,null,null,null,null,null,null,null,null,null,null,null,null,null,null,null,null,null,null,null,null,null,null,null,null,null,null,null,null,null,null,null,null,null,null,null,null,null,null,null,null,null,null,null,null,null,null,null,null,null,null,null,null,null,null,null,null,null,null,null,null,null,null,null,null,null,null,null,null,null,null,null,null,null,null,null,null,null,null,null,null,null,null,null,null,null,null,null,null,null,null,null,null,null,null,null,null,4,"DEN9FTLAHQ484THKU6JCGFTA1","DA4HOQG67KGISXOI3OJ6DEQD5","","0","","","","00","X","0","0","",""]
[null,null,null,null,null,null,null,null,null,null,null,null,null,null,null,null,null,null,null,null,null,null,null,null,null,null,null,null,null,null,null,null,null,null,null,null,null,null,null,null,null,null,null,null,null,null,null,null,null,null,null,null,null,null,null,null,null,null,null,null,null,null,null,null,null,null,null,null,null,null,null,null,null,null,null,null,null,null,null,null,null,null,null,null,null,null,null,null,null,null,null,null,null,null,null,null,null,null,null,null,null,null,null,null,null,null,null,null,null,null,null,null,null,null,null,null,null,null,null,null,null,null,null,null,null,null,null,null,null,null,4,"DEN9GQ7MCHB0MMP6Y5ZGNKFEH","DA4HOQG67KBWP7PY6FXHYUCQH","","","","","","00","X","0","0","",""]
[null,null,null,null,null,null,null,null,null,null,null,null,null,null,null,null,null,null,null,null,null,null,null,null,null,null,null,null,null,null,null,null,null,null,null,null,null,null,null,null,null,null,null,null,null,null,null,null,null,null,null,null,null,null,null,null,null,null,null,null,null,null,null,null,null,null,null,null,null,null,null,null,null,null,null,null,null,null,null,null,null,null,null,null,null,null,null,null,null,null,null,null,null,null,null,null,null,null,null,null,null,null,null,null,null,null,null,null,null,null,null,null,null,null,null,null,null,null,null,null,null,null,null,null,null,null,null,null,null,null,4,"DEN9GQ7MCHBSB90Y9PF2PZTO9","DA4HWYL5HGT0050M6CGMF31MH","","","","","","00","X","0","0","",""]
[null,null,null,null,null,null,null,null,null,null,null,null,null,null,null,null,null,null,null,null,null,null,null,null,null,null,null,null,null,null,null,null,null,null,null,null,null,null,null,null,null,null,null,null,null,null,null,null,null,null,null,null,null,null,null,null,null,null,null,null,null,null,null,null,null,null,null,null,null,null,null,null,null,null,null,null,null,null,null,null,null,null,null,null,null,null,null,null,null,null,null,null,null,null,null,null,null,null,null,null,null,null,null,null,null,null,null,null,null,null,null,null,null,null,null,null,null,null,null,null,null,null,null,null,null,null,null,null,null,null,4,"DEN9GQ7MCHDBOHOGWSAAUUM7T","DA4HOQG67KADBZ2FJD29TZK6X","","","","","","00","X","0","0","",""]
[null,null,null,null,null,null,null,null,null,null,null,null,null,null,null,null,null,null,null,null,null,null,null,null,null,null,null,null,null,null,null,null,null,null,null,null,null,null,null,null,null,null,null,null,null,null,null,null,null,null,null,null,null,null,null,null,null,null,null,null,null,null,null,null,null,null,null,null,null,null,null,null,null,null,null,null,null,null,null,null,null,null,null,null,null,null,null,null,null,null,null,null,null,null,null,null,null,null,null,null,null,null,null,null,null,null,null,null,null,null,null,null,null,null,null,null,null,null,null,null,null,null,null,null,null,null,null,null,null,null,4,"DEN9GQ7MCHE3D4088BPWXA0HL","DA4HWYL5HGT0050M6CGMF31MH","","","","","","00","X","0","0","",""]
[null,null,null,null,null,null,null,null,null,null,null,null,null,null,null,null,null,null,null,null,null,null,null,null,null,null,null,null,null,null,null,null,null,null,null,null,null,null,null,null,null,null,null,null,null,null,null,null,null,null,null,null,null,null,null,null,null,null,null,null,null,null,null,null,null,null,null,null,null,null,null,null,null,null,null,null,null,null,null,null,null,null,null,null,null,null,null,null,null,null,null,null,null,null,null,null,null,null,null,null,null,null,null,null,null,null,null,null,null,null,null,null,null,null,null,null,null,null,null,null,null,null,null,null,null,null,null,null,null,null,4,"DEN9GQ7MCHE3D4088BPWXA0HL","DA4IKULODJ1MZ318V3RCW3FND","","","","","","00","X","0","0","",""]
[null,null,null,null,null,null,null,null,null,null,null,null,null,null,null,null,null,null,null,null,null,null,null,null,null,null,null,null,null,null,null,null,null,null,null,null,null,null,null,null,null,null,null,null,null,null,null,null,null,null,null,null,null,null,null,null,null,null,null,null,null,null,null,null,null,null,null,null,null,null,null,null,null,null,null,null,null,null,null,null,null,null,null,null,null,null,null,null,null,null,null,null,null,null,null,null,null,null,null,null,null,null,null,null,null,null,null,null,null,null,null,null,null,null,null,null,null,null,null,null,null,null,null,null,null,null,null,null,null,null,4,"DEN9GQ7MCHE3D4088BPWXA0HL","DA4IKULODJ2ENPD06N6YYITX5","","","","","","00","X","0","0","",""]
[null,null,null,null,null,null,null,null,null,null,null,null,null,null,null,null,null,null,null,null,null,null,null,null,null,null,null,null,null,null,null,null,null,null,null,null,null,null,null,null,null,null,null,null,null,null,null,null,null,null,null,null,null,null,null,null,null,null,null,null,null,null,null,null,null,null,null,null,null,null,null,null,null,null,null,null,null,null,null,null,null,null,null,null,null,null,null,null,null,null,null,null,null,null,null,null,null,null,null,null,null,null,null,null,null,null,null,null,null,null,null,null,null,null,null,null,null,null,null,null,null,null,null,null,null,null,null,null,null,null,4,"DEN9GQ7MCHEV1QBZJV5IZPERD","DA4HOQG67K8TYQEWWA71P4RND","","0","","","","00","X","0","0","",""]
[null,null,null,null,null,null,null,null,null,null,null,null,null,null,null,null,null,null,null,null,null,null,null,null,null,null,null,null,null,null,null,null,null,null,null,null,null,null,null,null,null,null,null,null,null,null,null,null,null,null,null,null,null,null,null,null,null,null,null,null,null,null,null,null,null,null,null,null,null,null,null,null,null,null,null,null,null,null,null,null,null,null,null,null,null,null,null,null,null,null,null,null,null,null,null,null,null,null,null,null,null,null,null,null,null,null,null,null,null,null,null,null,null,null,null,null,null,null,null,null,null,null,null,null,null,null,null,null,null,null,4,"DEN9GQ7MCHEV1QBZJV5IZPERD","DA4HOQG67K9LNCQO7TMNRK5X5","","0","","","","00","X","0","0","",""]
[null,null,null,null,null,null,null,null,null,null,null,null,null,null,null,null,null,null,null,null,null,null,null,null,null,null,null,null,null,null,null,null,null,null,null,null,null,null,null,null,null,null,null,null,null,null,null,null,null,null,null,null,null,null,null,null,null,null,null,null,null,null,null,null,null,null,null,null,null,null,null,null,null,null,null,null,null,null,null,null,null,null,null,null,null,null,null,null,null,null,null,null,null,null,null,null,null,null,null,null,null,null,null,null,null,null,null,null,null,null,null,null,null,null,null,null,null,null,null,null,null,null,null,null,null,null,null,null,null,null,4,"DEN9GQ7MCHEV1QBZJV5IZPERD","DA4HOQG67KADBZ2FJD29TZK6X","","0","","","","00","X","0","0","",""]
[null,null,null,null,null,null,null,null,null,null,null,null,null,null,null,null,null,null,null,null,null,null,null,null,null,null,null,null,null,null,null,null,null,null,null,null,null,null,null,null,null,null,null,null,null,null,null,null,null,null,null,null,null,null,null,null,null,null,null,null,null,null,null,null,null,null,null,null,null,null,null,null,null,null,null,null,null,null,null,null,null,null,null,null,null,null,null,null,null,null,null,null,null,null,null,null,null,null,null,null,null,null,null,null,null,null,null,null,null,null,null,null,null,null,null,null,null,null,null,null,null,null,null,null,null,null,null,null,null,null,4,"DEN9GQ7MCHEV1QBZJV5IZPERD","DA4HOQG67KBWP7PY6FXHYUCQH","","0","","","","00","X","0","0","",""]
[null,null,null,null,null,null,null,null,null,null,null,null,null,null,null,null,null,null,null,null,null,null,null,null,null,null,null,null,null,null,null,null,null,null,null,null,null,null,null,null,null,null,null,null,null,null,null,null,null,null,null,null,null,null,null,null,null,null,null,null,null,null,null,null,null,null,null,null,null,null,null,null,null,null,null,null,null,null,null,null,null,null,null,null,null,null,null,null,null,null,null,null,null,null,null,null,null,null,null,null,null,null,null,null,null,null,null,null,null,null,null,null,null,null,null,null,null,null,null,null,null,null,null,null,null,null,null,null,null,null,4,"DEN9GQ7MCHEV1QBZJV5IZPERD","DA4HOQG67KCODU1PHZD419R09","","0","","","","00","X","0","0","",""]
[null,null,null,null,null,null,null,null,null,null,null,null,null,null,null,null,null,null,null,null,null,null,null,null,null,null,null,null,null,null,null,null,null,null,null,null,null,null,null,null,null,null,null,null,null,null,null,null,null,null,null,null,null,null,null,null,null,null,null,null,null,null,null,null,null,null,null,null,null,null,null,null,null,null,null,null,null,null,null,null,null,null,null,null,null,null,null,null,null,null,null,null,null,null,null,null,null,null,null,null,null,null,null,null,null,null,null,null,null,null,null,null,null,null,null,null,null,null,null,null,null,null,null,null,null,null,null,null,null,null,4,"DEN9GQ7MCHEV1QBZJV5IZPERD","DA4HOQG67KDG2GDGTISQ3P5A1","","0","","","","00","X","0","0","",""]
[null,null,null,null,null,null,null,null,null,null,null,null,null,null,null,null,null,null,null,null,null,null,null,null,null,null,null,null,null,null,null,null,null,null,null,null,null,null,null,null,null,null,null,null,null,null,null,null,null,null,null,null,null,null,null,null,null,null,null,null,null,null,null,null,null,null,null,null,null,null,null,null,null,null,null,null,null,null,null,null,null,null,null,null,null,null,null,null,null,null,null,null,null,null,null,null,null,null,null,null,null,null,null,null,null,null,null,null,null,null,null,null,null,null,null,null,null,null,null,null,null,null,null,null,null,null,null,null,null,null,4,"DEN9GQ7MCHEV1QBZJV5IZPERD","DA4HOQG67KE7R2P8528C64JJT","","0","","","","00","X","0","0","",""]
[null,null,null,null,null,null,null,null,null,null,null,null,null,null,null,null,null,null,null,null,null,null,null,null,null,null,null,null,null,null,null,null,null,null,null,null,null,null,null,null,null,null,null,null,null,null,null,null,null,null,null,null,null,null,null,null,null,null,null,null,null,null,null,null,null,null,null,null,null,null,null,null,null,null,null,null,null,null,null,null,null,null,null,null,null,null,null,null,null,null,null,null,null,null,null,null,null,null,null,null,null,null,null,null,null,null,null,null,null,null,null,null,null,null,null,null,null,null,null,null,null,null,null,null,null,null,null,null,null,null,4,"DEN9GQ7MCHEV1QBZJV5IZPERD","DA4HOQG67KEZFP0ZGLNY8JXTL","","0","","","","00","X","0","0","",""]
[null,null,null,null,null,null,null,null,null,null,null,null,null,null,null,null,null,null,null,null,null,null,null,null,null,null,null,null,null,null,null,null,null,null,null,null,null,null,null,null,null,null,null,null,null,null,null,null,null,null,null,null,null,null,null,null,null,null,null,null,null,null,null,null,null,null,null,null,null,null,null,null,null,null,null,null,null,null,null,null,null,null,null,null,null,null,null,null,null,null,null,null,null,null,null,null,null,null,null,null,null,null,null,null,null,null,null,null,null,null,null,null,null,null,null,null,null,null,null,null,null,null,null,null,null,null,null,null,null,null,4,"DEN9GQ7MCHEV1QBZJV5IZPERD","DA4HOQG67KFR4BCQS53KAZC3D","","0","","","","00","X","0","0","",""]
[null,null,null,null,null,null,null,null,null,null,null,null,null,null,null,null,null,null,null,null,null,null,null,null,null,null,null,null,null,null,null,null,null,null,null,null,null,null,null,null,null,null,null,null,null,null,null,null,null,null,null,null,null,null,null,null,null,null,null,null,null,null,null,null,null,null,null,null,null,null,null,null,null,null,null,null,null,null,null,null,null,null,null,null,null,null,null,null,null,null,null,null,null,null,null,null,null,null,null,null,null,null,null,null,null,null,null,null,null,null,null,null,null,null,null,null,null,null,null,null,null,null,null,null,null,null,null,null,null,null,4,"DEN9GQ7MCHEV1QBZJV5IZPERD","DA4HOQG67KGISXOI3OJ6DEQD5","","0","","","","00","X","0","0","",""]
[null,null,null,null,null,null,null,null,null,null,null,null,null,null,null,null,null,null,null,null,null,null,null,null,null,null,null,null,null,null,null,null,null,null,null,null,null,null,null,null,null,null,null,null,null,null,null,null,null,null,null,null,null,null,null,null,null,null,null,null,null,null,null,null,null,null,null,null,null,null,null,null,null,null,null,null,null,null,null,null,null,null,null,null,null,null,null,null,null,null,null,null,null,null,null,null,null,null,null,null,null,null,null,null,null,null,null,null,null,null,null,null,null,null,null,null,null,null,null,null,null,null,null,null,null,null,null,null,null,null,4,"DEN9GQ7MCHEV1QBZJV5IZPERD","DA4HOQG67KHAHK09F7YSFU4MX","","0","","","","00","X","0","0","",""]
[null,null,null,null,null,null,null,null,null,null,null,null,null,null,null,null,null,null,null,null,null,null,null,null,null,null,null,null,null,null,null,null,null,null,null,null,null,null,null,null,null,null,null,null,null,null,null,null,null,null,null,null,null,null,null,null,null,null,null,null,null,null,null,null,null,null,null,null,null,null,null,null,null,null,null,null,null,null,null,null,null,null,null,null,null,null,null,null,null,null,null,null,null,null,null,null,null,null,null,null,null,null,null,null,null,null,null,null,null,null,null,null,null,null,null,null,null,null,null,null,null,null,null,null,null,null,null,null,null,null,4,"DEN9GQ7MCHEV1QBZJV5IZPERD","DA4HOQG67KI266C0QREEI9IWP","","0","","","","00","X","0","0","",""]
[null,null,null,null,null,null,null,null,null,null,null,null,null,null,null,null,null,null,null,null,null,null,null,null,null,null,null,null,null,null,null,null,null,null,null,null,null,null,null,null,null,null,null,null,null,null,null,null,null,null,null,null,null,null,null,null,null,null,null,null,null,null,null,null,null,null,null,null,null,null,null,null,null,null,null,null,null,null,null,null,null,null,null,null,null,null,null,null,null,null,null,null,null,null,null,null,null,null,null,null,null,null,null,null,null,null,null,null,null,null,null,null,null,null,null,null,null,null,null,null,null,null,null,null,null,null,null,null,null,null,4,"DEN9GQ7MCHEV1QBZJV5IZPERD","DA4HOQG67KITUSNS2AU0KOX6H","","0","","","","00","X","0","0","",""]
[null,null,null,null,null,null,null,null,null,null,null,null,null,null,null,null,null,null,null,null,null,null,null,null,null,null,null,null,null,null,null,null,null,null,null,null,null,null,null,null,null,null,null,null,null,null,null,null,null,null,null,null,null,null,null,null,null,null,null,null,null,null,null,null,null,null,null,null,null,null,null,null,null,null,null,null,null,null,null,null,null,null,null,null,null,null,null,null,null,null,null,null,null,null,null,null,null,null,null,null,null,null,null,null,null,null,null,null,null,null,null,null,null,null,null,null,null,null,null,null,null,null,null,null,null,null,null,null,null,null,4,"DEN9GQ7MCHEV1QBZJV5IZPERD","DA4HOQG67KJLJEZJDU9MN4BG9","","0","","","","00","X","0","0","",""]
[null,null,null,null,null,null,null,null,null,null,null,null,null,null,null,null,null,null,null,null,null,null,null,null,null,null,null,null,null,null,null,null,null,null,null,null,null,null,null,null,null,null,null,null,null,null,null,null,null,null,null,null,null,null,null,null,null,null,null,null,null,null,null,null,null,null,null,null,null,null,null,null,null,null,null,null,null,null,null,null,null,null,null,null,null,null,null,null,null,null,null,null,null,null,null,null,null,null,null,null,null,null,null,null,null,null,null,null,null,null,null,null,null,null,null,null,null,null,null,null,null,null,null,null,null,null,null,null,null,null,4,"DEN9GQ7MCHEV1QBZJV5IZPERD","DA4HOQG67KKD81BAPDP8PJPQ1","","0","","","","00","X","0","0","",""]
[null,null,null,null,null,null,null,null,null,null,null,null,null,null,null,null,null,null,null,null,null,null,null,null,null,null,null,null,null,null,null,null,null,null,null,null,null,null,null,null,null,null,null,null,null,null,null,null,null,null,null,null,null,null,null,null,null,null,null,null,null,null,null,null,null,null,null,null,null,null,null,null,null,null,null,null,null,null,null,null,null,null,null,null,null,null,null,null,null,null,null,null,null,null,null,null,null,null,null,null,null,null,null,null,null,null,null,null,null,null,null,null,null,null,null,null,null,null,null,null,null,null,null,null,null,null,null,null,null,null,4,"DEN9GQ7MCHEV1QBZJV5IZPERD","DA4HOQG67KL4WNN20X4URZ3ZT","","0","","","","00","X","0","0","",""]
[null,null,null,null,null,null,null,null,null,null,null,null,null,null,null,null,null,null,null,null,null,null,null,null,null,null,null,null,null,null,null,null,null,null,null,null,null,null,null,null,null,null,null,null,null,null,null,null,null,null,null,null,null,null,null,null,null,null,null,null,null,null,null,null,null,null,null,null,null,null,null,null,null,null,null,null,null,null,null,null,null,null,null,null,null,null,null,null,null,null,null,null,null,null,null,null,null,null,null,null,null,null,null,null,null,null,null,null,null,null,null,null,null,null,null,null,null,null,null,null,null,null,null,null,null,null,null,null,null,null,4,"DEN9GQ7MCHEV1QBZJV5IZPERD","DA4HOQG67KLWL9YTCGKGUEI9L","","0","","","","00","X","0","0","",""]
[null,null,null,null,null,null,null,null,null,null,null,null,null,null,null,null,null,null,null,null,null,null,null,null,null,null,null,null,null,null,null,null,null,null,null,null,null,null,null,null,null,null,null,null,null,null,null,null,null,null,null,null,null,null,null,null,null,null,null,null,null,null,null,null,null,null,null,null,null,null,null,null,null,null,null,null,null,null,null,null,null,null,null,null,null,null,null,null,null,null,null,null,null,null,null,null,null,null,null,null,null,null,null,null,null,null,null,null,null,null,null,null,null,null,null,null,null,null,null,null,null,null,null,null,null,null,null,null,null,null,4,"DEN9GQ7MCHEV1QBZJV5IZPERD","DA4HOQG67KMO9WAKO002WTWJD","","0","","","","00","X","0","0","",""]
[null,null,null,null,null,null,null,null,null,null,null,null,null,null,null,null,null,null,null,null,null,null,null,null,null,null,null,null,null,null,null,null,null,null,null,null,null,null,null,null,null,null,null,null,null,null,null,null,null,null,null,null,null,null,null,null,null,null,null,null,null,null,null,null,null,null,null,null,null,null,null,null,null,null,null,null,null,null,null,null,null,null,null,null,null,null,null,null,null,null,null,null,null,null,null,null,null,null,null,null,null,null,null,null,null,null,null,null,null,null,null,null,null,null,null,null,null,null,null,null,null,null,null,null,null,null,null,null,null,null,4,"DEN9GQ7MCHEV1QBZJV5IZPERD","DA4HOQG67KNFYIMBZJFOZ9AT5","","0","","","","00","X","0","0","",""]
[null,null,null,null,null,null,null,null,null,null,null,null,null,null,null,null,null,null,null,null,null,null,null,null,null,null,null,null,null,null,null,null,null,null,null,null,null,null,null,null,null,null,null,null,null,null,null,null,null,null,null,null,null,null,null,null,null,null,null,null,null,null,null,null,null,null,null,null,null,null,null,null,null,null,null,null,null,null,null,null,null,null,null,null,null,null,null,null,null,null,null,null,null,null,null,null,null,null,null,null,null,null,null,null,null,null,null,null,null,null,null,null,null,null,null,null,null,null,null,null,null,null,null,null,null,null,null,null,null,null,4,"DEN9GQ7MCHEV1QBZJV5IZPERD","DA4HOQG67KO7N4Y3B2VB1OP2X","","0","","","","00","X","0","0","",""]
[null,null,null,null,null,null,null,null,null,null,null,null,null,null,null,null,null,null,null,null,null,null,null,null,null,null,null,null,null,null,null,null,null,null,null,null,null,null,null,null,null,null,null,null,null,null,null,null,null,null,null,null,null,null,null,null,null,null,null,null,null,null,null,null,null,null,null,null,null,null,null,null,null,null,null,null,null,null,null,null,null,null,null,null,null,null,null,null,null,null,null,null,null,null,null,null,null,null,null,null,null,null,null,null,null,null,null,null,null,null,null,null,null,null,null,null,null,null,null,null,null,null,null,null,null,null,null,null,null,null,4,"DEN9GQ7MCHEV1QBZJV5IZPERD","DA4HOQG67KOZBR9UMMAX443CP","","0","","","","00","X","0","0","",""]
[null,null,null,null,null,null,null,null,null,null,null,null,null,null,null,null,null,null,null,null,null,null,null,null,null,null,null,null,null,null,null,null,null,null,null,null,null,null,null,null,null,null,null,null,null,null,null,null,null,null,null,null,null,null,null,null,null,null,null,null,null,null,null,null,null,null,null,null,null,null,null,null,null,null,null,null,null,null,null,null,null,null,null,null,null,null,null,null,null,null,null,null,null,null,null,null,null,null,null,null,null,null,null,null,null,null,null,null,null,null,null,null,null,null,null,null,null,null,null,null,null,null,null,null,null,null,null,null,null,null,4,"DEN9GQ7MCHEV1QBZJV5IZPERD","DA4HOQG67KPR0DLLY5QJ6JHMH","","0","","","","00","X","0","0","",""]
[null,null,null,null,null,null,null,null,null,null,null,null,null,null,null,null,null,null,null,null,null,null,null,null,null,null,null,null,null,null,null,null,null,null,null,null,null,null,null,null,null,null,null,null,null,null,null,null,null,null,null,null,null,null,null,null,null,null,null,null,null,null,null,null,null,null,null,null,null,null,null,null,null,null,null,null,null,null,null,null,null,null,null,null,null,null,null,null,null,null,null,null,null,null,null,null,null,null,null,null,null,null,null,null,null,null,null,null,null,null,null,null,null,null,null,null,null,null,null,null,null,null,null,null,null,null,null,null,null,null,4,"DEN9GQ7MCHEV1QBZJV5IZPERD","DA4HQT1FQ21CBCL0CVM3F7BP5","","0","","","","00","X","0","0","",""]
[null,null,null,null,null,null,null,null,null,null,null,null,null,null,null,null,null,null,null,null,null,null,null,null,null,null,null,null,null,null,null,null,null,null,null,null,null,null,null,null,null,null,null,null,null,null,null,null,null,null,null,null,null,null,null,null,null,null,null,null,null,null,null,null,null,null,null,null,null,null,null,null,null,null,null,null,null,null,null,null,null,null,null,null,null,null,null,null,null,null,null,null,null,null,null,null,null,null,null,null,null,null,null,null,null,null,null,null,null,null,null,null,null,null,null,null,null,null,null,null,null,null,null,null,null,null,null,null,null,null,4,"DEN9GQ7MCHEV1QBZJV5IZPERD","DA4HQT1FQ223ZYWROF1PHMPYX","","0","","","","00","X","0","0","",""]
[null,null,null,null,null,null,null,null,null,null,null,null,null,null,null,null,null,null,null,null,null,null,null,null,null,null,null,null,null,null,null,null,null,null,null,null,null,null,null,null,null,null,null,null,null,null,null,null,null,null,null,null,null,null,null,null,null,null,null,null,null,null,null,null,null,null,null,null,null,null,null,null,null,null,null,null,null,null,null,null,null,null,null,null,null,null,null,null,null,null,null,null,null,null,null,null,null,null,null,null,null,null,null,null,null,null,null,null,null,null,null,null,null,null,null,null,null,null,null,null,null,null,null,null,null,null,null,null,null,null,4,"DEN9GQ7MCHEV1QBZJV5IZPERD","DA4HQT1FQ22VOL8IZYHBK248P","","0","","","","00","X","0","0","",""]
[null,null,null,null,null,null,null,null,null,null,null,null,null,null,null,null,null,null,null,null,null,null,null,null,null,null,null,null,null,null,null,null,null,null,null,null,null,null,null,null,null,null,null,null,null,null,null,null,null,null,null,null,null,null,null,null,null,null,null,null,null,null,null,null,null,null,null,null,null,null,null,null,null,null,null,null,null,null,null,null,null,null,null,null,null,null,null,null,null,null,null,null,null,null,null,null,null,null,null,null,null,null,null,null,null,null,null,null,null,null,null,null,null,null,null,null,null,null,null,null,null,null,null,null,null,null,null,null,null,null,4,"DEN9GQ7MCHEV1QBZJV5IZPERD","DA4HWYL5HGT0050M6CGMF31MH","","0","","","","00","X","0","0","",""]
[null,null,null,null,null,null,null,null,null,null,null,null,null,null,null,null,null,null,null,null,null,null,null,null,null,null,null,null,null,null,null,null,null,null,null,null,null,null,null,null,null,null,null,null,null,null,null,null,null,null,null,null,null,null,null,null,null,null,null,null,null,null,null,null,null,null,null,null,null,null,null,null,null,null,null,null,null,null,null,null,null,null,null,null,null,null,null,null,null,null,null,null,null,null,null,null,null,null,null,null,null,null,null,null,null,null,null,null,null,null,null,null,null,null,null,null,null,null,null,null,null,null,null,null,null,null,null,null,null,null,4,"DEN9GQ7MCHEV1QBZJV5IZPERD","DA4IKULODJ1MZ318V3RCW3FND","","0","","","","00","X","0","0","",""]
[null,null,null,null,null,null,null,null,null,null,null,null,null,null,null,null,null,null,null,null,null,null,null,null,null,null,null,null,null,null,null,null,null,null,null,null,null,null,null,null,null,null,null,null,null,null,null,null,null,null,null,null,null,null,null,null,null,null,null,null,null,null,null,null,null,null,null,null,null,null,null,null,null,null,null,null,null,null,null,null,null,null,null,null,null,null,null,null,null,null,null,null,null,null,null,null,null,null,null,null,null,null,null,null,null,null,null,null,null,null,null,null,null,null,null,null,null,null,null,null,null,null,null,null,null,null,null,null,null,null,4,"DEN9GQ7MCHEV1QBZJV5IZPERD","DA4IKULODJ2ENPD06N6YYITX5","","0","","","","00","X","0","0","",""]

{"sheet":"SAPBEXfiltersDefunct","index":1,"n_rows":13,"n_cols":237,"rows_kept":13,"cut":false,"hidden":true,"merged":[]}
[]
[null,null,null,null,null,null,null,null,null,null,null,null,null,null,null,null,null,null,null,null,null,null,null,null,null,null,null,null,null,null,null,null,null,null,null,null,null,null,null,null,null,null,null,null,null,null,null,null,null,null,null,null,null,null,null,null,null,null,null,null,null,null,null,null,null,null,null,null,null,null,null,null,null,null,null,null,null,null,null,null,null,null,null,null,null,null,null,null,null,null,null,null,null,null,null,null,null,null,null,null,0,null,null,null,null,null,null,null,null,null,null,null,null,null,null,null,null,null,null,null,null,null,null,null,null,null,null,null,null,null,null,null,null,null,null,null,null,null,null,null,null,null,null,null,null,null,null,null,null,null,null,null,null,null,null,7,null,null,null,null,null,null,null,null,null,null,null,null,null,null,null,null,null,null,null,null,null,null,null,null,null,null,null,null,null,null,null,null,null,null,null,null,null,null,null,null,null,null,null,null,null,null,null,null,null,10]
[null,null,null,null,null,null,null,null,null,null,null,null,null,null,null,null,null,null,null,null,null,null,null,null,null,null,null,null,null,null,null,null,null,null,null,null,null,null,null,null,null,null,null,null,null,null,null,null,null,null,null,null,null,null,null,null,null,null,null,null,null,null,null,null,null,null,null,null,null,null,null,null,null,null,null,null,null,null,null,null,null,null,null,null,null,null,null,null,null,null,null,null,null,null,null,null,null,null,null,null,8,null,null,null,null,null,null,null,null,null,null,null,null,null,null,null,null,null,null,null,null,null,null,null,null,null,null,null,null,null,null,null,null,null,null,null,null,null,null,null,null,null,null,null,null,null,null,null,null,null,null,null,null,null,null,12,null,null,null,null,null,null,null,null,null,null,null,null,null,null,null,null,null,null,null,null,null,null,null,null,null,null,null,null,null,null,null,null,null,null,null,null,null,null,null,null,null,null,null,null,null,null,null,null,null,31]
[null,null,null,null,null,null,null,null,null,null,null,null,null,null,null,null,null,null,null,null,null,null,null,null,null,null,null,null,null,null,null,null,null,null,null,null,null,null,null,null,null,null,null,null,null,null,null,null,null,null,null,null,null,null,null,null,null,null,null,null,null,null,null,null,null,null,null,null,null,null,null,null,null,null,null,null,null,null,null,null,null,null,null,null,null,null,null,null,null,null,null,null,null,null,null,null,null,null,null,null,null,null,null,null,null,null,null,null,null,null,null,null,null,null,null,null,null,null,null,null,null,null,null,null,null,null,null,null,null,null,null,null,null,null,null,null,null,null,null,null,null,null,null,null,null,null,null,null,null,null,null,null,null,null,null,11,"DKYHEQSC50X8Z6KCZHDLPIWHL","","X","3","0","ZPERSAREA","","","0","","","",null,null,null,null,null,null,null,null,null,null,null,null,null,null,null,null,null,null,null,null,null,null,null,null,null,null,null,null,null,null,null,null,null,null,null,null,null,11,"DKYHEQSC50X8Z6KCZHDLPIWHL","","","0001","0001","0","0000","I","EQ","0091","","0091","","1","","0","","Social Work","","","","","0","","","0","","0","","","00"]
[null,null,null,null,null,null,null,null,null,null,null,null,null,null,null,null,null,null,null,null,null,null,null,null,null,null,null,null,null,null,null,null,null,null,null,null,null,null,null,null,null,null,null,null,null,null,null,null,null,null,null,null,null,null,null,null,null,null,null,null,null,null,null,null,null,null,null,null,null,null,null,null,null,null,null,null,null,null,null,null,null,null,null,null,null,null,null,null,null,null,null,null,null,null,null,null,null,null,null,null,null,null,null,null,null,null,null,null,null,null,null,null,null,null,null,null,null,null,null,null,null,null,null,null,null,null,null,null,null,null,null,null,null,null,null,null,null,null,null,null,null,null,null,null,null,null,null,null,null,null,null,null,null,null,null,10,"DKYHES8WD05ZV0W3S49K28IK9","","X","3","0","ZPERSAREA","","","0","","","",null,null,null,null,null,null,null,null,null,null,null,null,null,null,null,null,null,null,null,null,null,null,null,null,null,null,null,null,null,null,null,null,null,null,null,null,null,10,"DKYHES8WD05ZV0W3S49K28IK9","","","0001","0001","0","0000","I","EQ","0081","","0081","","1","","0","","Land and Environmental","","","","","0","","","0","","0","","","00"]
[null,null,null,null,null,null,null,null,null,null,null,null,null,null,null,null,null,null,null,null,null,null,null,null,null,null,null,null,null,null,null,null,null,null,null,null,null,null,null,null,null,null,null,null,null,null,null,null,null,null,null,null,null,null,null,null,null,null,null,null,null,null,null,null,null,null,null,null,null,null,null,null,null,null,null,null,null,null,null,null,null,null,null,null,null,null,null,null,null,null,null,null,null,null,null,null,null,null,null,null,null,null,null,null,null,null,null,null,null,null,null,null,null,null,null,null,null,null,null,null,null,null,null,null,null,null,null,null,null,null,null,null,null,null,null,null,null,null,null,null,null,null,null,null,null,null,null,null,null,null,null,null,null,null,null,9,"DKYHES8WD0M581R1IGDFH7U9L","","X","3","0","ZPERSAREA","","","0","","","",null,null,null,null,null,null,null,null,null,null,null,null,null,null,null,null,null,null,null,null,null,null,null,null,null,null,null,null,null,null,null,null,null,null,null,null,null,9,"DKYHES8WD0M581R1IGDFH7U9L","","","0001","0001","0","0000","I","EQ","0071","","0071","","1","","0","","Financial","","","","","0","","","0","","0","","","00"]
[null,null,null,null,null,null,null,null,null,null,null,null,null,null,null,null,null,null,null,null,null,null,null,null,null,null,null,null,null,null,null,null,null,null,null,null,null,null,null,null,null,null,null,null,null,null,null,null,null,null,null,null,null,null,null,null,null,null,null,null,null,null,null,null,null,null,null,null,null,null,null,null,null,null,null,null,null,null,null,null,null,null,null,null,null,null,null,null,null,null,null,null,null,null,null,null,null,null,null,null,null,null,null,null,null,null,null,null,null,null,null,null,null,null,null,null,null,null,null,null,null,null,null,null,null,null,null,null,null,null,null,null,null,null,null,null,null,null,null,null,null,null,null,null,null,null,null,null,null,null,null,null,null,null,null,8,"DKYHETKDMHD18FU4JR7J8PPMH","","X","3","0","ZPERSAREA","","","0","","","",null,null,null,null,null,null,null,null,null,null,null,null,null,null,null,null,null,null,null,null,null,null,null,null,null,null,null,null,null,null,null,null,null,null,null,null,null,8,"DKYHETKDMHD18FU4JR7J8PPMH","","","0001","0001","0","0000","I","EQ","0051","","0051","","1","","0","","Education","","","","","0","","","0","","0","","","00"]
[null,null,null,null,null,null,null,null,null,null,null,null,null,null,null,null,null,null,null,null,null,null,null,null,null,null,null,null,null,null,null,null,null,null,null,null,null,null,null,null,null,null,null,null,null,null,null,null,null,null,null,null,null,null,null,null,null,null,null,null,null,null,null,null,null,null,null,null,null,null,null,null,null,null,null,null,null,null,null,null,null,null,null,null,null,null,null,null,null,null,null,null,null,null,null,null,null,null,null,null,null,null,null,null,null,null,null,null,null,null,null,null,null,null,null,null,null,null,null,null,null,null,null,null,null,null,null,null,null,null,null,null,null,null,null,null,null,null,null,null,null,null,null,null,null,null,null,null,null,null,null,null,null,null,null,7,"DKYHETKDMHT6LGP2A3BENP1BT","","X","3","0","ZPERSAREA","","","0","","","",null,null,null,null,null,null,null,null,null,null,null,null,null,null,null,null,null,null,null,null,null,null,null,null,null,null,null,null,null,null,null,null,null,null,null,null,null,7,"DKYHETKDMHT6LGP2A3BENP1BT","","","0001","0001","0","0000","I","EQ","0031","","0031","","1","","0","","Development and Regeneration","","","","","0","","","0","","0","","","00"]
[null,null,null,null,null,null,null,null,null,null,null,null,null,null,null,null,null,null,null,null,null,null,null,null,null,null,null,null,null,null,null,null,null,null,null,null,null,null,null,null,null,null,null,null,null,null,null,null,null,null,null,null,null,null,null,null,null,null,null,null,null,null,null,null,null,null,null,null,null,null,null,null,null,null,null,null,null,null,null,null,null,null,null,null,null,null,null,null,null,null,null,null,null,null,null,null,null,null,null,null,null,null,null,null,null,null,null,null,null,null,null,null,null,null,null,null,null,null,null,null,null,null,null,null,null,null,null,null,null,null,null,null,null,null,null,null,null,null,null,null,null,null,null,null,null,null,null,null,null,null,null,null,null,null,null,6,"DKYHEUWHYOW8XZ7VQTZAZCF09","","X","3","0","0ORGUNIT","","","0","","","",null,null,null,null,null,null,null,null,null,null,null,null,null,null,null,null,null,null,null,null,null,null,null,null,null,null,null,null,null,null,null,null,null,null,null,null,null,6,"DKYHEUWHYOW8XZ7VQTZAZCF09","","","0001","0001","0","0000","I","EQ","50004880","0ORGUNIT","50004880","","1","","4","","Corporate Services","","","","ORGEH","1","","000","1","20150930","1","","","00"]
[null,null,null,null,null,null,null,null,null,null,null,null,null,null,null,null,null,null,null,null,null,null,null,null,null,null,null,null,null,null,null,null,null,null,null,null,null,null,null,null,null,null,null,null,null,null,null,null,null,null,null,null,null,null,null,null,null,null,null,null,null,null,null,null,null,null,null,null,null,null,null,null,null,null,null,null,null,null,null,null,null,null,null,null,null,null,null,null,null,null,null,null,null,null,null,null,null,null,null,null,null,null,null,null,null,null,null,null,null,null,null,null,null,null,null,null,null,null,null,null,null,null,null,null,null,null,null,null,null,null,null,null,null,null,null,null,null,null,null,null,null,null,null,null,null,null,null,null,null,null,null,null,null,null,null,5,"DKYHEUWHYPCEB02TH636EBQPL","","X","3","0","0ORGUNIT","","","0","","","",null,null,null,null,null,null,null,null,null,null,null,null,null,null,null,null,null,null,null,null,null,null,null,null,null,null,null,null,null,null,null,null,null,null,null,null,null,5,"DKYHEUWHYPCEB02TH636EBQPL","","","0001","0001","0","0000","I","EQ","50004878","","50004878","","1","","0","","Chief Executive Srv","","","","","0","","","0","","0","","","00"]
[null,null,null,null,null,null,null,null,null,null,null,null,null,null,null,null,null,null,null,null,null,null,null,null,null,null,null,null,null,null,null,null,null,null,null,null,null,null,null,null,null,null,null,null,null,null,null,null,null,null,null,null,null,null,null,null,null,null,null,null,null,null,null,null,null,null,null,null,null,null,null,null,null,null,null,null,null,null,null,null,null,null,null,null,null,null,null,null,null,null,null,null,null,null,null,null,null,null,null,null,null,null,null,null,null,null,null,null,null,null,null,null,null,null,null,null,null,null,null,null,null,null,null,null,null,null,null,null,null,null,null,null,null,null,null,null,null,null,null,null,null,null,null,null,null,null,null,null,null,null,null,null,null,null,null,null,null,null,null,null,null,null,null,null,null,null,null,null,null,null,null,null,null,null,null,null,null,null,null,null,null,null,null,null,null,null,null,null,null,null,null,null,null,null,null,null,null,null,null,null,null,null,null,null,null,5,"DKYHEUWHYPCEB02TH636EBQPL","","","0002","0001","0","0000","I","EQ","50004879","0ORGUNIT","50004879","","1","","4","","Chief Executive Organisation Structure","","","","ORGEH","1","","000","1","20150930","1","","","00"]
[null,null,null,null,null,null,null,null,null,null,null,null,null,null,null,null,null,null,null,null,null,null,null,null,null,null,null,null,null,null,null,null,null,null,null,null,null,null,null,null,null,null,null,null,null,null,null,null,null,null,null,null,null,null,null,null,null,null,null,null,null,null,null,null,null,null,null,null,null,null,null,null,null,null,null,null,null,null,null,null,null,null,null,null,null,null,null,null,null,null,null,null,null,null,null,null,null,null,null,null,null,null,null,null,null,null,null,null,null,null,null,null,null,null,null,null,null,null,null,null,null,null,null,null,null,null,null,null,null,null,null,null,null,null,null,null,null,null,null,null,null,null,null,null,null,null,null,null,null,null,null,null,null,null,null,null,null,null,null,null,null,null,null,null,null,null,null,null,null,null,null,null,null,null,null,null,null,null,null,null,null,null,null,null,null,null,null,null,null,null,null,null,null,null,null,null,null,null,null,null,null,null,null,null,null,5,"DKYHEUWHYPCEB02TH636EBQPL","","","0003","0001","0","0000","I","EQ","50004939","0ORGUNIT","50004939","","1","","4","","Communication & Organisation Development","","","","ORGEH","1","","000","1","20150930","1","","","00"]
[null,null,null,null,null,null,null,null,null,null,null,null,null,null,null,null,null,null,null,null,null,null,null,null,null,null,null,null,null,null,null,null,null,null,null,null,null,null,null,null,null,null,null,null,null,null,null,null,null,null,null,null,null,null,null,null,null,null,null,null,null,null,null,null,null,null,null,null,null,null,null,null,null,null,null,null,null,null,null,null,null,null,null,null,null,null,null,null,null,null,null,null,null,null,null,null,null,null,null,null,null,null,null,null,null,null,null,null,null,null,null,null,null,null,null,null,null,null,null,null,null,null,null,null,null,null,null,null,null,null,null,null,null,null,null,null,null,null,null,null,null,null,null,null,null,null,null,null,null,null,null,null,null,null,null,null,null,null,null,null,null,null,null,null,null,null,null,null,null,null,null,null,null,null,null,null,null,null,null,null,null,null,null,null,null,null,null,null,null,null,null,null,null,null,null,null,null,null,null,null,null,null,null,null,null,5,"DKYHEUWHYPCEB02TH636EBQPL","","","0004","0001","0","0000","I","EQ","50258124","0ORGUNIT","50258124","","1","","4","","CE Corporate Policy","","","","ORGEH","1","","000","1","20150930","1","","","00"]

{"sheet":"BExRepositorySheet","index":2,"n_rows":1,"n_cols":1,"rows_kept":1,"cut":false,"hidden":true,"merged":[]}
[7]

{"sheet":"Summary","index":3,"n_rows":31,"n_cols":11,"rows_kept":31,"cut":false,"hidden":false,"merged":[[2,0,2,2],[6,1,10,10],[12,0,13,0],[12,1,13,2],[12,4,13,5],[12,7,13,8],[12,10,13,10]]}
["WORKFORCE PROFILE BY ETHNICITY"]
["GLASGOW LIFE"]
["31 March 2019"]
[]
[]
[]
[null,"The table below has been simplified to provide a summary of the Company's workforce by ethnicity.  The detailed information to support this is provided on Page 2"]
[]
[]
[]
[]
[]
[null,"White Employees",null,null,"BEM Employees",null,null,"Non Disclosed Employees",null,null,"Total Workforce"]
[]
["GRADE & ETHNICITY","Number","%",null,"Number","%",null,"Number","%",null,"Number"]
[]
["Grade 1-4 Total",{"$f":"[1]Template!H7","v":1278},{"$f":"B17/K17","v":0.77500000000000002},null,{"$f":"[1]Template!AB7","v":35},{"$f":"E17/K17","v":2.1000000000000001E-2},null,{"$f":"[1]Template!AD7","v":337},{"$f":"H17/K17","v":0.20399999999999999},null,{"$f":"[1]Template!AJ7","v":1650}]
[null," ",null,null," ",null,null," ",null,null," "]
["Grade 5-7 Total",{"$f":"[1]Template!H11","v":656},{"$f":"B19/K19","v":0.83399999999999996},null,{"$f":"[1]Template!AB11","v":19},{"$f":"E19/K19","v":2.4E-2},null,{"$f":"[1]Template!AD11","v":112},{"$f":"H19/K19","v":0.14199999999999999},null,{"$f":"[1]Template!AJ11","v":787}]
[null,null," ",null,null," ",null,null," "]
["Grade 8 Total",{"$f":"[1]Template!H15","v":47},{"$f":"B21/K21","v":0.92200000000000004},null,{"$f":"[1]Template!AB15","v":0},{"$f":"E21/K21","v":0},null,{"$f":"[1]Template!AD15","v":4},{"$f":"H21/K21","v":7.8E-2},null,{"$f":"[1]Template!AJ15","v":51}]
[null,null," ",null,null," ",null,null," "]
["Grade 9-15 Total",{"$f":"[1]Template!H23+[1]Template!H27","v":27},{"$f":"B23/K23","v":0.871},null,{"$f":"[1]Template!Z23+[1]Template!Z27","v":0},{"$f":"E23/K23","v":0},null,{"$f":"[1]Template!AD23+[1]Template!AD27","v":4},{"$f":"H23/K23","v":0.129},null,{"$f":"[1]Template!AJ23+[1]Template!AJ27","v":31}]
[]
["Other Non Pay & Grading Structure Total",{"$f":"[1]Template!H31","v":9},{"$f":"B25/K25","v":0.16700000000000001},null,{"$f":"[1]Template!AB31","v":0},{"$f":"E25/K25","v":0},null,{"$f":"[1]Template!AD31","v":45},{"$f":"H25/K25","v":0.83299999999999996},null,{"$f":"[1]Template!AJ31","v":54}]
[]
["Total Workforce F/T",{"$f":"[1]Template!H33","v":1321},{"$f":"B27/K27","v":0.79200000000000004},null,{"$f":"[1]Template!AB33","v":27},{"$f":"E27/K27","v":1.6E-2},null,{"$f":"[1]Template!AD33","v":319},{"$f":"H27/K27","v":0.191},null,{"$f":"[1]Template!AJ33","v":1667}]
[]
["Total Workforce P/T",{"$f":"[1]Template!H35","v":696},{"$f":"B29/K29","v":0.76800000000000002},null,{"$f":"[1]Template!AB35","v":27},{"$f":"E29/K29","v":0.03},null,{"$f":"[1]Template!AD35","v":183},{"$f":"H29/K29","v":0.20200000000000001},null,{"$f":"[1]Template!AJ35","v":906}]
[]
["Total Workforce",{"$f":"[1]Template!H37","v":2017},{"$f":"B31/K31","v":0.78400000000000003},null,{"$f":"[1]Template!AB37","v":54},{"$f":"E31/K31","v":2.1000000000000001E-2},null,{"$f":"[1]Template!AD37","v":502},{"$f":"H31/K31","v":0.19500000000000001},null,{"$f":"[1]Template!AJ37","v":2573}]

{"sheet":"Breakdown","index":4,"n_rows":37,"n_cols":36,"rows_kept":37,"cut":false,"hidden":false,"merged":[[0,0,1,0],[0,27,1,27],[0,31,1,33],[0,1,1,7],[0,9,1,9],[0,11,1,11],[0,13,1,18],[0,20,1,25],[0,10,1,10]]}
[null,"        TOTAL WHITE",null,null,null,null,null,null,null,"MIXED","ARAB","OTHER ETHNIC",null,"             ASIAN",null,null,null,null,null,null,"         BLACK",null,null,null,null,null,null,"TOTAL BEM",null,null,null,"TOTAL %"]
[]
["GLASGIW LIFE BY GRADE & ETHNICITY","White Scottish","Other British","Irish","Gypsy / Traveller","Polish","Other White Ethnic","White Total",null,"Mixed or Multiple Ethnic Groups","Arab, Arab Scottish or Arab British","Total Other Ethnic Background",null,"Pakistani","Indian","Bangladeshi","Chinese","Other Asian Background","Asian Total",null,"African","Other African Background","Caribbean","Black","Other Caribbean / Black Background","Black Total",null,"Total Black & Ethnic Minority Employees",null,"Total Non Disclosed",null,"Total White Employees %","Total Black & Ethnic Minority Employees %","Total Non Disclosed %",null,"Total Workforce"]
[]
["Grade 1-4 F/T",{"$f":"Query!B23","v":661},{"$f":"Query!C23","v":19},{"$f":"Query!D23","v":3},{"$f":"Query!E23","v":0},{"$f":"Query!F23","v":1},{"$f":"Query!G23","v":12},{"$f":"SUM(B5:G5)","v":696},null,{"$f":"Query!H23","v":1},{"$f":"Query!I23","v":0},{"$f":"Query!J23","v":2},null,{"$f":"Query!K23","v":2},{"$f":"Query!L23","v":1},{"$f":"Query!M23","v":0},{"$f":"Query!N23","v":4},{"$f":"Query!O23","v":1},{"$f":"SUM(N5:R5)","v":8},null,{"$f":"Query!P23","v":2},{"$f":"Query!Q23","v":1},{"$f":"Query!R23","v":0},{"$f":"Query!S23","v":0},{"$f":"Query!T23","v":0},{"$f":"SUM(U5:Y5)","v":3},null,{"$f":"SUM(J5,K5,L5,S5,Z5)","v":14},null,{"$f":"Query!U23","v":191},null,{"$f":"IF(AJ5=0,0,SUM(H5/AJ5))","v":0.77200000000000002},{"$f":"IF(AJ5=0,0,SUM(AB5/AJ5))","v":1.6E-2},{"$f":"IF(AJ5=0,0,SUM(AD5/AJ5))","v":0.21199999999999999},null,{"$f":"SUM(H5,AB5,AD5)","v":901}]
["Grade 1-4 P/T",{"$f":"Query!B24","v":533},{"$f":"Query!C24","v":29},{"$f":"Query!D24","v":6},{"$f":"Query!E24","v":0},{"$f":"Query!F24","v":5},{"$f":"Query!G24","v":9},{"$f":"SUM(B6:G6)","v":582},null,{"$f":"Query!H24","v":3},{"$f":"Query!I24","v":0},{"$f":"Query!J24","v":1},null,{"$f":"Query!K24","v":6},{"$f":"Query!L24","v":4},{"$f":"Query!M24","v":0},{"$f":"Query!N24","v":3},{"$f":"Query!O24","v":2},{"$f":"SUM(N6:R6)","v":15},null,{"$f":"Query!P24","v":1},{"$f":"Query!Q24","v":1},{"$f":"Query!R24","v":0},{"$f":"Query!S24","v":0},{"$f":"Query!T24","v":0},{"$f":"SUM(U6:Y6)","v":2},null,{"$f":"SUM(J6,K6,L6,S6,Z6)","v":21},null,{"$f":"Query!U24","v":146},null,{"$f":"IF(AJ6=0,0,SUM(H6/AJ6))","v":0.77700000000000002},{"$f":"IF(AJ6=0,0,SUM(AB6/AJ6))","v":2.8000000000000001E-2},{"$f":"IF(AJ6=0,0,SUM(AD6/AJ6))","v":0.19500000000000001},null,{"$f":"SUM(H6,AB6,AD6)","v":749}]
["Grade 1-4 Total",{"$f":"SUM(B5:B6)","v":1194},48,9,0,6,21,1278,null,{"$f":"SUM(J5:J6)","v":4},{"$f":"SUM(K5:K6)","v":0},{"$f":"SUM(L5:L6)","v":3},null,{"$f":"SUM(N5:N6)","v":8},5,0,7,3,23,null,{"$f":"SUM(U5:U6)","v":3},2,0,0,0,5,null,{"$f":"SUM(J7,K7,L7,S7,Z7)","v":35},null,{"$f":"SUM(AD5:AD6)","v":337},null,{"$f":"IF(AJ7=0,0,SUM(H7/AJ7))","v":0.77500000000000002},{"$f":"IF(AJ7=0,0,SUM(AB7/AJ7))","v":2.1000000000000001E-2},{"$f":"IF(AJ7=0,0,SUM(AD7/AJ7))","v":0.20399999999999999},null,{"$f":"SUM(H7,AB7,AD7)","v":1650}]
[]
["Grade 5-7 F/T",{"$f":"Query!B26","v":481},{"$f":"Query!C26","v":35},{"$f":"Query!D26","v":7},{"$f":"Query!E26","v":0},{"$f":"Query!F26","v":3},{"$f":"Query!G26","v":20},{"$f":"SUM(B9:G9)","v":546},null,{"$f":"Query!H26","v":2},{"$f":"Query!I26","v":1},{"$f":"Query!J26","v":1},null,{"$f":"Query!K26","v":2},{"$f":"Query!L26","v":3},{"$f":"Query!M26","v":0},{"$f":"Query!N26","v":2},{"$f":"Query!O26","v":2},{"$f":"SUM(N9:R9)","v":9},null,{"$f":"Query!P26","v":0},{"$f":"Query!Q26","v":0},{"$f":"Query!R26","v":0},{"$f":"Query!S26","v":0},{"$f":"Query!T26","v":0},{"$f":"SUM(U9:Y9)","v":0},null,{"$f":"SUM(J9,K9,L9,S9,Z9)","v":13},null,{"$f":"Query!U26","v":97},null,{"$f":"IF(AJ9=0,0,SUM(H9/AJ9))","v":0.83199999999999996},{"$f":"IF(AJ9=0,0,SUM(AB9/AJ9))","v":0.02},{"$f":"IF(AJ9=0,0,SUM(AD9/AJ9))","v":0.14799999999999999},null,{"$f":"SUM(H9,AB9,AD9)","v":656}]
["Grade 5-7 P/T",{"$f":"Query!B27","v":98},{"$f":"Query!C27","v":8},{"$f":"Query!D27","v":0},{"$f":"Query!E27","v":0},{"$f":"Query!F27","v":0},{"$f":"Query!G27","v":4},{"$f":"SUM(B10:G10)","v":110},null,{"$f":"Query!H27","v":3},{"$f":"Query!I27","v":0},{"$f":"Query!J27","v":1},null,{"$f":"Query!K27","v":0},{"$f":"Query!L27","v":0},{"$f":"Query!M27","v":0},{"$f":"Query!N27","v":0},{"$f":"Query!O27","v":1},{"$f":"SUM(N10:R10)","v":1},null,{"$f":"Query!P27","v":0},{"$f":"Query!Q27","v":0},{"$f":"Query!R27","v":0},{"$f":"Query!S27","v":1},{"$f":"Query!T27","v":0},{"$f":"SUM(U10:Y10)","v":1},null,{"$f":"SUM(J10,K10,L10,S10,Z10)","v":6},null,{"$f":"Query!U27","v":15},null,{"$f":"IF(AJ10=0,0,SUM(H10/AJ10))","v":0.84},{"$f":"IF(AJ10=0,0,SUM(AB10/AJ10))","v":4.5999999999999999E-2},{"$f":"IF(AJ10=0,0,SUM(AD10/AJ10))","v":0.115},null,{"$f":"SUM(H10,AB10,AD10)","v":131}]
["Grade 5-7 Total",{"$f":"SUM(B9:B10)","v":579},43,7,0,3,24,656,null,{"$f":"SUM(J9:J10)","v":5},{"$f":"SUM(K9:K10)","v":1},{"$f":"SUM(L9:L10)","v":2},null,{"$f":"SUM(N9:N10)","v":2},3,0,2,3,10,null,{"$f":"SUM(U9:U10)","v":0},0,0,1,0,1,null,{"$f":"SUM(J11,K11,L11,S11,Z11)","v":19},null,{"$f":"SUM(AD9:AD10)","v":112},null,{"$f":"IF(AJ11=0,0,SUM(H11/AJ11))","v":0.83399999999999996},{"$f":"IF(AJ11=0,0,SUM(AB11/AJ11))","v":2.4E-2},{"$f":"IF(AJ11=0,0,SUM(AD11/AJ11))","v":0.14199999999999999},null,{"$f":"SUM(H11,AB11,AD11)","v":787}]
[]
["Grade 8 F/T",{"$f":"Query!B29","v":38},{"$f":"Query!C29","v":4},{"$f":"Query!D29","v":2},{"$f":"Query!E29","v":0},{"$f":"Query!F29","v":0},{"$f":"Query!G29","v":1},{"$f":"SUM(B13:G13)","v":45},null,{"$f":"Query!H29","v":0},{"$f":"Query!I29","v":0},{"$f":"Query!J29","v":0},null,{"$f":"Query!K29","v":0},{"$f":"Query!L29","v":0},{"$f":"Query!M29","v":0},{"$f":"Query!N29","v":0},{"$f":"Query!O29","v":0},{"$f":"SUM(N13:R13)","v":0},null,{"$f":"Query!P29","v":0},{"$f":"Query!Q29","v":0},{"$f":"Query!R29","v":0},{"$f":"Query!S29","v":0},{"$f":"Query!T29","v":0},{"$f":"SUM(U13:Y13)","v":0},null,{"$f":"SUM(J13,K13,L13,S13,Z13)","v":0},null,{"$f":"Query!U29","v":3},null,{"$f":"IF(AJ13=0,0,SUM(H13/AJ13))","v":0.93799999999999994},{"$f":"IF(AJ13=0,0,SUM(AB13/AJ13))","v":0},{"$f":"IF(AJ13=0,0,SUM(AD13/AJ13))","v":6.3E-2},null,{"$f":"SUM(H13,AB13,AD13)","v":48}]
["Grade 8 P/T",{"$f":"Query!B30","v":2},{"$f":"Query!C30","v":0},{"$f":"Query!D30","v":0},{"$f":"Query!E30","v":0},{"$f":"Query!F30","v":0},{"$f":"Query!G30","v":0},{"$f":"SUM(B14:G14)","v":2},null,{"$f":"Query!H30","v":0},{"$f":"Query!I30","v":0},{"$f":"Query!J30","v":0},null,{"$f":"Query!K30","v":0},{"$f":"Query!L30","v":0},{"$f":"Query!M30","v":0},{"$f":"Query!N30","v":0},{"$f":"Query!O30","v":0},{"$f":"SUM(N14:R14)","v":0},null,{"$f":"Query!P30","v":0},{"$f":"Query!Q30","v":0},{"$f":"Query!R30","v":0},{"$f":"Query!S30","v":0},{"$f":"Query!T30","v":0},{"$f":"SUM(U14:Y14)","v":0},null,{"$f":"SUM(J14,K14,L14,S14,Z14)","v":0},null,{"$f":"Query!U30","v":1},null,{"$f":"IF(AJ14=0,0,SUM(H14/AJ14))","v":0.66700000000000004},{"$f":"IF(AJ14=0,0,SUM(AB14/AJ14))","v":0},{"$f":"IF(AJ14=0,0,SUM(AD14/AJ14))","v":0.33300000000000002},null,{"$f":"SUM(H14,AB14,AD14)","v":3}]
["Grade 8 Total",{"$f":"SUM(B13:B14)","v":40},4,2,0,0,1,47,null,{"$f":"SUM(J13:J14)","v":0},{"$f":"SUM(K13:K14)","v":0},{"$f":"SUM(L13:L14)","v":0},null,{"$f":"SUM(N13:N14)","v":0},0,0,0,0,0,null,{"$f":"SUM(U13:U14)","v":0},0,0,0,0,0,null,{"$f":"SUM(J15,K15,L15,S15,Z15)","v":0},null,{"$f":"SUM(AD13:AD14)","v":4},null,{"$f":"IF(AJ15=0,0,SUM(H15/AJ15))","v":0.92200000000000004},{"$f":"IF(AJ15=0,0,SUM(AB15/AJ15))","v":0},{"$f":"IF(AJ15=0,0,SUM(AD15/AJ15))","v":7.8E-2},null,{"$f":"SUM(H15,AB15,AD15)","v":51}]
[]
["Grade ACZ 8 F/T",{"$f":"Query!B32","v":0},{"$f":"Query!C32","v":0},{"$f":"Query!D32","v":0},{"$f":"Query!E32","v":0},{"$f":"Query!F32","v":0},{"$f":"Query!G32","v":0},{"$f":"SUM(B17:G17)","v":0},null,{"$f":"Query!H32","v":0},{"$f":"Query!I32","v":0},{"$f":"Query!J32","v":0},null,{"$f":"Query!K32","v":0},{"$f":"Query!L32","v":0},{"$f":"Query!M32","v":0},{"$f":"Query!N32","v":0},{"$f":"Query!O32","v":0},{"$f":"SUM(N17:R17)","v":0},null,{"$f":"Query!P32","v":0},{"$f":"Query!Q32","v":0},{"$f":"Query!R32","v":0},{"$f":"Query!S32","v":0},{"$f":"Query!T32","v":0},{"$f":"SUM(U17:Y17)","v":0},null,{"$f":"SUM(J17,K17,L17,S17,Z17)","v":0},null,{"$f":"Query!U32","v":0},null,{"$f":"IF(AJ17=0,0,SUM(H17/AJ17))","v":0},{"$f":"IF(AJ17=0,0,SUM(AB17/AJ17))","v":0},{"$f":"IF(AJ17=0,0,SUM(AD17/AJ17))","v":0},null,{"$f":"SUM(H17,AB17,AD17)","v":0}]
["Grade ACZ 8 P/T",{"$f":"Query!B33","v":0},{"$f":"Query!C33","v":0},{"$f":"Query!D33","v":0},{"$f":"Query!E33","v":0},{"$f":"Query!F33","v":0},{"$f":"Query!G33","v":0},{"$f":"SUM(B18:G18)","v":0},null,{"$f":"Query!H33","v":0},{"$f":"Query!I33","v":0},{"$f":"Query!J33","v":0},null,{"$f":"Query!K33","v":0},{"$f":"Query!L33","v":0},{"$f":"Query!M33","v":0},{"$f":"Query!N33","v":0},{"$f":"Query!O33","v":0},{"$f":"SUM(N18:R18)","v":0},null,{"$f":"Query!P33","v":0},{"$f":"Query!Q33","v":0},{"$f":"Query!R33","v":0},{"$f":"Query!S33","v":0},{"$f":"Query!T33","v":0},{"$f":"SUM(U18:Y18)","v":0},null,{"$f":"SUM(J18,K18,L18,S18,Z18)","v":0},null,{"$f":"Query!U33","v":0},null,{"$f":"IF(AJ18=0,0,SUM(H18/AJ18))","v":0},{"$f":"IF(AJ18=0,0,SUM(AB18/AJ18))","v":0},{"$f":"IF(AJ18=0,0,SUM(AD18/AJ18))","v":0},null,{"$f":"SUM(H18,AB18,AD18)","v":0}]
["Grade ACZ 8 Total",{"$f":"SUM(B17:B18)","v":0},0,0,0,0,0,0,null,{"$f":"SUM(J17:J18)","v":0},{"$f":"SUM(K17:K18)","v":0},{"$f":"SUM(L17:L18)","v":0},null,{"$f":"SUM(N17:N18)","v":0},0,0,0,0,0,null,{"$f":"SUM(U17:U18)","v":0},0,0,0,0,0,null,{"$f":"SUM(J19,K19,L19,S19,Z19)","v":0},null,{"$f":"SUM(AD17:AD18)","v":0},null,{"$f":"IF(AJ19=0,0,SUM(H19/AJ19))","v":0},{"$f":"IF(AJ19=0,0,SUM(AB19/AJ19))","v":0},{"$f":"IF(AJ19=0,0,SUM(AD19/AJ19))","v":0},null,{"$f":"SUM(H19,AB19,AD19)","v":0}]
[]
["Grade 9-15 F/T",{"$f":"Query!B35","v":22},{"$f":"Query!C35","v":3},{"$f":"Query!D35","v":1},{"$f":"Query!E35","v":0},{"$f":"Query!F35","v":0},{"$f":"Query!G35","v":1},{"$f":"SUM(B21:G21)","v":27},null,{"$f":"Query!H35","v":0},{"$f":"Query!I35","v":0},{"$f":"Query!J35","v":0},null,{"$f":"Query!K35","v":0},{"$f":"Query!L35","v":0},{"$f":"Query!M35","v":0},{"$f":"Query!N35","v":0},{"$f":"Query!O35","v":0},{"$f":"SUM(N21:R21)","v":0},null,{"$f":"Query!P35","v":0},{"$f":"Query!Q35","v":0},{"$f":"Query!R35","v":0},{"$f":"Query!S35","v":0},{"$f":"Query!T35","v":0},{"$f":"SUM(U21:Y21)","v":0},null,{"$f":"SUM(J21,K21,L21,S21,Z21)","v":0},null,{"$f":"Query!U35","v":4},null,{"$f":"IF(AJ21=0,0,SUM(H21/AJ21))","v":0.871},{"$f":"IF(AJ21=0,0,SUM(AB21/AJ21))","v":0},{"$f":"IF(AJ21=0,0,SUM(AD21/AJ21))","v":0.129},null,{"$f":"SUM(H21,AB21,AD21)","v":31}]
["Grade 9-15 P/T",{"$f":"Query!B36","v":0},{"$f":"Query!C36","v":0},{"$f":"Query!D36","v":0},{"$f":"Query!E36","v":0},{"$f":"Query!F36","v":0},{"$f":"Query!G36","v":0},{"$f":"SUM(B22:G22)","v":0},null,{"$f":"Query!H36","v":0},{"$f":"Query!I36","v":0},{"$f":"Query!J36","v":0},null,{"$f":"Query!K36","v":0},{"$f":"Query!L36","v":0},{"$f":"Query!M36","v":0},{"$f":"Query!N36","v":0},{"$f":"Query!O36","v":0},{"$f":"SUM(N22:R22)","v":0},null,{"$f":"Query!P36","v":0},{"$f":"Query!Q36","v":0},{"$f":"Query!R36","v":0},{"$f":"Query!S36","v":0},{"$f":"Query!T36","v":0},{"$f":"SUM(U22:Y22)","v":0},null,{"$f":"SUM(J22,K22,L22,S22,Z22)","v":0},null,{"$f":"Query!U36","v":0},null,{"$f":"IF(AJ22=0,0,SUM(H22/AJ22))","v":0},{"$f":"IF(AJ22=0,0,SUM(AB22/AJ22))","v":0},{"$f":"IF(AJ22=0,0,SUM(AD22/AJ22))","v":0},null,{"$f":"SUM(H22,AB22,AD22)","v":0}]
["Grade 9-15 Total",{"$f":"SUM(B21:B22)","v":22},3,1,0,0,1,27,null,{"$f":"SUM(J21:J22)","v":0},{"$f":"SUM(K21:K22)","v":0},{"$f":"SUM(L21:L22)","v":0},null,{"$f":"SUM(N21:N22)","v":0},0,0,0,0,0,null,{"$f":"SUM(U21:U22)","v":0},0,0,0,0,0,null,{"$f":"SUM(J23,K23,L23,S23,Z23)","v":0},null,{"$f":"SUM(AD21:AD22)","v":4},null,{"$f":"IF(AJ23=0,0,SUM(H23/AJ23))","v":0.871},{"$f":"IF(AJ23=0,0,SUM(AB23/AJ23))","v":0},{"$f":"IF(AJ23=0,0,SUM(AD23/AJ23))","v":0.129},null,{"$f":"SUM(H23,AB23,AD23)","v":31}]
[]
["Grade ACZ 9-15 F/T",{"$f":"Query!B38","v":0},{"$f":"Query!C38","v":0},{"$f":"Query!D38","v":0},{"$f":"Query!E38","v":0},{"$f":"Query!F38","v":0},{"$f":"Query!G38","v":0},{"$f":"SUM(B25:G25)","v":0},null,{"$f":"Query!H38","v":0},{"$f":"Query!I38","v":0},{"$f":"Query!J38","v":0},null,{"$f":"Query!K38","v":0},{"$f":"Query!L38","v":0},{"$f":"Query!M38","v":0},{"$f":"Query!N38","v":0},{"$f":"Query!O38","v":0},{"$f":"SUM(N25:R25)","v":0},null,{"$f":"Query!P38","v":0},{"$f":"Query!Q38","v":0},{"$f":"Query!R38","v":0},{"$f":"Query!S38","v":0},{"$f":"Query!T38","v":0},{"$f":"SUM(U25:Y25)","v":0},null,{"$f":"SUM(J25,K25,L25,S25,Z25)","v":0},null,{"$f":"Query!U38","v":0},null,{"$f":"IF(AJ25=0,0,SUM(H25/AJ25))","v":0},{"$f":"IF(AJ25=0,0,SUM(AB25/AJ25))","v":0},{"$f":"IF(AJ25=0,0,SUM(AD25/AJ25))","v":0},null,{"$f":"SUM(H25,AB25,AD25)","v":0}]
["Grade ACZ 9-15 P/T",{"$f":"Query!B39","v":0},{"$f":"Query!C39","v":0},{"$f":"Query!D39","v":0},{"$f":"Query!E39","v":0},{"$f":"Query!F39","v":0},{"$f":"Query!G39","v":0},{"$f":"SUM(B26:G26)","v":0},null,{"$f":"Query!H39","v":0},{"$f":"Query!I39","v":0},{"$f":"Query!J39","v":0},null,{"$f":"Query!K39","v":0},{"$f":"Query!L39","v":0},{"$f":"Query!M39","v":0},{"$f":"Query!N39","v":0},{"$f":"Query!O39","v":0},{"$f":"SUM(N26:R26)","v":0},null,{"$f":"Query!P39","v":0},{"$f":"Query!Q39","v":0},{"$f":"Query!R39","v":0},{"$f":"Query!S39","v":0},{"$f":"Query!T39","v":0},{"$f":"SUM(U26:Y26)","v":0},null,{"$f":"SUM(J26,K26,L26,S26,Z26)","v":0},null,{"$f":"Query!U39","v":0},null,{"$f":"IF(AJ26=0,0,SUM(H26/AJ26))","v":0},{"$f":"IF(AJ26=0,0,SUM(AB26/AJ26))","v":0},{"$f":"IF(AJ26=0,0,SUM(AD26/AJ26))","v":0},null,{"$f":"SUM(H26,AB26,AD26)","v":0}]
["Grade ACZ 9-15 Total",{"$f":"SUM(B25:B26)","v":0},0,0,0,0,0,0,null,{"$f":"SUM(J25:J26)","v":0},{"$f":"SUM(K25:K26)","v":0},{"$f":"SUM(L25:L26)","v":0},null,{"$f":"SUM(N25:N26)","v":0},0,0,0,0,0,null,{"$f":"SUM(U25:U26)","v":0},0,0,0,0,0,null,{"$f":"SUM(J27,K27,L27,S27,Z27)","v":0},null,{"$f":"SUM(AD25:AD26)","v":0},null,{"$f":"IF(AJ27=0,0,SUM(H27/AJ27))","v":0},{"$f":"IF(AJ27=0,0,SUM(AB27/AJ27))","v":0},{"$f":"IF(AJ27=0,0,SUM(AD27/AJ27))","v":0},null,{"$f":"SUM(H27,AB27,AD27)","v":0}]
[]
["Other Non Pay & Grading Structure F/T",{"$f":"Query!B41","v":7},{"$f":"Query!C41","v":0},{"$f":"Query!D41","v":0},{"$f":"Query!E41","v":0},{"$f":"Query!F41","v":0},{"$f":"Query!G41","v":0},{"$f":"SUM(B29:G29)","v":7},null,{"$f":"Query!H41","v":0},{"$f":"Query!I41","v":0},{"$f":"Query!J41","v":0},null,{"$f":"Query!K41","v":0},{"$f":"Query!L41","v":0},{"$f":"Query!M41","v":0},{"$f":"Query!N41","v":0},{"$f":"Query!O41","v":0},{"$f":"SUM(N29:R29)","v":0},null,{"$f":"Query!P41","v":0},{"$f":"Query!Q41","v":0},{"$f":"Query!R41","v":0},{"$f":"Query!S41","v":0},{"$f":"Query!T41","v":0},{"$f":"SUM(U29:Y29)","v":0},null,{"$f":"SUM(J29,K29,L29,S29,Z29)","v":0},null,{"$f":"Query!U41","v":24},null,{"$f":"IF(AJ29=0,0,SUM(H29/AJ29))","v":0.22600000000000001},{"$f":"IF(AJ29=0,0,SUM(AB29/AJ29))","v":0},{"$f":"IF(AJ29=0,0,SUM(AD29/AJ29))","v":0.77400000000000002},null,{"$f":"SUM(H29,AB29,AD29)","v":31}]
["Other Non Pay & Grading Structure P/T",{"$f":"Query!B42","v":1},{"$f":"Query!C42","v":1},{"$f":"Query!D42","v":0},{"$f":"Query!E42","v":0},{"$f":"Query!F42","v":0},{"$f":"Query!G42","v":0},{"$f":"SUM(B30:G30)","v":2},null,{"$f":"Query!H42","v":0},{"$f":"Query!I42","v":0},{"$f":"Query!J42","v":0},null,{"$f":"Query!K42","v":0},{"$f":"Query!L42","v":0},{"$f":"Query!M42","v":0},{"$f":"Query!N42","v":0},{"$f":"Query!O42","v":0},{"$f":"SUM(N30:R30)","v":0},null,{"$f":"Query!P42","v":0},{"$f":"Query!Q42","v":0},{"$f":"Query!R42","v":0},{"$f":"Query!S42","v":0},{"$f":"Query!T42","v":0},{"$f":"SUM(U30:Y30)","v":0},null,{"$f":"SUM(J30,K30,L30,S30,Z30)","v":0},null,{"$f":"Query!U42","v":21},null,{"$f":"IF(AJ30=0,0,SUM(H30/AJ30))","v":8.6999999999999994E-2},{"$f":"IF(AJ30=0,0,SUM(AB30/AJ30))","v":0},{"$f":"IF(AJ30=0,0,SUM(AD30/AJ30))","v":0.91300000000000003},null,{"$f":"SUM(H30,AB30,AD30)","v":23}]
["Other Non P&G Structure Total",{"$f":"SUM(B29:B30)","v":8},1,0,0,0,0,9,null,{"$f":"SUM(J29:J30)","v":0},{"$f":"SUM(K29:K30)","v":0},{"$f":"SUM(L29:L30)","v":0},null,{"$f":"SUM(N29:N30)","v":0},0,0,0,0,0,null,{"$f":"SUM(U29:U30)","v":0},0,0,0,0,0,null,{"$f":"SUM(J31,K31,L31,S31,Z31)","v":0},null,{"$f":"SUM(AD29:AD30)","v":45},null,{"$f":"IF(AJ31=0,0,SUM(H31/AJ31))","v":0.16700000000000001},{"$f":"IF(AJ31=0,0,SUM(AB31/AJ31))","v":0},{"$f":"IF(AJ31=0,0,SUM(AD31/AJ31))","v":0.83299999999999996},null,{"$f":"SUM(H31,AB31,AD31)","v":54}]
[]
["Total Workforce F/T",{"$f":"SUM(B5,B9,B13,B17,B21,B25,B29)","v":1209},61,13,0,4,34,{"$f":"SUM(B33:G33)","v":1321},null,{"$f":"SUM(J5,J9,J13,J17,J21,J25,J29)","v":3},{"$f":"SUM(K5,K9,K13,K17,K21,K25,K29)","v":1},{"$f":"SUM(L5,L9,L13,L17,L21,L25,L29)","v":3},null,{"$f":"SUM(N5,N9,N13,N17,N21,N25,N29)","v":4},{"$f":"SUM(O5,O9,O13,O17,O21,O25,O29)","v":4},{"$f":"SUM(P5,P9,P13,P17,P21,P25,P29)","v":0},{"$f":"SUM(Q5,Q9,Q13,Q17,Q21,Q25,Q29)","v":6},{"$f":"SUM(R5,R9,R13,R17,R21,R25,R29)","v":3},{"$f":"SUM(N33:R33)","v":17},null,{"$f":"SUM(U5,U9,U13,U17,U21,U25,U29)","v":2},{"$f":"SUM(V5,V9,V13,V17,V21,V25,V29)","v":1},{"$f":"SUM(W5,W9,W13,W17,W21,W25,W29)","v":0},{"$f":"SUM(X5,X9,X13,X17,X21,X25,X29)","v":0},{"$f":"SUM(Y5,Y9,Y13,Y17,Y21,Y25,Y29)","v":0},{"$f":"SUM(U33:Y33)","v":3},null,{"$f":"SUM(AB5,AB9,AB13,AB17,AB21,AB25,AB29)","v":27},null,{"$f":"SUM(AD5,AD9,AD13,AD17,AD21,AD25,AD29)","v":319},null,{"$f":"IF(AJ33=0,0,SUM(H33/AJ33))","v":0.79200000000000004},{"$f":"IF(AJ33=0,0,SUM(AB33/AJ33))","v":1.6E-2},{"$f":"IF(AJ33=0,0,SUM(AD33/AJ33))","v":0.191},null,{"$f":"SUM(H33,AB33,AD33)","v":1667}]
[]
["Total Workforce P/T",{"$f":"SUM(B6,B10,B14,B18,B22,B26,B30)","v":634},38,6,0,5,13,{"$f":"SUM(B35:G35)","v":696},null,{"$f":"SUM(J6,J10,J14,J18,J22,J26,J30)","v":6},{"$f":"SUM(K6,K10,K14,K18,K22,K26,K30)","v":0},{"$f":"SUM(L6,L10,L14,L18,L22,L26,L30)","v":2},null,{"$f":"SUM(N6,N10,N14,N18,N22,N26,N30)","v":6},{"$f":"SUM(O6,O10,O14,O18,O22,O26,O30)","v":4},{"$f":"SUM(P6,P10,P14,P18,P22,P26,P30)","v":0},{"$f":"SUM(Q6,Q10,Q14,Q18,Q22,Q26,Q30)","v":3},{"$f":"SUM(R6,R10,R14,R18,R22,R26,R30)","v":3},{"$f":"SUM(N35:R35)","v":16},null,{"$f":"SUM(U6,U10,U14,U18,U22,U26,U30)","v":1},{"$f":"SUM(V6,V10,V14,V18,V22,V26,V30)","v":1},{"$f":"SUM(W6,W10,W14,W18,W22,W26,W30)","v":0},{"$f":"SUM(X6,X10,X14,X18,X22,X26,X30)","v":1},{"$f":"SUM(Y6,Y10,Y14,Y18,Y22,Y26,Y30)","v":0},{"$f":"SUM(U35:Y35)","v":3},null,{"$f":"SUM(AB6,AB10,AB14,AB18,AB22,AB26,AB30)","v":27},null,{"$f":"SUM(AD6,AD10,AD14,AD18,AD22,AD26,AD30)","v":183},null,{"$f":"IF(AJ35=0,0,SUM(H35/AJ35))","v":0.76800000000000002},{"$f":"IF(AJ35=0,0,SUM(AB35/AJ35))","v":0.03},{"$f":"IF(AJ35=0,0,SUM(AD35/AJ35))","v":0.20200000000000001},null,{"$f":"SUM(H35,AB35,AD35)","v":906}]
[]
["Total Workforce",{"$f":"SUM(B33,B35)","v":1843},99,19,0,9,47,{"$f":"SUM(B37:G37)","v":2017},null,{"$f":"SUM(J33,J35)","v":9},{"$f":"SUM(K33,K35)","v":1},{"$f":"SUM(L33,L35)","v":5},null,{"$f":"SUM(N33,N35)","v":10},{"$f":"SUM(O33,O35)","v":8},{"$f":"SUM(P33,P35)","v":0},{"$f":"SUM(Q33,Q35)","v":9},{"$f":"SUM(R33,R35)","v":6},{"$f":"SUM(N37:R37)","v":33},null,{"$f":"SUM(U33,U35)","v":3},{"$f":"SUM(V33,V35)","v":2},{"$f":"SUM(W33,W35)","v":0},{"$f":"SUM(X33,X35)","v":1},{"$f":"SUM(Y33,Y35)","v":0},{"$f":"SUM(U37:Y37)","v":6},null,{"$f":"SUM(AB33,AB35)","v":54},null,{"$f":"SUM(AD33,AD35)","v":502},null,{"$f":"SUM(H37/AJ37)","v":0.78400000000000003},{"$f":"SUM(AB37/AJ37)","v":2.1000000000000001E-2},{"$f":"SUM(AD37/AJ37)","v":0.19500000000000001},null,{"$f":"SUM(H37,AB37,AD37)","v":2573}]

{"sheet":"Query","index":5,"n_rows":56,"n_cols":23,"rows_kept":56,"cut":false,"hidden":true,"merged":[]}
["Workforce Profile Ethnicity Breakdown (2011) Revised"]
[]
["Payroll Area",""]
["ZPersonal Area","0161"]
["Organizational Unit",""]
["Personnel Subarea","]GL Bank["]
["Checkbox for Part-Ti",""]
["ZPrimary Employee ID",""]
["Ethnicity Breakdown - Rev 2011",""]
["WP Bandings",""]
[]
["Employee Subgroup","]Teachers 35.00 M1[, ]Teachers 35.00 M2[, ]Skillseekers[, ]External Non Payroll[, ]Traineeship Program[, ]Non-Payroll Lunar["]
["Employment Status","Active"]
["Organizational Unit","CSG, ]CE00112561[, ]DR00000029[, ]DR00000035[, ]EP10000000[, ]LS00000500[, ]GL00000001[, ]DR00000145[, ]L000000A00["]
["Personnel Subarea","]ZZZZ["]
["Employment End",">= 30/09/2019"]
["Employment Start","<= 30/09/2019"]
["ZPersonal Area","]9980..9991[, ]0021[, 0161"]
[]
["Contract Type",""]
[]
["","White Scottish","Other British","Irish","Gypsy / Traveller","Polish","Other White Ethnic","Mixed or Multiple Ethnic Groups","Arab, Arab Scottish or Arab British","Total Other Ethnic Background","Pakistani","Indian","Bangladeshi","Chinese","Other Asian Background","African","Other African Background","Caribbean","Black","Other Caribbean / Black Background","Total Non Disclosed"]
["Grade 1 - 4 F/T",661,19,3,null,1,12,1,null,2,2,1,null,4,1,2,1,null,null,null,191,{"$f":"SUM(B23:U23)","v":901}]
["Grade 1 - 4 P/T",533,29,6,null,5,9,3,null,1,6,4,null,3,2,1,1,null,null,null,146,{"$f":"SUM(B24:U24)","v":749}]
["Grade 1 - 4 Total",1194,48,9,null,6,21,4,null,3,8,5,null,7,3,3,2,null,null,null,337]
["Grade 5 - 7 F/T",481,35,7,null,3,20,2,1,1,2,3,null,2,2,null,null,null,null,null,97,{"$f":"SUM(B26:U26)","v":656}]
["Grade 5 - 7 P/T",98,8,null,null,null,4,3,null,1,null,null,null,null,1,null,null,null,1,null,15,131]
["Grade 5 - 7 Total",579,43,7,null,3,24,5,1,2,2,3,null,2,3,null,null,null,1,null,112]
["Grade 8 F/T",38,4,2,null,null,1,null,null,null,null,null,null,null,null,null,null,null,null,null,3,48]
["Grade 8 P/T",2,null,null,null,null,null,null,null,null,null,null,null,null,null,null,null,null,null,null,1,3]
["Grade 8 Total",40,4,2,null,null,1,null,null,null,null,null,null,null,null,null,null,null,null,null,4]
["ACZ Grade 8 F/T",null,null,null,null,null,null,null,null,null,null,null,null,null,null,null,null,null,null,null,null,0]
["ACZ Grade 8 P/T",null,null,null,null,null,null,null,null,null,null,null,null,null,null,null,null,null,null,null,null,0]
["ACZ Grade 8 Total"]
["Grade 9 - 15 F/T",22,3,1,null,null,1,null,null,null,null,null,null,null,null,null,null,null,null,null,4,31]
["Grade 9 - 15 P/T",null,null,null,null,null,null,null,null,null,null,null,null,null,null,null,null,null,null,null,null,0]
["Grade 9 - 15 Total",22,3,1,null,null,1,null,null,null,null,null,null,null,null,null,null,null,null,null,4]
["ACZ Grade 9 - 15 F/T",null,null,null,null,null,null,null,null,null,null,null,null,null,null,null,null,null,null,null,null,0]
["ACZ Grade 9 - 15 P/T",null,null,null,null,null,null,null,null,null,null,null,null,null,null,null,null,null,null,null,null,0]
["ACZ Grade 9 - 15 Total"]
["Other (Not Migrated) F/T",7,0,0,null,0,0,0,0,0,0,0,null,0,0,0,0,null,null,null,24,31]
["Other (Not Migrated) P/T",1,1,0,null,0,0,0,null,0,0,0,null,0,0,0,0,null,0,null,21,23]
["Other (Not Migrated) Total",8,1,0,null,0,0,0,0,0,0,0,null,0,0,0,0,null,0,null,45]
["Total Teaching Staff F/T",null,null,null,null,null,null,null,null,null,null,null,null,null,null,null,null,null,null,null,null,0]
["Total Teaching Staff P/T"]
["Total Teaching Staff"]
["Total Non-Teaching Staff F/T",1209,61,13,null,4,34,3,1,3,4,4,null,6,3,2,1,null,null,null,319]
["Total Non-Teaching Staff P/T",634,38,6,null,5,13,6,null,2,6,4,null,3,3,1,1,null,1,null,183]
["Total Non-Teaching Staff",1843,99,19,null,9,47,9,1,5,10,8,null,9,6,3,2,null,1,null,502]
["Total - All WPBR Grades F/T",1202,61,13,null,4,34,3,1,3,4,4,null,6,3,2,1,null,null,null,295]
["Total - All WPBR Grades P/T",633,37,6,null,5,13,6,null,2,6,4,null,3,3,1,1,null,1,null,162]
["Total Workforce - All WPBR Grades",1835,98,19,null,9,47,9,1,5,10,8,null,9,6,3,2,null,1,null,457]
["Total Workforce (All) F/T",1209,61,13,null,4,34,3,1,3,4,4,null,6,3,2,1,null,null,null,319]
["Total Workforce (All) P/T",634,38,6,null,5,13,6,null,2,6,4,null,3,3,1,1,null,1,null,183]
["Total Workforce (All)",1843,99,19,null,9,47,9,1,5,10,8,null,9,6,3,2,null,1,null,502]
[null,null,null,null,null,null,null,null,null,null,null,null,null,null,null,null,null,null,null,null,null,{"$f":"SUM(V23:V43)","v":2573},"TOTAL"]